Organisation Name,Organisation Code,Unique Ref No,Effective Date,Directorate where expenditure incurred, Supplier Name ,Payment Date,Net Amount,Purpose of Spend,"Procurement Classification
(Higher Level)","Procurement Classification 
(Lower Level)",CAPITAL / REVENUE
Walsall Council,http://opendatacommunities.org/id/metropolitan-district-council/walsall ,WC143-1,31.10.2022,CHILDRENS,247 CARS (WILLENHALL) LIMITED,10/10/2022,"1,017.50",6241-Hire of Vehicle with Driver,TRANSPORT,DIRECT TRANSPORT COSTS,REVENUE
Walsall Council,http://opendatacommunities.org/id/metropolitan-district-council/walsall ,WC143-2,31.10.2022,CHILDRENS,247 CARS (WILLENHALL) LIMITED,10/10/2022,960.00,6241-Hire of Vehicle with Driver,TRANSPORT,DIRECT TRANSPORT COSTS,REVENUE
Walsall Council,http://opendatacommunities.org/id/metropolitan-district-council/walsall ,WC143-3,31.10.2022,CHILDRENS,247 CARS (WILLENHALL) LIMITED,10/10/2022,"1,272.84",6241-Hire of Vehicle with Driver,TRANSPORT,DIRECT TRANSPORT COSTS,REVENUE
Walsall Council,http://opendatacommunities.org/id/metropolitan-district-council/walsall ,WC143-4,31.10.2022,CHILDRENS,247 CARS (WILLENHALL) LIMITED,10/10/2022,"1,110.00",6241-Hire of Vehicle with Driver,TRANSPORT,DIRECT TRANSPORT COSTS,REVENUE
Walsall Council,http://opendatacommunities.org/id/metropolitan-district-council/walsall ,WC143-5,31.10.2022,CHILDRENS,247 CARS (WILLENHALL) LIMITED,10/10/2022,"1,110.00",6241-Hire of Vehicle with Driver,TRANSPORT,DIRECT TRANSPORT COSTS,REVENUE
Walsall Council,http://opendatacommunities.org/id/metropolitan-district-council/walsall ,WC143-6,31.10.2022,CHILDRENS,247 CARS (WILLENHALL) LIMITED,10/10/2022,"1,110.00",6241-Hire of Vehicle with Driver,TRANSPORT,DIRECT TRANSPORT COSTS,REVENUE
Walsall Council,http://opendatacommunities.org/id/metropolitan-district-council/walsall ,WC143-7,31.10.2022,CHILDRENS,247 CARS (WILLENHALL) LIMITED,10/10/2022,"2,160.00",6241-Hire of Vehicle with Driver,TRANSPORT,DIRECT TRANSPORT COSTS,REVENUE
Walsall Council,http://opendatacommunities.org/id/metropolitan-district-council/walsall ,WC143-8,31.10.2022,CHILDRENS,247 CARS (WILLENHALL) LIMITED,10/10/2022,876.96,6241-Hire of Vehicle with Driver,TRANSPORT,DIRECT TRANSPORT COSTS,REVENUE
Walsall Council,http://opendatacommunities.org/id/metropolitan-district-council/walsall ,WC143-9,31.10.2022,CHILDRENS,247 CARS (WILLENHALL) LIMITED,10/10/2022,"1,391.50",6241-Hire of Vehicle with Driver,TRANSPORT,DIRECT TRANSPORT COSTS,REVENUE
Walsall Council,http://opendatacommunities.org/id/metropolitan-district-council/walsall ,WC143-10,31.10.2022,CHILDRENS,247 CARS (WILLENHALL) LIMITED,10/10/2022,798.00,6241-Hire of Vehicle with Driver,TRANSPORT,DIRECT TRANSPORT COSTS,REVENUE
Walsall Council,http://opendatacommunities.org/id/metropolitan-district-council/walsall ,WC143-11,31.10.2022,CHILDRENS,247 CARS (WILLENHALL) LIMITED,10/10/2022,"1,391.00",6241-Hire of Vehicle with Driver,TRANSPORT,DIRECT TRANSPORT COSTS,REVENUE
Walsall Council,http://opendatacommunities.org/id/metropolitan-district-council/walsall ,WC143-12,31.10.2022,CHILDRENS,247 CARS (WILLENHALL) LIMITED,10/10/2022,"1,363.20",6241-Hire of Vehicle with Driver,TRANSPORT,DIRECT TRANSPORT COSTS,REVENUE
Walsall Council,http://opendatacommunities.org/id/metropolitan-district-council/walsall ,WC143-13,31.10.2022,CHILDRENS,247 CARS (WILLENHALL) LIMITED,10/10/2022,885.00,6241-Hire of Vehicle with Driver,TRANSPORT,DIRECT TRANSPORT COSTS,REVENUE
Walsall Council,http://opendatacommunities.org/id/metropolitan-district-council/walsall ,WC143-14,31.10.2022,CHILDRENS,247 CARS (WILLENHALL) LIMITED,10/10/2022,"1,363.20",6241-Hire of Vehicle with Driver,TRANSPORT,DIRECT TRANSPORT COSTS,REVENUE
Walsall Council,http://opendatacommunities.org/id/metropolitan-district-council/walsall ,WC143-15,31.10.2022,CHILDRENS,247 CARS (WILLENHALL) LIMITED,10/10/2022,"1,044.12",6241-Hire of Vehicle with Driver,TRANSPORT,DIRECT TRANSPORT COSTS,REVENUE
Walsall Council,http://opendatacommunities.org/id/metropolitan-district-council/walsall ,WC143-16,31.10.2022,CHILDRENS,247 CARS (WILLENHALL) LIMITED,10/10/2022,765.27,6241-Hire of Vehicle with Driver,TRANSPORT,DIRECT TRANSPORT COSTS,REVENUE
Walsall Council,http://opendatacommunities.org/id/metropolitan-district-council/walsall ,WC143-17,31.10.2022,CHILDRENS,247 CARS (WILLENHALL) LIMITED,10/10/2022,"1,486.80",6241-Hire of Vehicle with Driver,TRANSPORT,DIRECT TRANSPORT COSTS,REVENUE
Walsall Council,http://opendatacommunities.org/id/metropolitan-district-council/walsall ,WC143-18,31.10.2022,CHILDRENS,247 CARS (WILLENHALL) LIMITED,10/10/2022,"1,295.00",6241-Hire of Vehicle with Driver,TRANSPORT,DIRECT TRANSPORT COSTS,REVENUE
Walsall Council,http://opendatacommunities.org/id/metropolitan-district-council/walsall ,WC143-19,31.10.2022,CHILDRENS,247 CARS (WILLENHALL) LIMITED,10/10/2022,"1,363.20",6241-Hire of Vehicle with Driver,TRANSPORT,DIRECT TRANSPORT COSTS,REVENUE
Walsall Council,http://opendatacommunities.org/id/metropolitan-district-council/walsall ,WC143-20,31.10.2022,CHILDRENS,247 CARS (WILLENHALL) LIMITED,10/10/2022,"1,606.50",6241-Hire of Vehicle with Driver,TRANSPORT,DIRECT TRANSPORT COSTS,REVENUE
Walsall Council,http://opendatacommunities.org/id/metropolitan-district-council/walsall ,WC143-21,31.10.2022,CHILDRENS,247 CARS (WILLENHALL) LIMITED,10/10/2022,"1,904.00",6241-Hire of Vehicle with Driver,TRANSPORT,DIRECT TRANSPORT COSTS,REVENUE
Walsall Council,http://opendatacommunities.org/id/metropolitan-district-council/walsall ,WC143-22,31.10.2022,CHILDRENS,247 CARS (WILLENHALL) LIMITED,10/10/2022,"1,363.20",6241-Hire of Vehicle with Driver,TRANSPORT,DIRECT TRANSPORT COSTS,REVENUE
Walsall Council,http://opendatacommunities.org/id/metropolitan-district-council/walsall ,WC143-23,31.10.2022,CHILDRENS,247 CARS (WILLENHALL) LIMITED,10/10/2022,"1,363.20",6241-Hire of Vehicle with Driver,TRANSPORT,DIRECT TRANSPORT COSTS,REVENUE
Walsall Council,http://opendatacommunities.org/id/metropolitan-district-council/walsall ,WC143-24,31.10.2022,ADULT SOCIAL CARE,5 CARE SERVICES LTD,11/10/2022,442.40,6541-Domiciliary Care,THIRD PARTY PAYMENTS,PRIVATE CONTRACTOR,REVENUE
Walsall Council,http://opendatacommunities.org/id/metropolitan-district-council/walsall ,WC143-25,31.10.2022,ADULT SOCIAL CARE,5 CARE SERVICES LTD,11/10/2022,288.35,6541-Domiciliary Care,THIRD PARTY PAYMENTS,PRIVATE CONTRACTOR,REVENUE
Walsall Council,http://opendatacommunities.org/id/metropolitan-district-council/walsall ,WC143-26,31.10.2022,ADULT SOCIAL CARE,5 CARE SERVICES LTD,11/10/2022,497.70,6541-Domiciliary Care,THIRD PARTY PAYMENTS,PRIVATE CONTRACTOR,REVENUE
Walsall Council,http://opendatacommunities.org/id/metropolitan-district-council/walsall ,WC143-27,31.10.2022,ADULT SOCIAL CARE,5 CARE SERVICES LTD,11/10/2022,884.80,6541-Domiciliary Care,THIRD PARTY PAYMENTS,PRIVATE CONTRACTOR,REVENUE
Walsall Council,http://opendatacommunities.org/id/metropolitan-district-council/walsall ,WC143-28,31.10.2022,ADULT SOCIAL CARE,5 CARE SERVICES LTD,11/10/2022,252.80,6541-Domiciliary Care,THIRD PARTY PAYMENTS,PRIVATE CONTRACTOR,REVENUE
Walsall Council,http://opendatacommunities.org/id/metropolitan-district-council/walsall ,WC143-29,31.10.2022,ADULT SOCIAL CARE,5 CARE SERVICES LTD,11/10/2022,718.90,6541-Domiciliary Care,THIRD PARTY PAYMENTS,PRIVATE CONTRACTOR,REVENUE
Walsall Council,http://opendatacommunities.org/id/metropolitan-district-council/walsall ,WC143-30,31.10.2022,ADULT SOCIAL CARE,5 CARE SERVICES LTD,11/10/2022,553.00,6541-Domiciliary Care,THIRD PARTY PAYMENTS,PRIVATE CONTRACTOR,REVENUE
Walsall Council,http://opendatacommunities.org/id/metropolitan-district-council/walsall ,WC143-31,31.10.2022,ADULT SOCIAL CARE,5 CARE SERVICES LTD,11/10/2022,497.70,6541-Domiciliary Care,THIRD PARTY PAYMENTS,PRIVATE CONTRACTOR,REVENUE
Walsall Council,http://opendatacommunities.org/id/metropolitan-district-council/walsall ,WC143-32,31.10.2022,ADULT SOCIAL CARE,5 CARE SERVICES LTD,11/10/2022,521.40,6541-Domiciliary Care,THIRD PARTY PAYMENTS,PRIVATE CONTRACTOR,REVENUE
Walsall Council,http://opendatacommunities.org/id/metropolitan-district-council/walsall ,WC143-33,31.10.2022,ADULT SOCIAL CARE,5 CARE SERVICES LTD,11/10/2022,489.80,6541-Domiciliary Care,THIRD PARTY PAYMENTS,PRIVATE CONTRACTOR,REVENUE
Walsall Council,http://opendatacommunities.org/id/metropolitan-district-council/walsall ,WC143-34,31.10.2022,ADULT SOCIAL CARE,5 CARE SERVICES LTD,11/10/2022,363.40,6541-Domiciliary Care,THIRD PARTY PAYMENTS,PRIVATE CONTRACTOR,REVENUE
Walsall Council,http://opendatacommunities.org/id/metropolitan-district-council/walsall ,WC143-35,31.10.2022,ADULT SOCIAL CARE,5 CARE SERVICES LTD,11/10/2022,331.80,6541-Domiciliary Care,THIRD PARTY PAYMENTS,PRIVATE CONTRACTOR,REVENUE
Walsall Council,http://opendatacommunities.org/id/metropolitan-district-council/walsall ,WC143-36,31.10.2022,ADULT SOCIAL CARE,5 CARE SERVICES LTD,11/10/2022,568.80,6541-Domiciliary Care,THIRD PARTY PAYMENTS,PRIVATE CONTRACTOR,REVENUE
Walsall Council,http://opendatacommunities.org/id/metropolitan-district-council/walsall ,WC143-37,31.10.2022,ADULT SOCIAL CARE,5 CARE SERVICES LTD,11/10/2022,524.08,6541-Domiciliary Care,THIRD PARTY PAYMENTS,PRIVATE CONTRACTOR,REVENUE
Walsall Council,http://opendatacommunities.org/id/metropolitan-district-council/walsall ,WC143-38,31.10.2022,ADULT SOCIAL CARE,5 CARE SERVICES LTD,11/10/2022,948.00,6541-Domiciliary Care,THIRD PARTY PAYMENTS,PRIVATE CONTRACTOR,REVENUE
Walsall Council,http://opendatacommunities.org/id/metropolitan-district-council/walsall ,WC143-39,31.10.2022,ADULT SOCIAL CARE,5 CARE SERVICES LTD,11/10/2022,"1,216.60",6541-Domiciliary Care,THIRD PARTY PAYMENTS,PRIVATE CONTRACTOR,REVENUE
Walsall Council,http://opendatacommunities.org/id/metropolitan-district-council/walsall ,WC143-40,31.10.2022,ADULT SOCIAL CARE,5 CARE SERVICES LTD,11/10/2022,747.96,6541-Domiciliary Care,THIRD PARTY PAYMENTS,PRIVATE CONTRACTOR,REVENUE
Walsall Council,http://opendatacommunities.org/id/metropolitan-district-council/walsall ,WC143-41,31.10.2022,ADULT SOCIAL CARE,5 CARE SERVICES LTD,11/10/2022,663.60,6541-Domiciliary Care,THIRD PARTY PAYMENTS,PRIVATE CONTRACTOR,REVENUE
Walsall Council,http://opendatacommunities.org/id/metropolitan-district-council/walsall ,WC143-42,31.10.2022,ADULT SOCIAL CARE,5 CARE SERVICES LTD,11/10/2022,645.19,6541-Domiciliary Care,THIRD PARTY PAYMENTS,PRIVATE CONTRACTOR,REVENUE
Walsall Council,http://opendatacommunities.org/id/metropolitan-district-council/walsall ,WC143-43,31.10.2022,ADULT SOCIAL CARE,5 CARE SERVICES LTD,11/10/2022,331.80,6541-Domiciliary Care,THIRD PARTY PAYMENTS,PRIVATE CONTRACTOR,REVENUE
Walsall Council,http://opendatacommunities.org/id/metropolitan-district-council/walsall ,WC143-44,31.10.2022,ADULT SOCIAL CARE,5 CARE SERVICES LTD,11/10/2022,497.70,6541-Domiciliary Care,THIRD PARTY PAYMENTS,PRIVATE CONTRACTOR,REVENUE
Walsall Council,http://opendatacommunities.org/id/metropolitan-district-council/walsall ,WC143-45,31.10.2022,ADULT SOCIAL CARE,5 CARE SERVICES LTD,11/10/2022,-442.40,6541-Domiciliary Care,THIRD PARTY PAYMENTS,PRIVATE CONTRACTOR,REVENUE
Walsall Council,http://opendatacommunities.org/id/metropolitan-district-council/walsall ,WC143-46,31.10.2022,ADULT SOCIAL CARE,5 CARE SERVICES LTD,11/10/2022,568.80,6541-Domiciliary Care,THIRD PARTY PAYMENTS,PRIVATE CONTRACTOR,REVENUE
Walsall Council,http://opendatacommunities.org/id/metropolitan-district-council/walsall ,WC143-47,31.10.2022,ADULT SOCIAL CARE,5 CARE SERVICES LTD,11/10/2022,288.35,6541-Domiciliary Care,THIRD PARTY PAYMENTS,PRIVATE CONTRACTOR,REVENUE
Walsall Council,http://opendatacommunities.org/id/metropolitan-district-council/walsall ,WC143-48,31.10.2022,ADULT SOCIAL CARE,5 CARE SERVICES LTD,11/10/2022,442.40,6541-Domiciliary Care,THIRD PARTY PAYMENTS,PRIVATE CONTRACTOR,REVENUE
Walsall Council,http://opendatacommunities.org/id/metropolitan-district-council/walsall ,WC143-49,31.10.2022,ADULT SOCIAL CARE,5 CARE SERVICES LTD,11/10/2022,718.90,6541-Domiciliary Care,THIRD PARTY PAYMENTS,PRIVATE CONTRACTOR,REVENUE
Walsall Council,http://opendatacommunities.org/id/metropolitan-district-council/walsall ,WC143-50,31.10.2022,ADULT SOCIAL CARE,5 CARE SERVICES LTD,11/10/2022,568.80,6541-Domiciliary Care,THIRD PARTY PAYMENTS,PRIVATE CONTRACTOR,REVENUE
Walsall Council,http://opendatacommunities.org/id/metropolitan-district-council/walsall ,WC143-51,31.10.2022,ADULT SOCIAL CARE,5 CARE SERVICES LTD,11/10/2022,521.40,6541-Domiciliary Care,THIRD PARTY PAYMENTS,PRIVATE CONTRACTOR,REVENUE
Walsall Council,http://opendatacommunities.org/id/metropolitan-district-council/walsall ,WC143-52,31.10.2022,ADULT SOCIAL CARE,5 CARE SERVICES LTD,11/10/2022,489.80,6541-Domiciliary Care,THIRD PARTY PAYMENTS,PRIVATE CONTRACTOR,REVENUE
Walsall Council,http://opendatacommunities.org/id/metropolitan-district-council/walsall ,WC143-53,31.10.2022,ADULT SOCIAL CARE,5 CARE SERVICES LTD,11/10/2022,442.40,6541-Domiciliary Care,THIRD PARTY PAYMENTS,PRIVATE CONTRACTOR,REVENUE
Walsall Council,http://opendatacommunities.org/id/metropolitan-district-council/walsall ,WC143-54,31.10.2022,ADULT SOCIAL CARE,5 CARE SERVICES LTD,11/10/2022,747.96,6541-Domiciliary Care,THIRD PARTY PAYMENTS,PRIVATE CONTRACTOR,REVENUE
Walsall Council,http://opendatacommunities.org/id/metropolitan-district-council/walsall ,WC143-55,31.10.2022,ADULT SOCIAL CARE,5 CARE SERVICES LTD,11/10/2022,524.08,6541-Domiciliary Care,THIRD PARTY PAYMENTS,PRIVATE CONTRACTOR,REVENUE
Walsall Council,http://opendatacommunities.org/id/metropolitan-district-council/walsall ,WC143-56,31.10.2022,ADULT SOCIAL CARE,5 CARE SERVICES LTD,11/10/2022,"1,216.60",6541-Domiciliary Care,THIRD PARTY PAYMENTS,PRIVATE CONTRACTOR,REVENUE
Walsall Council,http://opendatacommunities.org/id/metropolitan-district-council/walsall ,WC143-57,31.10.2022,ADULT SOCIAL CARE,5 CARE SERVICES LTD,11/10/2022,553.00,6541-Domiciliary Care,THIRD PARTY PAYMENTS,PRIVATE CONTRACTOR,REVENUE
Walsall Council,http://opendatacommunities.org/id/metropolitan-district-council/walsall ,WC143-58,31.10.2022,ADULT SOCIAL CARE,5 CARE SERVICES LTD,11/10/2022,663.60,6541-Domiciliary Care,THIRD PARTY PAYMENTS,PRIVATE CONTRACTOR,REVENUE
Walsall Council,http://opendatacommunities.org/id/metropolitan-district-council/walsall ,WC143-59,31.10.2022,ADULT SOCIAL CARE,5 CARE SERVICES LTD,11/10/2022,645.19,6541-Domiciliary Care,THIRD PARTY PAYMENTS,PRIVATE CONTRACTOR,REVENUE
Walsall Council,http://opendatacommunities.org/id/metropolitan-district-council/walsall ,WC143-60,31.10.2022,ADULT SOCIAL CARE,5 CARE SERVICES LTD,11/10/2022,252.80,6541-Domiciliary Care,THIRD PARTY PAYMENTS,PRIVATE CONTRACTOR,REVENUE
Walsall Council,http://opendatacommunities.org/id/metropolitan-district-council/walsall ,WC143-61,31.10.2022,ADULT SOCIAL CARE,5 CARE SERVICES LTD,11/10/2022,497.70,6541-Domiciliary Care,THIRD PARTY PAYMENTS,PRIVATE CONTRACTOR,REVENUE
Walsall Council,http://opendatacommunities.org/id/metropolitan-district-council/walsall ,WC143-62,31.10.2022,ADULT SOCIAL CARE,5 CARE SERVICES LTD,11/10/2022,497.70,6541-Domiciliary Care,THIRD PARTY PAYMENTS,PRIVATE CONTRACTOR,REVENUE
Walsall Council,http://opendatacommunities.org/id/metropolitan-district-council/walsall ,WC143-63,31.10.2022,ADULT SOCIAL CARE,5 CARE SERVICES LTD,11/10/2022,497.70,6541-Domiciliary Care,THIRD PARTY PAYMENTS,PRIVATE CONTRACTOR,REVENUE
Walsall Council,http://opendatacommunities.org/id/metropolitan-district-council/walsall ,WC143-64,31.10.2022,ADULT SOCIAL CARE,5 CARE SERVICES LTD,11/10/2022,884.80,6541-Domiciliary Care,THIRD PARTY PAYMENTS,PRIVATE CONTRACTOR,REVENUE
Walsall Council,http://opendatacommunities.org/id/metropolitan-district-council/walsall ,WC143-65,31.10.2022,ADULT SOCIAL CARE,5 CARE SERVICES LTD,11/10/2022,331.80,6541-Domiciliary Care,THIRD PARTY PAYMENTS,PRIVATE CONTRACTOR,REVENUE
Walsall Council,http://opendatacommunities.org/id/metropolitan-district-council/walsall ,WC143-66,31.10.2022,ADULT SOCIAL CARE,5 CARE SERVICES LTD,20/10/2022,438.45,6554-Professional Services-Priv Contractor & Other Agencies,THIRD PARTY PAYMENTS,PRIVATE CONTRACTOR,REVENUE
Walsall Council,http://opendatacommunities.org/id/metropolitan-district-council/walsall ,WC143-67,31.10.2022,ADULT SOCIAL CARE,5 CARE SERVICES LTD,20/10/2022,442.40,6554-Professional Services-Priv Contractor & Other Agencies,THIRD PARTY PAYMENTS,PRIVATE CONTRACTOR,REVENUE
Walsall Council,http://opendatacommunities.org/id/metropolitan-district-council/walsall ,WC143-68,31.10.2022,ADULT SOCIAL CARE,5 CARE SERVICES LTD,20/10/2022,327.85,6541-Domiciliary Care,THIRD PARTY PAYMENTS,PRIVATE CONTRACTOR,REVENUE
Walsall Council,http://opendatacommunities.org/id/metropolitan-district-council/walsall ,WC143-69,31.10.2022,ADULT SOCIAL CARE,5 CARE SERVICES LTD,20/10/2022,853.20,6541-Domiciliary Care,THIRD PARTY PAYMENTS,PRIVATE CONTRACTOR,REVENUE
Walsall Council,http://opendatacommunities.org/id/metropolitan-district-council/walsall ,WC143-70,31.10.2022,ADULT SOCIAL CARE,5 CARE SERVICES LTD,20/10/2022,335.75,6554-Professional Services-Priv Contractor & Other Agencies,THIRD PARTY PAYMENTS,PRIVATE CONTRACTOR,REVENUE
Walsall Council,http://opendatacommunities.org/id/metropolitan-district-council/walsall ,WC143-71,31.10.2022,ADULT SOCIAL CARE,5 CARE SERVICES LTD,20/10/2022,"1,275.85",6541-Domiciliary Care,THIRD PARTY PAYMENTS,PRIVATE CONTRACTOR,REVENUE
Walsall Council,http://opendatacommunities.org/id/metropolitan-district-council/walsall ,WC143-72,31.10.2022,ADULT SOCIAL CARE,5 CARE SERVICES LTD,20/10/2022,995.40,6541-Domiciliary Care,THIRD PARTY PAYMENTS,PRIVATE CONTRACTOR,REVENUE
Walsall Council,http://opendatacommunities.org/id/metropolitan-district-council/walsall ,WC143-73,31.10.2022,ADULT SOCIAL CARE,5 CARE SERVICES LTD,20/10/2022,"2,306.80",6541-Professional Services-Priv Contractor & Other Agencies,THIRD PARTY PAYMENTS,PRIVATE CONTRACTOR,REVENUE
Walsall Council,http://opendatacommunities.org/id/metropolitan-district-council/walsall ,WC143-74,31.10.2022,ADULT SOCIAL CARE,5 CARE SERVICES LTD,20/10/2022,"4,566.20",6554-Professional Services-Priv Contractor & Other Agencies,THIRD PARTY PAYMENTS,PRIVATE CONTRACTOR,REVENUE
Walsall Council,http://opendatacommunities.org/id/metropolitan-district-council/walsall ,WC143-75,31.10.2022,ADULT SOCIAL CARE,5 CARE SERVICES LTD,20/10/2022,995.40,6541-Domiciliary Care,THIRD PARTY PAYMENTS,PRIVATE CONTRACTOR,REVENUE
Walsall Council,http://opendatacommunities.org/id/metropolitan-district-council/walsall ,WC143-76,31.10.2022,ADULT SOCIAL CARE,5 CARE SERVICES LTD,25/10/2022,568.80,6541-Domiciliary Care,THIRD PARTY PAYMENTS,PRIVATE CONTRACTOR,REVENUE
Walsall Council,http://opendatacommunities.org/id/metropolitan-district-council/walsall ,WC143-77,31.10.2022,ADULT SOCIAL CARE,5 CARE SERVICES LTD,25/10/2022,497.70,6541-Domiciliary Care,THIRD PARTY PAYMENTS,PRIVATE CONTRACTOR,REVENUE
Walsall Council,http://opendatacommunities.org/id/metropolitan-district-council/walsall ,WC143-78,31.10.2022,ADULT SOCIAL CARE,5 CARE SERVICES LTD,25/10/2022,884.80,6541-Domiciliary Care,THIRD PARTY PAYMENTS,PRIVATE CONTRACTOR,REVENUE
Walsall Council,http://opendatacommunities.org/id/metropolitan-district-council/walsall ,WC143-79,31.10.2022,ADULT SOCIAL CARE,5 CARE SERVICES LTD,25/10/2022,442.40,6541-Domiciliary Care,THIRD PARTY PAYMENTS,PRIVATE CONTRACTOR,REVENUE
Walsall Council,http://opendatacommunities.org/id/metropolitan-district-council/walsall ,WC143-80,31.10.2022,ADULT SOCIAL CARE,5 CARE SERVICES LTD,25/10/2022,663.60,6541-Domiciliary Care,THIRD PARTY PAYMENTS,PRIVATE CONTRACTOR,REVENUE
Walsall Council,http://opendatacommunities.org/id/metropolitan-district-council/walsall ,WC143-81,31.10.2022,ADULT SOCIAL CARE,5 CARE SERVICES LTD,25/10/2022,645.19,6541-Domiciliary Care,THIRD PARTY PAYMENTS,PRIVATE CONTRACTOR,REVENUE
Walsall Council,http://opendatacommunities.org/id/metropolitan-district-council/walsall ,WC143-82,31.10.2022,ADULT SOCIAL CARE,5 CARE SERVICES LTD,25/10/2022,252.80,6541-Domiciliary Care,THIRD PARTY PAYMENTS,PRIVATE CONTRACTOR,REVENUE
Walsall Council,http://opendatacommunities.org/id/metropolitan-district-council/walsall ,WC143-83,31.10.2022,ADULT SOCIAL CARE,5 CARE SERVICES LTD,25/10/2022,524.08,6541-Domiciliary Care,THIRD PARTY PAYMENTS,PRIVATE CONTRACTOR,REVENUE
Walsall Council,http://opendatacommunities.org/id/metropolitan-district-council/walsall ,WC143-84,31.10.2022,ADULT SOCIAL CARE,5 CARE SERVICES LTD,25/10/2022,718.90,6541-Domiciliary Care,THIRD PARTY PAYMENTS,PRIVATE CONTRACTOR,REVENUE
Walsall Council,http://opendatacommunities.org/id/metropolitan-district-council/walsall ,WC143-85,31.10.2022,ADULT SOCIAL CARE,5 CARE SERVICES LTD,25/10/2022,331.80,6541-Domiciliary Care,THIRD PARTY PAYMENTS,PRIVATE CONTRACTOR,REVENUE
Walsall Council,http://opendatacommunities.org/id/metropolitan-district-council/walsall ,WC143-86,31.10.2022,ADULT SOCIAL CARE,5 CARE SERVICES LTD,25/10/2022,497.70,6541-Domiciliary Care,THIRD PARTY PAYMENTS,PRIVATE CONTRACTOR,REVENUE
Walsall Council,http://opendatacommunities.org/id/metropolitan-district-council/walsall ,WC143-87,31.10.2022,ADULT SOCIAL CARE,5 CARE SERVICES LTD,25/10/2022,497.70,6541-Domiciliary Care,THIRD PARTY PAYMENTS,PRIVATE CONTRACTOR,REVENUE
Walsall Council,http://opendatacommunities.org/id/metropolitan-district-council/walsall ,WC143-88,31.10.2022,ADULT SOCIAL CARE,5 CARE SERVICES LTD,25/10/2022,442.40,6541-Domiciliary Care,THIRD PARTY PAYMENTS,PRIVATE CONTRACTOR,REVENUE
Walsall Council,http://opendatacommunities.org/id/metropolitan-district-council/walsall ,WC143-89,31.10.2022,ADULT SOCIAL CARE,5 CARE SERVICES LTD,25/10/2022,288.35,6541-Domiciliary Care,THIRD PARTY PAYMENTS,PRIVATE CONTRACTOR,REVENUE
Walsall Council,http://opendatacommunities.org/id/metropolitan-district-council/walsall ,WC143-90,31.10.2022,ADULT SOCIAL CARE,5 CARE SERVICES LTD,25/10/2022,"1,216.60",6541-Domiciliary Care,THIRD PARTY PAYMENTS,PRIVATE CONTRACTOR,REVENUE
Walsall Council,http://opendatacommunities.org/id/metropolitan-district-council/walsall ,WC143-91,31.10.2022,ADULT SOCIAL CARE,5 CARE SERVICES LTD,25/10/2022,774.20,6541-Domiciliary Care,THIRD PARTY PAYMENTS,PRIVATE CONTRACTOR,REVENUE
Walsall Council,http://opendatacommunities.org/id/metropolitan-district-council/walsall ,WC143-92,31.10.2022,ADULT SOCIAL CARE,5 CARE SERVICES LTD,25/10/2022,442.40,6541-Domiciliary Care,THIRD PARTY PAYMENTS,PRIVATE CONTRACTOR,REVENUE
Walsall Council,http://opendatacommunities.org/id/metropolitan-district-council/walsall ,WC143-93,31.10.2022,ADULT SOCIAL CARE,5 CARE SERVICES LTD,25/10/2022,568.80,6541-Domiciliary Care,THIRD PARTY PAYMENTS,PRIVATE CONTRACTOR,REVENUE
Walsall Council,http://opendatacommunities.org/id/metropolitan-district-council/walsall ,WC143-94,31.10.2022,ADULT SOCIAL CARE,5 CARE SERVICES LTD,25/10/2022,331.80,6541-Domiciliary Care,THIRD PARTY PAYMENTS,PRIVATE CONTRACTOR,REVENUE
Walsall Council,http://opendatacommunities.org/id/metropolitan-district-council/walsall ,WC143-95,31.10.2022,ADULT SOCIAL CARE,5 CARE SERVICES LTD,25/10/2022,553.00,6541-Domiciliary Care,THIRD PARTY PAYMENTS,PRIVATE CONTRACTOR,REVENUE
Walsall Council,http://opendatacommunities.org/id/metropolitan-district-council/walsall ,WC143-96,31.10.2022,ADULT SOCIAL CARE,5 CARE SERVICES LTD,25/10/2022,747.96,6541-Domiciliary Care,THIRD PARTY PAYMENTS,PRIVATE CONTRACTOR,REVENUE
Walsall Council,http://opendatacommunities.org/id/metropolitan-district-council/walsall ,WC143-97,31.10.2022,ADULT SOCIAL CARE,5 CARE SERVICES LTD,25/10/2022,663.60,6541-Domiciliary Care,THIRD PARTY PAYMENTS,PRIVATE CONTRACTOR,REVENUE
Walsall Council,http://opendatacommunities.org/id/metropolitan-district-council/walsall ,WC143-98,31.10.2022,ADULT SOCIAL CARE,5 CARE SERVICES LTD,25/10/2022,645.19,6541-Domiciliary Care,THIRD PARTY PAYMENTS,PRIVATE CONTRACTOR,REVENUE
Walsall Council,http://opendatacommunities.org/id/metropolitan-district-council/walsall ,WC143-99,31.10.2022,ADULT SOCIAL CARE,5 CARE SERVICES LTD,25/10/2022,331.80,6541-Domiciliary Care,THIRD PARTY PAYMENTS,PRIVATE CONTRACTOR,REVENUE
Walsall Council,http://opendatacommunities.org/id/metropolitan-district-council/walsall ,WC143-100,31.10.2022,ADULT SOCIAL CARE,5 CARE SERVICES LTD,25/10/2022,497.70,6541-Domiciliary Care,THIRD PARTY PAYMENTS,PRIVATE CONTRACTOR,REVENUE
Walsall Council,http://opendatacommunities.org/id/metropolitan-district-council/walsall ,WC143-101,31.10.2022,ADULT SOCIAL CARE,5 CARE SERVICES LTD,25/10/2022,568.80,6541-Domiciliary Care,THIRD PARTY PAYMENTS,PRIVATE CONTRACTOR,REVENUE
Walsall Council,http://opendatacommunities.org/id/metropolitan-district-council/walsall ,WC143-102,31.10.2022,ADULT SOCIAL CARE,5 CARE SERVICES LTD,25/10/2022,758.40,6541-Domiciliary Care,THIRD PARTY PAYMENTS,PRIVATE CONTRACTOR,REVENUE
Walsall Council,http://opendatacommunities.org/id/metropolitan-district-council/walsall ,WC143-103,31.10.2022,ADULT SOCIAL CARE,5 CARE SERVICES LTD,25/10/2022,747.96,6541-Domiciliary Care,THIRD PARTY PAYMENTS,PRIVATE CONTRACTOR,REVENUE
Walsall Council,http://opendatacommunities.org/id/metropolitan-district-council/walsall ,WC143-104,31.10.2022,ADULT SOCIAL CARE,5 CARE SERVICES LTD,25/10/2022,252.80,6541-Domiciliary Care,THIRD PARTY PAYMENTS,PRIVATE CONTRACTOR,REVENUE
Walsall Council,http://opendatacommunities.org/id/metropolitan-district-council/walsall ,WC143-105,31.10.2022,ADULT SOCIAL CARE,5 CARE SERVICES LTD,25/10/2022,497.70,6541-Domiciliary Care,THIRD PARTY PAYMENTS,PRIVATE CONTRACTOR,REVENUE
Walsall Council,http://opendatacommunities.org/id/metropolitan-district-council/walsall ,WC143-106,31.10.2022,ADULT SOCIAL CARE,5 CARE SERVICES LTD,25/10/2022,884.80,6541-Domiciliary Care,THIRD PARTY PAYMENTS,PRIVATE CONTRACTOR,REVENUE
Walsall Council,http://opendatacommunities.org/id/metropolitan-district-council/walsall ,WC143-107,31.10.2022,ADULT SOCIAL CARE,5 CARE SERVICES LTD,25/10/2022,497.70,6541-Domiciliary Care,THIRD PARTY PAYMENTS,PRIVATE CONTRACTOR,REVENUE
Walsall Council,http://opendatacommunities.org/id/metropolitan-district-council/walsall ,WC143-108,31.10.2022,ADULT SOCIAL CARE,5 CARE SERVICES LTD,25/10/2022,331.80,6541-Domiciliary Care,THIRD PARTY PAYMENTS,PRIVATE CONTRACTOR,REVENUE
Walsall Council,http://opendatacommunities.org/id/metropolitan-district-council/walsall ,WC143-109,31.10.2022,ADULT SOCIAL CARE,5 CARE SERVICES LTD,25/10/2022,288.35,6541-Domiciliary Care,THIRD PARTY PAYMENTS,PRIVATE CONTRACTOR,REVENUE
Walsall Council,http://opendatacommunities.org/id/metropolitan-district-council/walsall ,WC143-110,31.10.2022,ADULT SOCIAL CARE,5 CARE SERVICES LTD,25/10/2022,524.08,6541-Domiciliary Care,THIRD PARTY PAYMENTS,PRIVATE CONTRACTOR,REVENUE
Walsall Council,http://opendatacommunities.org/id/metropolitan-district-council/walsall ,WC143-111,31.10.2022,ADULT SOCIAL CARE,5 CARE SERVICES LTD,25/10/2022,"1,216.60",6541-Domiciliary Care,THIRD PARTY PAYMENTS,PRIVATE CONTRACTOR,REVENUE
Walsall Council,http://opendatacommunities.org/id/metropolitan-district-council/walsall ,WC143-112,31.10.2022,ADULT SOCIAL CARE,5 CARE SERVICES LTD,25/10/2022,979.60,6541-Domiciliary Care,THIRD PARTY PAYMENTS,PRIVATE CONTRACTOR,REVENUE
Walsall Council,http://opendatacommunities.org/id/metropolitan-district-council/walsall ,WC143-113,31.10.2022,ADULT SOCIAL CARE,5 CARE SERVICES LTD,25/10/2022,308.10,6541-Domiciliary Care,THIRD PARTY PAYMENTS,PRIVATE CONTRACTOR,REVENUE
Walsall Council,http://opendatacommunities.org/id/metropolitan-district-council/walsall ,WC143-114,31.10.2022,ADULT SOCIAL CARE,5 CARE SERVICES LTD,25/10/2022,553.00,6541-Domiciliary Care,THIRD PARTY PAYMENTS,PRIVATE CONTRACTOR,REVENUE
Walsall Council,http://opendatacommunities.org/id/metropolitan-district-council/walsall ,WC143-115,31.10.2022,ADULT SOCIAL CARE,5 CARE SERVICES LTD,25/10/2022,442.40,6541-Domiciliary Care,THIRD PARTY PAYMENTS,PRIVATE CONTRACTOR,REVENUE
Walsall Council,http://opendatacommunities.org/id/metropolitan-district-council/walsall ,WC143-116,31.10.2022,ADULT SOCIAL CARE,5 CARE SERVICES LTD,25/10/2022,718.90,6541-Domiciliary Care,THIRD PARTY PAYMENTS,PRIVATE CONTRACTOR,REVENUE
Walsall Council,http://opendatacommunities.org/id/metropolitan-district-council/walsall ,WC143-117,31.10.2022,ADULT SOCIAL CARE,5 CARE SERVICES LTD,25/10/2022,442.40,6541-Domiciliary Care,THIRD PARTY PAYMENTS,PRIVATE CONTRACTOR,REVENUE
Walsall Council,http://opendatacommunities.org/id/metropolitan-district-council/walsall ,WC143-118,31.10.2022,ADULT SOCIAL CARE,5 CARE SERVICES LTD,25/10/2022,442.40,6541-Domiciliary Care,THIRD PARTY PAYMENTS,PRIVATE CONTRACTOR,REVENUE
Walsall Council,http://opendatacommunities.org/id/metropolitan-district-council/walsall ,WC143-119,31.10.2022,CHILDRENS,5 CARE SERVICES LTD,21/10/2022,446.60,6211-Agency Staff,DIRECT EMPLOYEES,AGENCY,REVENUE
Walsall Council,http://opendatacommunities.org/id/metropolitan-district-council/walsall ,WC143-120,31.10.2022,CHILDRENS,5 CARE SERVICES LTD,21/10/2022,255.20,6211-Agency Staff,DIRECT EMPLOYEES,AGENCY,REVENUE
Walsall Council,http://opendatacommunities.org/id/metropolitan-district-council/walsall ,WC143-121,31.10.2022,ADULT SOCIAL CARE,5 CARE SERVICES LTD,20/10/2022,"1,271.90",6554-Professional Services-Priv Contractor & Other Agencies,THIRD PARTY PAYMENTS,PRIVATE CONTRACTOR,REVENUE
Walsall Council,http://opendatacommunities.org/id/metropolitan-district-council/walsall ,WC143-122,31.10.2022,"ECONOMY, ENVIRONMENT & COMMUNITIES",A & A SERVICES WEST MIDLANDS,06/10/2022,"9,000.00",6430-Professional Fees & Services,SUPPLIES & SERVICES,SERVICES,REVENUE
Walsall Council,http://opendatacommunities.org/id/metropolitan-district-council/walsall ,WC143-123,31.10.2022,"ECONOMY, ENVIRONMENT & COMMUNITIES",A B WASTE MANAGEMENT LTD,25/10/2022,325.00,6414-Recycling & Disposal of Waste -Priv Contractor Fees,THIRD PARTY PAYMENTS,PRIVATE CONTRACTOR,REVENUE
Walsall Council,http://opendatacommunities.org/id/metropolitan-district-council/walsall ,WC143-124,31.10.2022,"ECONOMY, ENVIRONMENT & COMMUNITIES",A D T FIRE AND SECURITY PLC,14/10/2022,"1,131.79",6410-Materials,SUPPLIES & SERVICES,EQUIPMENT FURNITURE & MATERIALS,REVENUE
Walsall Council,http://opendatacommunities.org/id/metropolitan-district-council/walsall ,WC143-125,31.10.2022,CHILDRENS,A D T FIRE AND SECURITY PLC,19/10/2022,966.12,6223-Operational Maintenance,PREMISES,REPAIRS & MAINTENANCE,REVENUE
Walsall Council,http://opendatacommunities.org/id/metropolitan-district-council/walsall ,WC143-126,31.10.2022,RESOURCES AND TRANSFORMATION,A D T FIRE AND SECURITY PLC,27/10/2022,251.42,6310-Security & Alarm Maintenance,PREMISES,REPAIRS & MAINTENANCE,REVENUE
Walsall Council,http://opendatacommunities.org/id/metropolitan-district-council/walsall ,WC143-127,31.10.2022,"ECONOMY, ENVIRONMENT & COMMUNITIES",A F BLAKEMORE & SON LTD,06/10/2022,-357.85,6413-Food & Drink Supplies,SUPPLIES & SERVICES,CATERING,REVENUE
Walsall Council,http://opendatacommunities.org/id/metropolitan-district-council/walsall ,WC143-128,31.10.2022,"ECONOMY, ENVIRONMENT & COMMUNITIES",A F BLAKEMORE & SON LTD,06/10/2022,-265.34,6413-Food & Drink Supplies,SUPPLIES & SERVICES,CATERING,REVENUE
Walsall Council,http://opendatacommunities.org/id/metropolitan-district-council/walsall ,WC143-129,31.10.2022,"ECONOMY, ENVIRONMENT & COMMUNITIES",A F BLAKEMORE & SON LTD,06/10/2022,265.34,6413-Food & Drink Supplies,SUPPLIES & SERVICES,CATERING,REVENUE
Walsall Council,http://opendatacommunities.org/id/metropolitan-district-council/walsall ,WC143-130,31.10.2022,"ECONOMY, ENVIRONMENT & COMMUNITIES",A F BLAKEMORE & SON LTD,06/10/2022,357.85,6413-Food & Drink Supplies,SUPPLIES & SERVICES,CATERING,REVENUE
Walsall Council,http://opendatacommunities.org/id/metropolitan-district-council/walsall ,WC143-131,31.10.2022,"ECONOMY, ENVIRONMENT & COMMUNITIES",A F BLAKEMORE & SON LTD,06/10/2022,381.03,6413-Food & Drink Supplies,SUPPLIES & SERVICES,CATERING,REVENUE
Walsall Council,http://opendatacommunities.org/id/metropolitan-district-council/walsall ,WC143-132,31.10.2022,"ECONOMY, ENVIRONMENT & COMMUNITIES",A F BLAKEMORE & SON LTD,06/10/2022,591.22,6413-Food & Drink Supplies,SUPPLIES & SERVICES,CATERING,REVENUE
Walsall Council,http://opendatacommunities.org/id/metropolitan-district-council/walsall ,WC143-133,31.10.2022,CHILDRENS,A1 WALSALL RADIO CARS,10/10/2022,"1,540.00",6241-Hire of Vehicle with Driver,TRANSPORT,DIRECT TRANSPORT COSTS,REVENUE
Walsall Council,http://opendatacommunities.org/id/metropolitan-district-council/walsall ,WC143-134,31.10.2022,CHILDRENS,A1 WALSALL RADIO CARS,10/10/2022,990.00,6241-Hire of Vehicle with Driver,TRANSPORT,DIRECT TRANSPORT COSTS,REVENUE
Walsall Council,http://opendatacommunities.org/id/metropolitan-district-council/walsall ,WC143-135,31.10.2022,CHILDRENS,A1 WALSALL RADIO CARS,10/10/2022,913.00,6241-Hire of Vehicle with Driver,TRANSPORT,DIRECT TRANSPORT COSTS,REVENUE
Walsall Council,http://opendatacommunities.org/id/metropolitan-district-council/walsall ,WC143-136,31.10.2022,CHILDRENS,A1 WALSALL RADIO CARS,10/10/2022,"1,800.00",6241-Hire of Vehicle with Driver,TRANSPORT,DIRECT TRANSPORT COSTS,REVENUE
Walsall Council,http://opendatacommunities.org/id/metropolitan-district-council/walsall ,WC143-137,31.10.2022,CHILDRENS,A1 WALSALL RADIO CARS,10/10/2022,972.00,6241-Hire of Vehicle with Driver,TRANSPORT,DIRECT TRANSPORT COSTS,REVENUE
Walsall Council,http://opendatacommunities.org/id/metropolitan-district-council/walsall ,WC143-138,31.10.2022,"ECONOMY, ENVIRONMENT & COMMUNITIES",AAINA COMMUNITY HUB,24/10/2022,"1,747.03",6313-Grants to Other Orgs,SUPPLIES & SERVICES,GRANTS (EXP) & SUBSCRIPTIONS,REVENUE
Walsall Council,http://opendatacommunities.org/id/metropolitan-district-council/walsall ,WC143-139,31.10.2022,"ECONOMY, ENVIRONMENT & COMMUNITIES",AAINA COMMUNITY HUB,25/10/2022,"1,639.00",6430-Grants to Other Orgs,SUPPLIES & SERVICES,GRANTS (EXP) & SUBSCRIPTIONS,REVENUE
Walsall Council,http://opendatacommunities.org/id/metropolitan-district-council/walsall ,WC143-140,31.10.2022,CHILDRENS,AAINA COMMUNITY HUB,14/10/2022,"7,500.00",6413-Professional Services-Priv Contractor & Other Agencies,THIRD PARTY PAYMENTS,PRIVATE CONTRACTOR,REVENUE
Walsall Council,http://opendatacommunities.org/id/metropolitan-district-council/walsall ,WC143-141,31.10.2022,"ECONOMY, ENVIRONMENT & COMMUNITIES",AAINA COMMUNITY HUB,05/10/2022,739.92,6313-Grants to Other Orgs,SUPPLIES & SERVICES,GRANTS (EXP) & SUBSCRIPTIONS,REVENUE
Walsall Council,http://opendatacommunities.org/id/metropolitan-district-council/walsall ,WC143-142,31.10.2022,"ECONOMY, ENVIRONMENT & COMMUNITIES",AAINA COMMUNITY HUB,05/10/2022,566.89,6313-Grants to Other Orgs,SUPPLIES & SERVICES,GRANTS (EXP) & SUBSCRIPTIONS,REVENUE
Walsall Council,http://opendatacommunities.org/id/metropolitan-district-council/walsall ,WC143-143,31.10.2022,"ECONOMY, ENVIRONMENT & COMMUNITIES",AAINA COMMUNITY HUB,05/10/2022,683.00,6313-Grants to Other Orgs,SUPPLIES & SERVICES,GRANTS (EXP) & SUBSCRIPTIONS,REVENUE
Walsall Council,http://opendatacommunities.org/id/metropolitan-district-council/walsall ,WC143-144,31.10.2022,CHILDRENS,ABACUS FOSTERING LTD,03/10/2022,"2,920.92",6223-Independent Foster Care-Oth Agency Provision,THIRD PARTY PAYMENTS,PRIVATE CONTRACTOR,REVENUE
Walsall Council,http://opendatacommunities.org/id/metropolitan-district-council/walsall ,WC143-145,31.10.2022,CHILDRENS,ABACUS FOSTERING LTD,03/10/2022,"2,763.20",6223-Independent Foster Care-Oth Agency Provision,THIRD PARTY PAYMENTS,PRIVATE CONTRACTOR,REVENUE
Walsall Council,http://opendatacommunities.org/id/metropolitan-district-council/walsall ,WC143-146,31.10.2022,CHILDRENS,ABACUS FOSTERING LTD,28/10/2022,"2,955.20",6223-Independent Foster Care-Oth Agency Provision,THIRD PARTY PAYMENTS,PRIVATE CONTRACTOR,REVENUE
Walsall Council,http://opendatacommunities.org/id/metropolitan-district-council/walsall ,WC143-147,31.10.2022,CHILDRENS,ABACUS FOSTERING LTD,28/10/2022,"2,763.20",6223-Independent Foster Care-Oth Agency Provision,THIRD PARTY PAYMENTS,PRIVATE CONTRACTOR,REVENUE
Walsall Council,http://opendatacommunities.org/id/metropolitan-district-council/walsall ,WC143-148,31.10.2022,ADULT SOCIAL CARE,ABBEY COURT NURSING & RESIDEN,25/10/2022,"2,606.04",6541-Residential EMI,THIRD PARTY PAYMENTS,PRIVATE CONTRACTOR,REVENUE
Walsall Council,http://opendatacommunities.org/id/metropolitan-district-council/walsall ,WC143-149,31.10.2022,ADULT SOCIAL CARE,ABBEY COURT NURSING & RESIDEN,25/10/2022,"2,366.04",6541-Residential EMI,THIRD PARTY PAYMENTS,PRIVATE CONTRACTOR,REVENUE
Walsall Council,http://opendatacommunities.org/id/metropolitan-district-council/walsall ,WC143-150,31.10.2022,ADULT SOCIAL CARE,ABBEY HEALTHCARE HOMES LTD,25/10/2022,"3,604.84",6541-Residential,THIRD PARTY PAYMENTS,PRIVATE CONTRACTOR,REVENUE
Walsall Council,http://opendatacommunities.org/id/metropolitan-district-council/walsall ,WC143-151,31.10.2022,ADULT SOCIAL CARE,ABBEY HEALTHCARE HOMES LTD,25/10/2022,"3,180.76",6541-Residential,THIRD PARTY PAYMENTS,PRIVATE CONTRACTOR,REVENUE
Walsall Council,http://opendatacommunities.org/id/metropolitan-district-council/walsall ,WC143-152,31.10.2022,ADULT SOCIAL CARE,ABBEY HEALTHCARE HOMES LTD,25/10/2022,"2,432.32",6541-Residential,THIRD PARTY PAYMENTS,PRIVATE CONTRACTOR,REVENUE
Walsall Council,http://opendatacommunities.org/id/metropolitan-district-council/walsall ,WC143-153,31.10.2022,ADULT SOCIAL CARE,ABBEY HEALTHCARE HOMES LTD,25/10/2022,"3,180.76",6541-Residential,THIRD PARTY PAYMENTS,PRIVATE CONTRACTOR,REVENUE
Walsall Council,http://opendatacommunities.org/id/metropolitan-district-council/walsall ,WC143-154,31.10.2022,CHILDRENS,ABC DAY NURSERY (WILLENHALL) LIMITED,17/10/2022,"6,867.00",1184-Other-Grants to Other Orgs,SUPPLIES & SERVICES,GRANTS (EXP) & SUBSCRIPTIONS,REVENUE
Walsall Council,http://opendatacommunities.org/id/metropolitan-district-council/walsall ,WC143-155,31.10.2022,CHILDRENS,ABC DAY NURSERY (WILLENHALL) LIMITED,17/10/2022,"7,308.00",1184-Other-Grants to Other Orgs,SUPPLIES & SERVICES,GRANTS (EXP) & SUBSCRIPTIONS,REVENUE
Walsall Council,http://opendatacommunities.org/id/metropolitan-district-council/walsall ,WC143-156,31.10.2022,"ECONOMY, ENVIRONMENT & COMMUNITIES",ABC SKIP HIRE,24/10/2022,266.67,6414-Hire of Plant,TRANSPORT,DIRECT TRANSPORT COSTS,REVENUE
Walsall Council,http://opendatacommunities.org/id/metropolitan-district-council/walsall ,WC143-157,31.10.2022,"ECONOMY, ENVIRONMENT & COMMUNITIES",ABC SKIP HIRE,25/10/2022,533.34,6414-Hire of Plant,TRANSPORT,DIRECT TRANSPORT COSTS,REVENUE
Walsall Council,http://opendatacommunities.org/id/metropolitan-district-council/walsall ,WC143-158,31.10.2022,ADULT SOCIAL CARE,REDACTED,05/10/2022,"2,163.84",6541-Direct Payment,THIRD PARTY PAYMENTS,PRIVATE CONTRACTOR,REVENUE
Walsall Council,http://opendatacommunities.org/id/metropolitan-district-council/walsall ,WC143-159,31.10.2022,ADULT SOCIAL CARE,ABILITY HEALTHCARE LTD,20/10/2022,284.40,6541-Domiciliary Care,THIRD PARTY PAYMENTS,PRIVATE CONTRACTOR,REVENUE
Walsall Council,http://opendatacommunities.org/id/metropolitan-district-council/walsall ,WC143-160,31.10.2022,ADULT SOCIAL CARE,ABILITY HEALTHCARE LTD,20/10/2022,331.80,6541-Domiciliary Care,THIRD PARTY PAYMENTS,PRIVATE CONTRACTOR,REVENUE
Walsall Council,http://opendatacommunities.org/id/metropolitan-district-council/walsall ,WC143-161,31.10.2022,ADULT SOCIAL CARE,ABILITY HEALTHCARE LTD,20/10/2022,"2,212.00",6541-Domiciliary Care,THIRD PARTY PAYMENTS,PRIVATE CONTRACTOR,REVENUE
Walsall Council,http://opendatacommunities.org/id/metropolitan-district-council/walsall ,WC143-162,31.10.2022,ADULT SOCIAL CARE,ABILITY HEALTHCARE LTD,20/10/2022,"2,359.56",6541-Domiciliary Care,THIRD PARTY PAYMENTS,PRIVATE CONTRACTOR,REVENUE
Walsall Council,http://opendatacommunities.org/id/metropolitan-district-council/walsall ,WC143-163,31.10.2022,ADULT SOCIAL CARE,ABILITY HEALTHCARE LTD,20/10/2022,"1,769.60",6541-Domiciliary Care,THIRD PARTY PAYMENTS,PRIVATE CONTRACTOR,REVENUE
Walsall Council,http://opendatacommunities.org/id/metropolitan-district-council/walsall ,WC143-164,31.10.2022,ADULT SOCIAL CARE,ABILITY HEALTHCARE LTD,20/10/2022,"1,990.80",6541-Domiciliary Care,THIRD PARTY PAYMENTS,PRIVATE CONTRACTOR,REVENUE
Walsall Council,http://opendatacommunities.org/id/metropolitan-district-council/walsall ,WC143-165,31.10.2022,ADULT SOCIAL CARE,ABILITY HEALTHCARE LTD,20/10/2022,884.80,6541-Domiciliary Care,THIRD PARTY PAYMENTS,PRIVATE CONTRACTOR,REVENUE
Walsall Council,http://opendatacommunities.org/id/metropolitan-district-council/walsall ,WC143-166,31.10.2022,ADULT SOCIAL CARE,ABILITY HEALTHCARE LTD,20/10/2022,900.60,6541-Domiciliary Care,THIRD PARTY PAYMENTS,PRIVATE CONTRACTOR,REVENUE
Walsall Council,http://opendatacommunities.org/id/metropolitan-district-council/walsall ,WC143-167,31.10.2022,ADULT SOCIAL CARE,ABILITY HEALTHCARE LTD,20/10/2022,995.40,6541-Domiciliary Care,THIRD PARTY PAYMENTS,PRIVATE CONTRACTOR,REVENUE
Walsall Council,http://opendatacommunities.org/id/metropolitan-district-council/walsall ,WC143-168,31.10.2022,ADULT SOCIAL CARE,ABILITY HEALTHCARE LTD,20/10/2022,497.70,6541-Domiciliary Care,THIRD PARTY PAYMENTS,PRIVATE CONTRACTOR,REVENUE
Walsall Council,http://opendatacommunities.org/id/metropolitan-district-council/walsall ,WC143-169,31.10.2022,ADULT SOCIAL CARE,ABILITY HEALTHCARE LTD,20/10/2022,"1,769.60",6541-Domiciliary Care,THIRD PARTY PAYMENTS,PRIVATE CONTRACTOR,REVENUE
Walsall Council,http://opendatacommunities.org/id/metropolitan-district-council/walsall ,WC143-170,31.10.2022,ADULT SOCIAL CARE,ABILITY HEALTHCARE LTD,20/10/2022,"1,548.40",6541-Domiciliary Care,THIRD PARTY PAYMENTS,PRIVATE CONTRACTOR,REVENUE
Walsall Council,http://opendatacommunities.org/id/metropolitan-district-council/walsall ,WC143-171,31.10.2022,ADULT SOCIAL CARE,ABILITY HEALTHCARE LTD,20/10/2022,"1,990.80",6541-Domiciliary Care,THIRD PARTY PAYMENTS,PRIVATE CONTRACTOR,REVENUE
Walsall Council,http://opendatacommunities.org/id/metropolitan-district-council/walsall ,WC143-172,31.10.2022,ADULT SOCIAL CARE,ABILITY HEALTHCARE LTD,20/10/2022,995.40,6541-Domiciliary Care,THIRD PARTY PAYMENTS,PRIVATE CONTRACTOR,REVENUE
Walsall Council,http://opendatacommunities.org/id/metropolitan-district-council/walsall ,WC143-173,31.10.2022,ADULT SOCIAL CARE,ABILITY HEALTHCARE LTD,20/10/2022,368.76,6541-Domiciliary Care,THIRD PARTY PAYMENTS,PRIVATE CONTRACTOR,REVENUE
Walsall Council,http://opendatacommunities.org/id/metropolitan-district-council/walsall ,WC143-174,31.10.2022,ADULT SOCIAL CARE,ABILITY HEALTHCARE LTD,20/10/2022,"1,453.60",6541-Domiciliary Care,THIRD PARTY PAYMENTS,PRIVATE CONTRACTOR,REVENUE
Walsall Council,http://opendatacommunities.org/id/metropolitan-district-council/walsall ,WC143-175,31.10.2022,ADULT SOCIAL CARE,ABILITY HEALTHCARE LTD,20/10/2022,497.70,6541-Domiciliary Care,THIRD PARTY PAYMENTS,PRIVATE CONTRACTOR,REVENUE
Walsall Council,http://opendatacommunities.org/id/metropolitan-district-council/walsall ,WC143-176,31.10.2022,ADULT SOCIAL CARE,ABILITY HEALTHCARE LTD,20/10/2022,"1,011.68",6541-Domiciliary Care,THIRD PARTY PAYMENTS,PRIVATE CONTRACTOR,REVENUE
Walsall Council,http://opendatacommunities.org/id/metropolitan-district-council/walsall ,WC143-177,31.10.2022,ADULT SOCIAL CARE,ABILITY HEALTHCARE LTD,20/10/2022,"2,306.80",6541-Domiciliary Care,THIRD PARTY PAYMENTS,PRIVATE CONTRACTOR,REVENUE
Walsall Council,http://opendatacommunities.org/id/metropolitan-district-council/walsall ,WC143-178,31.10.2022,ADULT SOCIAL CARE,ABILITY HEALTHCARE LTD,20/10/2022,821.60,6541-Domiciliary Care,THIRD PARTY PAYMENTS,PRIVATE CONTRACTOR,REVENUE
Walsall Council,http://opendatacommunities.org/id/metropolitan-district-council/walsall ,WC143-179,31.10.2022,ADULT SOCIAL CARE,ABILITY HEALTHCARE LTD,20/10/2022,"1,769.60",6541-Domiciliary Care,THIRD PARTY PAYMENTS,PRIVATE CONTRACTOR,REVENUE
Walsall Council,http://opendatacommunities.org/id/metropolitan-district-council/walsall ,WC143-180,31.10.2022,ADULT SOCIAL CARE,ABILITY HEALTHCARE LTD,20/10/2022,"1,769.60",6541-Domiciliary Care,THIRD PARTY PAYMENTS,PRIVATE CONTRACTOR,REVENUE
Walsall Council,http://opendatacommunities.org/id/metropolitan-district-council/walsall ,WC143-181,31.10.2022,ADULT SOCIAL CARE,ABILITY HEALTHCARE LTD,20/10/2022,884.80,6541-Domiciliary Care,THIRD PARTY PAYMENTS,PRIVATE CONTRACTOR,REVENUE
Walsall Council,http://opendatacommunities.org/id/metropolitan-district-council/walsall ,WC143-182,31.10.2022,ADULT SOCIAL CARE,ABILITY HEALTHCARE LTD,20/10/2022,"1,990.80",6541-Domiciliary Care,THIRD PARTY PAYMENTS,PRIVATE CONTRACTOR,REVENUE
Walsall Council,http://opendatacommunities.org/id/metropolitan-district-council/walsall ,WC143-183,31.10.2022,ADULT SOCIAL CARE,ABILITY HEALTHCARE LTD,20/10/2022,"1,990.80",6541-Domiciliary Care,THIRD PARTY PAYMENTS,PRIVATE CONTRACTOR,REVENUE
Walsall Council,http://opendatacommunities.org/id/metropolitan-district-council/walsall ,WC143-184,31.10.2022,ADULT SOCIAL CARE,ABILITY HEALTHCARE LTD,20/10/2022,387.10,6541-Domiciliary Care,THIRD PARTY PAYMENTS,PRIVATE CONTRACTOR,REVENUE
Walsall Council,http://opendatacommunities.org/id/metropolitan-district-council/walsall ,WC143-185,31.10.2022,ADULT SOCIAL CARE,ABILITY HEALTHCARE LTD,20/10/2022,"1,137.60",6541-Domiciliary Care,THIRD PARTY PAYMENTS,PRIVATE CONTRACTOR,REVENUE
Walsall Council,http://opendatacommunities.org/id/metropolitan-district-council/walsall ,WC143-186,31.10.2022,ADULT SOCIAL CARE,ABILITY HEALTHCARE LTD,20/10/2022,"1,769.60",6541-Domiciliary Care,THIRD PARTY PAYMENTS,PRIVATE CONTRACTOR,REVENUE
Walsall Council,http://opendatacommunities.org/id/metropolitan-district-council/walsall ,WC143-187,31.10.2022,ADULT SOCIAL CARE,ABILITY HEALTHCARE LTD,20/10/2022,995.40,6541-Domiciliary Care,THIRD PARTY PAYMENTS,PRIVATE CONTRACTOR,REVENUE
Walsall Council,http://opendatacommunities.org/id/metropolitan-district-council/walsall ,WC143-188,31.10.2022,ADULT SOCIAL CARE,ABILITY HEALTHCARE LTD,20/10/2022,432.14,6541-Domiciliary Care,THIRD PARTY PAYMENTS,PRIVATE CONTRACTOR,REVENUE
Walsall Council,http://opendatacommunities.org/id/metropolitan-district-council/walsall ,WC143-189,31.10.2022,ADULT SOCIAL CARE,ABILITY HEALTHCARE LTD,20/10/2022,"1,622.32",6541-Domiciliary Care,THIRD PARTY PAYMENTS,PRIVATE CONTRACTOR,REVENUE
Walsall Council,http://opendatacommunities.org/id/metropolitan-district-council/walsall ,WC143-190,31.10.2022,ADULT SOCIAL CARE,ABILITY HEALTHCARE LTD,20/10/2022,458.20,6541-Domiciliary Care,THIRD PARTY PAYMENTS,PRIVATE CONTRACTOR,REVENUE
Walsall Council,http://opendatacommunities.org/id/metropolitan-district-council/walsall ,WC143-191,31.10.2022,ADULT SOCIAL CARE,ABILITY HEALTHCARE LTD,20/10/2022,"1,179.92",6541-Domiciliary Care,THIRD PARTY PAYMENTS,PRIVATE CONTRACTOR,REVENUE
Walsall Council,http://opendatacommunities.org/id/metropolitan-district-council/walsall ,WC143-192,31.10.2022,ADULT SOCIAL CARE,ABILITY HEALTHCARE LTD,20/10/2022,"1,769.60",6541-Domiciliary Care,THIRD PARTY PAYMENTS,PRIVATE CONTRACTOR,REVENUE
Walsall Council,http://opendatacommunities.org/id/metropolitan-district-council/walsall ,WC143-193,31.10.2022,ADULT SOCIAL CARE,ABILITY HEALTHCARE LTD,20/10/2022,"1,106.00",6541-Domiciliary Care,THIRD PARTY PAYMENTS,PRIVATE CONTRACTOR,REVENUE
Walsall Council,http://opendatacommunities.org/id/metropolitan-district-council/walsall ,WC143-194,31.10.2022,ADULT SOCIAL CARE,ABILITY HEALTHCARE LTD,20/10/2022,"1,903.90",6541-Domiciliary Care,THIRD PARTY PAYMENTS,PRIVATE CONTRACTOR,REVENUE
Walsall Council,http://opendatacommunities.org/id/metropolitan-district-council/walsall ,WC143-195,31.10.2022,ADULT SOCIAL CARE,ABILITY HEALTHCARE LTD,20/10/2022,"1,990.80",6541-Domiciliary Care,THIRD PARTY PAYMENTS,PRIVATE CONTRACTOR,REVENUE
Walsall Council,http://opendatacommunities.org/id/metropolitan-district-council/walsall ,WC143-196,31.10.2022,ADULT SOCIAL CARE,ABILITY HEALTHCARE LTD,20/10/2022,797.90,6554-Professional Services-Priv Contractor & Other Agencies,THIRD PARTY PAYMENTS,PRIVATE CONTRACTOR,REVENUE
Walsall Council,http://opendatacommunities.org/id/metropolitan-district-council/walsall ,WC143-197,31.10.2022,ADULT SOCIAL CARE,ABILITY HEALTHCARE LTD,20/10/2022,"1,137.60",6541-Domiciliary Care,THIRD PARTY PAYMENTS,PRIVATE CONTRACTOR,REVENUE
Walsall Council,http://opendatacommunities.org/id/metropolitan-district-council/walsall ,WC143-198,31.10.2022,ADULT SOCIAL CARE,ABILITY HEALTHCARE LTD,20/10/2022,"1,777.50",6541-Domiciliary Care,THIRD PARTY PAYMENTS,PRIVATE CONTRACTOR,REVENUE
Walsall Council,http://opendatacommunities.org/id/metropolitan-district-council/walsall ,WC143-199,31.10.2022,ADULT SOCIAL CARE,ABILITY HEALTHCARE LTD,20/10/2022,"1,414.10",6541-Domiciliary Care,THIRD PARTY PAYMENTS,PRIVATE CONTRACTOR,REVENUE
Walsall Council,http://opendatacommunities.org/id/metropolitan-district-council/walsall ,WC143-200,31.10.2022,ADULT SOCIAL CARE,ABILITY HEALTHCARE LTD,20/10/2022,"2,844.00",6554-Professional Services-Priv Contractor & Other Agencies,THIRD PARTY PAYMENTS,PRIVATE CONTRACTOR,REVENUE
Walsall Council,http://opendatacommunities.org/id/metropolitan-district-council/walsall ,WC143-201,31.10.2022,ADULT SOCIAL CARE,ABILITY HEALTHCARE LTD,20/10/2022,513.50,6554-Professional Services-Priv Contractor & Other Agencies,THIRD PARTY PAYMENTS,PRIVATE CONTRACTOR,REVENUE
Walsall Council,http://opendatacommunities.org/id/metropolitan-district-council/walsall ,WC143-202,31.10.2022,ADULT SOCIAL CARE,ABILITY HEALTHCARE LTD,20/10/2022,316.00,6554-Professional Services-Priv Contractor & Other Agencies,THIRD PARTY PAYMENTS,PRIVATE CONTRACTOR,REVENUE
Walsall Council,http://opendatacommunities.org/id/metropolitan-district-council/walsall ,WC143-203,31.10.2022,ADULT SOCIAL CARE,ABILITY HEALTHCARE LTD,20/10/2022,-679.40,6541-Domiciliary Care,THIRD PARTY PAYMENTS,PRIVATE CONTRACTOR,REVENUE
Walsall Council,http://opendatacommunities.org/id/metropolitan-district-council/walsall ,WC143-204,31.10.2022,CHILDRENS,ABLEWELL CARS,10/10/2022,662.04,6241-Hire of Vehicle with Driver,TRANSPORT,DIRECT TRANSPORT COSTS,REVENUE
Walsall Council,http://opendatacommunities.org/id/metropolitan-district-council/walsall ,WC143-205,31.10.2022,CHILDRENS,ABLEWELL CARS,10/10/2022,"1,164.80",6241-Hire of Vehicle with Driver,TRANSPORT,DIRECT TRANSPORT COSTS,REVENUE
Walsall Council,http://opendatacommunities.org/id/metropolitan-district-council/walsall ,WC143-206,31.10.2022,CHILDRENS,ABLEWELL CARS,10/10/2022,874.20,6241-Hire of Vehicle with Driver,TRANSPORT,DIRECT TRANSPORT COSTS,REVENUE
Walsall Council,http://opendatacommunities.org/id/metropolitan-district-council/walsall ,WC143-207,31.10.2022,CHILDRENS,ABLEWELL CARS,10/10/2022,"1,104.50",6241-Hire of Vehicle with Driver,TRANSPORT,DIRECT TRANSPORT COSTS,REVENUE
Walsall Council,http://opendatacommunities.org/id/metropolitan-district-council/walsall ,WC143-208,31.10.2022,CHILDRENS,ABLEWELL CARS,10/10/2022,821.60,6241-Hire of Vehicle with Driver,TRANSPORT,DIRECT TRANSPORT COSTS,REVENUE
Walsall Council,http://opendatacommunities.org/id/metropolitan-district-council/walsall ,WC143-209,31.10.2022,CHILDRENS,ABLEWELL CARS,10/10/2022,726.00,6241-Hire of Vehicle with Driver,TRANSPORT,DIRECT TRANSPORT COSTS,REVENUE
Walsall Council,http://opendatacommunities.org/id/metropolitan-district-council/walsall ,WC143-210,31.10.2022,CHILDRENS,ABS TAXIS (ALDRIDGE),10/10/2022,"1,179.10",6241-Hire of Vehicle with Driver,TRANSPORT,DIRECT TRANSPORT COSTS,REVENUE
Walsall Council,http://opendatacommunities.org/id/metropolitan-district-council/walsall ,WC143-211,31.10.2022,CHILDRENS,ABS TAXIS (ALDRIDGE),10/10/2022,"1,005.60",6241-Hire of Vehicle with Driver,TRANSPORT,DIRECT TRANSPORT COSTS,REVENUE
Walsall Council,http://opendatacommunities.org/id/metropolitan-district-council/walsall ,WC143-212,31.10.2022,CHILDRENS,ABS TAXIS (ALDRIDGE),10/10/2022,"1,085.70",6241-Hire of Vehicle with Driver,TRANSPORT,DIRECT TRANSPORT COSTS,REVENUE
Walsall Council,http://opendatacommunities.org/id/metropolitan-district-council/walsall ,WC143-213,31.10.2022,ADULT SOCIAL CARE,ABSOLUTE HEALTHCARE SWAN HOUSE LTD,25/10/2022,"2,594.04",6541-Residential EMI,THIRD PARTY PAYMENTS,PRIVATE CONTRACTOR,REVENUE
Walsall Council,http://opendatacommunities.org/id/metropolitan-district-council/walsall ,WC143-214,31.10.2022,ADULT SOCIAL CARE,ABSOLUTE HEALTHCARE SWAN HOUSE LTD,25/10/2022,"2,135.40",6541-Residential,THIRD PARTY PAYMENTS,PRIVATE CONTRACTOR,REVENUE
Walsall Council,http://opendatacommunities.org/id/metropolitan-district-council/walsall ,WC143-215,31.10.2022,ADULT SOCIAL CARE,ABSOLUTE HEALTHCARE SWAN HOUSE LTD,25/10/2022,"2,366.04",6541-Residential EMI,THIRD PARTY PAYMENTS,PRIVATE CONTRACTOR,REVENUE
Walsall Council,http://opendatacommunities.org/id/metropolitan-district-council/walsall ,WC143-216,31.10.2022,ADULT SOCIAL CARE,ABSOLUTE HEALTHCARE SWAN HOUSE LTD,25/10/2022,"2,366.04",6541-Residential EMI,THIRD PARTY PAYMENTS,PRIVATE CONTRACTOR,REVENUE
Walsall Council,http://opendatacommunities.org/id/metropolitan-district-council/walsall ,WC143-217,31.10.2022,ADULT SOCIAL CARE,ABSOLUTE HEALTHCARE SWAN HOUSE LTD,25/10/2022,"2,095.40",6541-Residential,THIRD PARTY PAYMENTS,PRIVATE CONTRACTOR,REVENUE
Walsall Council,http://opendatacommunities.org/id/metropolitan-district-council/walsall ,WC143-218,31.10.2022,ADULT SOCIAL CARE,ABSOLUTE HEALTHCARE SWAN HOUSE LTD,25/10/2022,"2,095.40",6541-Residential,THIRD PARTY PAYMENTS,PRIVATE CONTRACTOR,REVENUE
Walsall Council,http://opendatacommunities.org/id/metropolitan-district-council/walsall ,WC143-219,31.10.2022,ADULT SOCIAL CARE,ABSOLUTE HEALTHCARE SWAN HOUSE LTD,25/10/2022,"3,000.00",6554-Professional Services-Priv Contractor & Other Agencies,THIRD PARTY PAYMENTS,PRIVATE CONTRACTOR,REVENUE
Walsall Council,http://opendatacommunities.org/id/metropolitan-district-council/walsall ,WC143-220,31.10.2022,ADULT SOCIAL CARE,ABSOLUTE HEALTHCARE SWAN HOUSE LTD,25/10/2022,"2,095.40",6541-Residential,THIRD PARTY PAYMENTS,PRIVATE CONTRACTOR,REVENUE
Walsall Council,http://opendatacommunities.org/id/metropolitan-district-council/walsall ,WC143-221,31.10.2022,ADULT SOCIAL CARE,ABSOLUTE HEALTHCARE SWAN HOUSE LTD,25/10/2022,"2,366.04",6541-Residential EMI,THIRD PARTY PAYMENTS,PRIVATE CONTRACTOR,REVENUE
Walsall Council,http://opendatacommunities.org/id/metropolitan-district-council/walsall ,WC143-222,31.10.2022,ADULT SOCIAL CARE,ABSOLUTE HEALTHCARE SWAN HOUSE LTD,25/10/2022,"2,235.40",6541-Residential,THIRD PARTY PAYMENTS,PRIVATE CONTRACTOR,REVENUE
Walsall Council,http://opendatacommunities.org/id/metropolitan-district-council/walsall ,WC143-223,31.10.2022,ADULT SOCIAL CARE,ABSOLUTE HEALTHCARE SWAN HOUSE LTD,25/10/2022,"2,135.40",6541-Residential,THIRD PARTY PAYMENTS,PRIVATE CONTRACTOR,REVENUE
Walsall Council,http://opendatacommunities.org/id/metropolitan-district-council/walsall ,WC143-224,31.10.2022,ADULT SOCIAL CARE,ABSOLUTE HEALTHCARE SWAN HOUSE LTD,25/10/2022,"2,095.40",6541-Residential,THIRD PARTY PAYMENTS,PRIVATE CONTRACTOR,REVENUE
Walsall Council,http://opendatacommunities.org/id/metropolitan-district-council/walsall ,WC143-225,31.10.2022,ADULT SOCIAL CARE,ABSOLUTE HEALTHCARE SWAN HOUSE LTD,25/10/2022,"2,095.40",6541-Residential,THIRD PARTY PAYMENTS,PRIVATE CONTRACTOR,REVENUE
Walsall Council,http://opendatacommunities.org/id/metropolitan-district-council/walsall ,WC143-226,31.10.2022,ADULT SOCIAL CARE,ABSOLUTE HEALTHCARE SWAN HOUSE LTD,25/10/2022,"2,366.04",6541-Residential EMI,THIRD PARTY PAYMENTS,PRIVATE CONTRACTOR,REVENUE
Walsall Council,http://opendatacommunities.org/id/metropolitan-district-council/walsall ,WC143-227,31.10.2022,ADULT SOCIAL CARE,ABSOLUTE HEALTHCARE SWAN HOUSE LTD,25/10/2022,"2,095.40",6541-Residential,THIRD PARTY PAYMENTS,PRIVATE CONTRACTOR,REVENUE
Walsall Council,http://opendatacommunities.org/id/metropolitan-district-council/walsall ,WC143-228,31.10.2022,ADULT SOCIAL CARE,ABSOLUTE HEALTHCARE SWAN HOUSE LTD,25/10/2022,"2,366.04",6541-Residential EMI,THIRD PARTY PAYMENTS,PRIVATE CONTRACTOR,REVENUE
Walsall Council,http://opendatacommunities.org/id/metropolitan-district-council/walsall ,WC143-229,31.10.2022,ADULT SOCIAL CARE,ABSOLUTE HEALTHCARE SWAN HOUSE LTD,20/10/2022,"1,776.72",6541-Nursing EMI,THIRD PARTY PAYMENTS,PRIVATE CONTRACTOR,REVENUE
Walsall Council,http://opendatacommunities.org/id/metropolitan-district-council/walsall ,WC143-230,31.10.2022,ADULT SOCIAL CARE,ABSOLUTE HEALTHCARE SWAN HOUSE LTD,20/10/2022,"1,183.00",6541-Residential EMI,THIRD PARTY PAYMENTS,PRIVATE CONTRACTOR,REVENUE
Walsall Council,http://opendatacommunities.org/id/metropolitan-district-council/walsall ,WC143-231,31.10.2022,CHILDRENS,ABU BAKR NURSERY,17/10/2022,"17,862.38",1184-Other-Grants to Other Orgs,SUPPLIES & SERVICES,GRANTS (EXP) & SUBSCRIPTIONS,REVENUE
Walsall Council,http://opendatacommunities.org/id/metropolitan-district-council/walsall ,WC143-232,31.10.2022,CHILDRENS,ABU BAKR NURSERY,04/10/2022,640.00,1184-Transfer Payments-Other Schoolchildren/Student Related Items,TRANSFER PAYMENTS,SCHOOLCHILDREN/STUDENTS,REVENUE
Walsall Council,http://opendatacommunities.org/id/metropolitan-district-council/walsall ,WC143-233,31.10.2022,CHILDRENS,ABU BAKR NURSERY,17/10/2022,"7,725.60",1184-Other-Grants to Other Orgs,SUPPLIES & SERVICES,GRANTS (EXP) & SUBSCRIPTIONS,REVENUE
Walsall Council,http://opendatacommunities.org/id/metropolitan-district-council/walsall ,WC143-234,31.10.2022,CHILDRENS,ACCALIA CARE SERVICES LTD,03/10/2022,"20,960.00",6223-External Residential Care-Oth Agency Provision,THIRD PARTY PAYMENTS,PRIVATE CONTRACTOR,REVENUE
Walsall Council,http://opendatacommunities.org/id/metropolitan-district-council/walsall ,WC143-235,31.10.2022,CHILDRENS,ACCALIA CARE SERVICES LTD,28/10/2022,"20,960.00",6223-External Residential Care-Oth Agency Provision,THIRD PARTY PAYMENTS,PRIVATE CONTRACTOR,REVENUE
Walsall Council,http://opendatacommunities.org/id/metropolitan-district-council/walsall ,WC143-236,31.10.2022,CHILDRENS,ACCESS UK LTD ,24/10/2022,"19,889.66",6240-Fees & Licences,SUPPLIES & SERVICES,SERVICES,REVENUE
Walsall Council,http://opendatacommunities.org/id/metropolitan-district-council/walsall ,WC143-237,31.10.2022,ADULT SOCIAL CARE,ACCESS UK LTD ,18/10/2022,"18,315.00",6551-Professional Fees & Services,SUPPLIES & SERVICES,SERVICES,REVENUE
Walsall Council,http://opendatacommunities.org/id/metropolitan-district-council/walsall ,WC143-238,31.10.2022,ADULT SOCIAL CARE,ACCOMPLISH GROUP LTD,25/10/2022,"7,912.44",6541-Residential,THIRD PARTY PAYMENTS,PRIVATE CONTRACTOR,REVENUE
Walsall Council,http://opendatacommunities.org/id/metropolitan-district-council/walsall ,WC143-239,31.10.2022,ADULT SOCIAL CARE,ACCORD HOUSING ASSOCIATION LIMITED - HOBS MEADOW,25/10/2022,"4,776.84",6541-Residential,THIRD PARTY PAYMENTS,PRIVATE CONTRACTOR,REVENUE
Walsall Council,http://opendatacommunities.org/id/metropolitan-district-council/walsall ,WC143-240,31.10.2022,ADULT SOCIAL CARE,ACCORD HOUSING ASSOCIATION LIMITED - HOBS MEADOW,25/10/2022,"4,776.84",6541-Residential,THIRD PARTY PAYMENTS,PRIVATE CONTRACTOR,REVENUE
Walsall Council,http://opendatacommunities.org/id/metropolitan-district-council/walsall ,WC143-241,31.10.2022,ADULT SOCIAL CARE,ACCORD HOUSING ASSOCIATION LIMITED - HOBS MEADOW,25/10/2022,"4,776.84",6541-Residential,THIRD PARTY PAYMENTS,PRIVATE CONTRACTOR,REVENUE
Walsall Council,http://opendatacommunities.org/id/metropolitan-district-council/walsall ,WC143-242,31.10.2022,ADULT SOCIAL CARE,ACCORD HOUSING ASSOCIATION LIMITED - HOBS MEADOW,25/10/2022,"4,776.84",6541-Residential,THIRD PARTY PAYMENTS,PRIVATE CONTRACTOR,REVENUE
Walsall Council,http://opendatacommunities.org/id/metropolitan-district-council/walsall ,WC143-243,31.10.2022,CHILDRENS,ACE CARS & MINIBUSES LTD,10/10/2022,"2,270.28",6241-Hire of Vehicle with Driver,TRANSPORT,DIRECT TRANSPORT COSTS,REVENUE
Walsall Council,http://opendatacommunities.org/id/metropolitan-district-council/walsall ,WC143-244,31.10.2022,CHILDRENS,ACE CARS & MINIBUSES LTD,10/10/2022,"1,633.20",6241-Hire of Vehicle with Driver,TRANSPORT,DIRECT TRANSPORT COSTS,REVENUE
Walsall Council,http://opendatacommunities.org/id/metropolitan-district-council/walsall ,WC143-245,31.10.2022,CHILDRENS,ACE CARS & MINIBUSES LTD,10/10/2022,"1,845.48",6241-Hire of Vehicle with Driver,TRANSPORT,DIRECT TRANSPORT COSTS,REVENUE
Walsall Council,http://opendatacommunities.org/id/metropolitan-district-council/walsall ,WC143-246,31.10.2022,CHILDRENS,ACE CARS & MINIBUSES LTD,10/10/2022,"1,416.00",6241-Hire of Vehicle with Driver,TRANSPORT,DIRECT TRANSPORT COSTS,REVENUE
Walsall Council,http://opendatacommunities.org/id/metropolitan-district-council/walsall ,WC143-247,31.10.2022,CHILDRENS,ACE CARS & MINIBUSES LTD,10/10/2022,"1,614.24",6241-Hire of Vehicle with Driver,TRANSPORT,DIRECT TRANSPORT COSTS,REVENUE
Walsall Council,http://opendatacommunities.org/id/metropolitan-district-council/walsall ,WC143-248,31.10.2022,CHILDRENS,ACE CARS & MINIBUSES LTD,10/10/2022,"1,500.96",6241-Hire of Vehicle with Driver,TRANSPORT,DIRECT TRANSPORT COSTS,REVENUE
Walsall Council,http://opendatacommunities.org/id/metropolitan-district-council/walsall ,WC143-249,31.10.2022,CHILDRENS,ACE CARS & MINIBUSES LTD,10/10/2022,"1,416.00",6241-Hire of Vehicle with Driver,TRANSPORT,DIRECT TRANSPORT COSTS,REVENUE
Walsall Council,http://opendatacommunities.org/id/metropolitan-district-council/walsall ,WC143-250,31.10.2022,CHILDRENS,ACE CARS & MINIBUSES LTD,10/10/2022,"1,598.00",6241-Hire of Vehicle with Driver,TRANSPORT,DIRECT TRANSPORT COSTS,REVENUE
Walsall Council,http://opendatacommunities.org/id/metropolitan-district-council/walsall ,WC143-251,31.10.2022,CHILDRENS,ACE CARS & MINIBUSES LTD,10/10/2022,"1,434.00",6241-Hire of Vehicle with Driver,TRANSPORT,DIRECT TRANSPORT COSTS,REVENUE
Walsall Council,http://opendatacommunities.org/id/metropolitan-district-council/walsall ,WC143-252,31.10.2022,CHILDRENS,ACE CARS & MINIBUSES LTD,10/10/2022,"1,284.00",6241-Hire of Vehicle with Driver,TRANSPORT,DIRECT TRANSPORT COSTS,REVENUE
Walsall Council,http://opendatacommunities.org/id/metropolitan-district-council/walsall ,WC143-253,31.10.2022,CHILDRENS,ACE CARS & MINIBUSES LTD,10/10/2022,"2,548.80",6241-Hire of Vehicle with Driver,TRANSPORT,DIRECT TRANSPORT COSTS,REVENUE
Walsall Council,http://opendatacommunities.org/id/metropolitan-district-council/walsall ,WC143-254,31.10.2022,CHILDRENS,ACE CARS & MINIBUSES LTD,10/10/2022,"1,284.00",6241-Hire of Vehicle with Driver,TRANSPORT,DIRECT TRANSPORT COSTS,REVENUE
Walsall Council,http://opendatacommunities.org/id/metropolitan-district-council/walsall ,WC143-255,31.10.2022,CHILDRENS,ACE CARS & MINIBUSES LTD,10/10/2022,"1,633.20",6241-Hire of Vehicle with Driver,TRANSPORT,DIRECT TRANSPORT COSTS,REVENUE
Walsall Council,http://opendatacommunities.org/id/metropolitan-district-council/walsall ,WC143-256,31.10.2022,CHILDRENS,ACE CARS & MINIBUSES LTD,10/10/2022,"1,284.00",6241-Hire of Vehicle with Driver,TRANSPORT,DIRECT TRANSPORT COSTS,REVENUE
Walsall Council,http://opendatacommunities.org/id/metropolitan-district-council/walsall ,WC143-257,31.10.2022,CHILDRENS,ACE CARS & MINIBUSES LTD,10/10/2022,"1,284.00",6241-Hire of Vehicle with Driver,TRANSPORT,DIRECT TRANSPORT COSTS,REVENUE
Walsall Council,http://opendatacommunities.org/id/metropolitan-district-council/walsall ,WC143-258,31.10.2022,CHILDRENS,ACE CARS & MINIBUSES LTD,10/10/2022,"1,368.00",6241-Hire of Vehicle with Driver,TRANSPORT,DIRECT TRANSPORT COSTS,REVENUE
Walsall Council,http://opendatacommunities.org/id/metropolitan-district-council/walsall ,WC143-259,31.10.2022,CHILDRENS,ACE CARS & MINIBUSES LTD,10/10/2022,"1,434.00",6241-Hire of Vehicle with Driver,TRANSPORT,DIRECT TRANSPORT COSTS,REVENUE
Walsall Council,http://opendatacommunities.org/id/metropolitan-district-council/walsall ,WC143-260,31.10.2022,CHILDRENS,ACE CARS & MINIBUSES LTD,10/10/2022,"1,368.00",6241-Hire of Vehicle with Driver,TRANSPORT,DIRECT TRANSPORT COSTS,REVENUE
Walsall Council,http://opendatacommunities.org/id/metropolitan-district-council/walsall ,WC143-261,31.10.2022,CHILDRENS,ACE CARS & MINIBUSES LTD,10/10/2022,"1,284.00",6241-Hire of Vehicle with Driver,TRANSPORT,DIRECT TRANSPORT COSTS,REVENUE
Walsall Council,http://opendatacommunities.org/id/metropolitan-district-council/walsall ,WC143-262,31.10.2022,CHILDRENS,ACE CARS & MINIBUSES LTD,10/10/2022,"1,284.00",6241-Hire of Vehicle with Driver,TRANSPORT,DIRECT TRANSPORT COSTS,REVENUE
Walsall Council,http://opendatacommunities.org/id/metropolitan-district-council/walsall ,WC143-263,31.10.2022,CHILDRENS,ACE CARS & MINIBUSES LTD,10/10/2022,"1,416.00",6241-Hire of Vehicle with Driver,TRANSPORT,DIRECT TRANSPORT COSTS,REVENUE
Walsall Council,http://opendatacommunities.org/id/metropolitan-district-council/walsall ,WC143-264,31.10.2022,CHILDRENS,ACE CARS & MINIBUSES LTD,10/10/2022,"1,434.00",6241-Hire of Vehicle with Driver,TRANSPORT,DIRECT TRANSPORT COSTS,REVENUE
Walsall Council,http://opendatacommunities.org/id/metropolitan-district-council/walsall ,WC143-265,31.10.2022,CHILDRENS,ACE CARS & MINIBUSES LTD,10/10/2022,"1,633.20",6241-Hire of Vehicle with Driver,TRANSPORT,DIRECT TRANSPORT COSTS,REVENUE
Walsall Council,http://opendatacommunities.org/id/metropolitan-district-council/walsall ,WC143-266,31.10.2022,CHILDRENS,ACE CARS & MINIBUSES LTD,10/10/2022,"1,633.20",6241-Hire of Vehicle with Driver,TRANSPORT,DIRECT TRANSPORT COSTS,REVENUE
Walsall Council,http://opendatacommunities.org/id/metropolitan-district-council/walsall ,WC143-267,31.10.2022,CHILDRENS,ACE CARS & MINIBUSES LTD,10/10/2022,"1,284.00",6241-Hire of Vehicle with Driver,TRANSPORT,DIRECT TRANSPORT COSTS,REVENUE
Walsall Council,http://opendatacommunities.org/id/metropolitan-district-council/walsall ,WC143-268,31.10.2022,CHILDRENS,ACE CARS & MINIBUSES LTD,10/10/2022,"1,284.00",6241-Hire of Vehicle with Driver,TRANSPORT,DIRECT TRANSPORT COSTS,REVENUE
Walsall Council,http://opendatacommunities.org/id/metropolitan-district-council/walsall ,WC143-269,31.10.2022,CHILDRENS,ACE CARS & MINIBUSES LTD,10/10/2022,"1,284.00",6241-Hire of Vehicle with Driver,TRANSPORT,DIRECT TRANSPORT COSTS,REVENUE
Walsall Council,http://opendatacommunities.org/id/metropolitan-district-council/walsall ,WC143-270,31.10.2022,CHILDRENS,ACE CARS & MINIBUSES LTD,10/10/2022,"1,902.00",6241-Hire of Vehicle with Driver,TRANSPORT,DIRECT TRANSPORT COSTS,REVENUE
Walsall Council,http://opendatacommunities.org/id/metropolitan-district-council/walsall ,WC143-271,31.10.2022,CHILDRENS,ACE CARS & MINIBUSES LTD,10/10/2022,"1,434.00",6241-Hire of Vehicle with Driver,TRANSPORT,DIRECT TRANSPORT COSTS,REVENUE
Walsall Council,http://opendatacommunities.org/id/metropolitan-district-council/walsall ,WC143-272,31.10.2022,CHILDRENS,ACE CARS & MINIBUSES LTD,10/10/2022,"1,434.00",6241-Hire of Vehicle with Driver,TRANSPORT,DIRECT TRANSPORT COSTS,REVENUE
Walsall Council,http://opendatacommunities.org/id/metropolitan-district-council/walsall ,WC143-273,31.10.2022,CHILDRENS,ACE CARS & MINIBUSES LTD,10/10/2022,"1,434.00",6241-Hire of Vehicle with Driver,TRANSPORT,DIRECT TRANSPORT COSTS,REVENUE
Walsall Council,http://opendatacommunities.org/id/metropolitan-district-council/walsall ,WC143-274,31.10.2022,CHILDRENS,ACE CARS & MINIBUSES LTD,10/10/2022,"1,633.20",6241-Hire of Vehicle with Driver,TRANSPORT,DIRECT TRANSPORT COSTS,REVENUE
Walsall Council,http://opendatacommunities.org/id/metropolitan-district-council/walsall ,WC143-275,31.10.2022,CHILDRENS,ACE CARS & MINIBUSES LTD,10/10/2022,"1,633.20",6241-Hire of Vehicle with Driver,TRANSPORT,DIRECT TRANSPORT COSTS,REVENUE
Walsall Council,http://opendatacommunities.org/id/metropolitan-district-council/walsall ,WC143-276,31.10.2022,CHILDRENS,ACE CARS & MINIBUSES LTD,10/10/2022,"1,368.00",6241-Hire of Vehicle with Driver,TRANSPORT,DIRECT TRANSPORT COSTS,REVENUE
Walsall Council,http://opendatacommunities.org/id/metropolitan-district-council/walsall ,WC143-277,31.10.2022,CHILDRENS,ACE CARS & MINIBUSES LTD,10/10/2022,"1,416.00",6241-Hire of Vehicle with Driver,TRANSPORT,DIRECT TRANSPORT COSTS,REVENUE
Walsall Council,http://opendatacommunities.org/id/metropolitan-district-council/walsall ,WC143-278,31.10.2022,CHILDRENS,ACE CARS & MINIBUSES LTD,10/10/2022,"1,368.00",6241-Hire of Vehicle with Driver,TRANSPORT,DIRECT TRANSPORT COSTS,REVENUE
Walsall Council,http://opendatacommunities.org/id/metropolitan-district-council/walsall ,WC143-279,31.10.2022,CHILDRENS,ACE CARS & MINIBUSES LTD,10/10/2022,"1,869.12",6241-Hire of Vehicle with Driver,TRANSPORT,DIRECT TRANSPORT COSTS,REVENUE
Walsall Council,http://opendatacommunities.org/id/metropolitan-district-council/walsall ,WC143-280,31.10.2022,CHILDRENS,ACE CARS & MINIBUSES LTD,10/10/2022,"1,284.00",6241-Hire of Vehicle with Driver,TRANSPORT,DIRECT TRANSPORT COSTS,REVENUE
Walsall Council,http://opendatacommunities.org/id/metropolitan-district-council/walsall ,WC143-281,31.10.2022,CHILDRENS,ACE CARS & MINIBUSES LTD,10/10/2022,"1,416.00",6241-Hire of Vehicle with Driver,TRANSPORT,DIRECT TRANSPORT COSTS,REVENUE
Walsall Council,http://opendatacommunities.org/id/metropolitan-district-council/walsall ,WC143-282,31.10.2022,"ECONOMY, ENVIRONMENT & COMMUNITIES",ACE PA HIRE,31/10/2022,"1,180.00",6411-Civic Events,SUPPLIES & SERVICES,EXPENSES,REVENUE
Walsall Council,http://opendatacommunities.org/id/metropolitan-district-council/walsall ,WC143-283,31.10.2022,ADULT SOCIAL CARE,ACEPAY LTD (COTTAGE NUR HOME),25/10/2022,"2,763.80",6541-Nursing EMI,THIRD PARTY PAYMENTS,PRIVATE CONTRACTOR,REVENUE
Walsall Council,http://opendatacommunities.org/id/metropolitan-district-council/walsall ,WC143-284,31.10.2022,ADULT SOCIAL CARE,ACEPAY LTD (COTTAGE NUR HOME),25/10/2022,"2,456.24",6541-Nursing,THIRD PARTY PAYMENTS,PRIVATE CONTRACTOR,REVENUE
Walsall Council,http://opendatacommunities.org/id/metropolitan-district-council/walsall ,WC143-285,31.10.2022,ADULT SOCIAL CARE,ACEPAY LTD (COTTAGE NUR HOME),25/10/2022,"2,763.80",6541-Nursing EMI,THIRD PARTY PAYMENTS,PRIVATE CONTRACTOR,REVENUE
Walsall Council,http://opendatacommunities.org/id/metropolitan-district-council/walsall ,WC143-286,31.10.2022,ADULT SOCIAL CARE,ACEPAY LTD (COTTAGE NUR HOME),25/10/2022,"2,366.04",6541-Residential EMI,THIRD PARTY PAYMENTS,PRIVATE CONTRACTOR,REVENUE
Walsall Council,http://opendatacommunities.org/id/metropolitan-district-council/walsall ,WC143-287,31.10.2022,ADULT SOCIAL CARE,ACEPAY LTD (COTTAGE NUR HOME),25/10/2022,"2,456.24",6541-Nursing,THIRD PARTY PAYMENTS,PRIVATE CONTRACTOR,REVENUE
Walsall Council,http://opendatacommunities.org/id/metropolitan-district-council/walsall ,WC143-288,31.10.2022,ADULT SOCIAL CARE,ACEPAY LTD (COTTAGE NUR HOME),25/10/2022,"2,456.24",6541-Nursing,THIRD PARTY PAYMENTS,PRIVATE CONTRACTOR,REVENUE
Walsall Council,http://opendatacommunities.org/id/metropolitan-district-council/walsall ,WC143-289,31.10.2022,ADULT SOCIAL CARE,ACEPAY LTD (COTTAGE NUR HOME),25/10/2022,"2,656.24",6541-Nursing,THIRD PARTY PAYMENTS,PRIVATE CONTRACTOR,REVENUE
Walsall Council,http://opendatacommunities.org/id/metropolitan-district-council/walsall ,WC143-290,31.10.2022,ADULT SOCIAL CARE,ACEPAY LTD (COTTAGE NUR HOME),25/10/2022,"2,763.80",6541-Nursing EMI,THIRD PARTY PAYMENTS,PRIVATE CONTRACTOR,REVENUE
Walsall Council,http://opendatacommunities.org/id/metropolitan-district-council/walsall ,WC143-291,31.10.2022,ADULT SOCIAL CARE,ACEPAY LTD (COTTAGE NUR HOME),25/10/2022,"2,366.04",6541-Residential EMI,THIRD PARTY PAYMENTS,PRIVATE CONTRACTOR,REVENUE
Walsall Council,http://opendatacommunities.org/id/metropolitan-district-council/walsall ,WC143-292,31.10.2022,ADULT SOCIAL CARE,ACEPAY LTD (COTTAGE NUR HOME),25/10/2022,"2,456.24",6541-Nursing,THIRD PARTY PAYMENTS,PRIVATE CONTRACTOR,REVENUE
Walsall Council,http://opendatacommunities.org/id/metropolitan-district-council/walsall ,WC143-293,31.10.2022,ADULT SOCIAL CARE,ACEPAY LTD (COTTAGE NUR HOME),25/10/2022,"2,366.04",6541-Residential EMI,THIRD PARTY PAYMENTS,PRIVATE CONTRACTOR,REVENUE
Walsall Council,http://opendatacommunities.org/id/metropolitan-district-council/walsall ,WC143-294,31.10.2022,ADULT SOCIAL CARE,ACEPAY LTD (COTTAGE NUR HOME),25/10/2022,"2,456.24",6541-Nursing,THIRD PARTY PAYMENTS,PRIVATE CONTRACTOR,REVENUE
Walsall Council,http://opendatacommunities.org/id/metropolitan-district-council/walsall ,WC143-295,31.10.2022,ADULT SOCIAL CARE,ACEPAY LTD (COTTAGE NUR HOME),25/10/2022,"2,456.24",6541-Nursing,THIRD PARTY PAYMENTS,PRIVATE CONTRACTOR,REVENUE
Walsall Council,http://opendatacommunities.org/id/metropolitan-district-council/walsall ,WC143-296,31.10.2022,ADULT SOCIAL CARE,ACEPAY LTD (COTTAGE NUR HOME),25/10/2022,"2,456.24",6541-Nursing,THIRD PARTY PAYMENTS,PRIVATE CONTRACTOR,REVENUE
Walsall Council,http://opendatacommunities.org/id/metropolitan-district-council/walsall ,WC143-297,31.10.2022,ADULT SOCIAL CARE,ACEPAY LTD (COTTAGE NUR HOME),25/10/2022,"2,456.24",6541-Nursing,THIRD PARTY PAYMENTS,PRIVATE CONTRACTOR,REVENUE
Walsall Council,http://opendatacommunities.org/id/metropolitan-district-council/walsall ,WC143-298,31.10.2022,ADULT SOCIAL CARE,ACEPAY LTD (COTTAGE NUR HOME),25/10/2022,"2,095.40",6541-Residential,THIRD PARTY PAYMENTS,PRIVATE CONTRACTOR,REVENUE
Walsall Council,http://opendatacommunities.org/id/metropolitan-district-council/walsall ,WC143-299,31.10.2022,ADULT SOCIAL CARE,ACEPAY LTD (COTTAGE NUR HOME),25/10/2022,"2,456.24",6541-Nursing,THIRD PARTY PAYMENTS,PRIVATE CONTRACTOR,REVENUE
Walsall Council,http://opendatacommunities.org/id/metropolitan-district-council/walsall ,WC143-300,31.10.2022,ADULT SOCIAL CARE,ACEPAY LTD (COTTAGE NUR HOME),25/10/2022,"2,456.24",6541-Nursing,THIRD PARTY PAYMENTS,PRIVATE CONTRACTOR,REVENUE
Walsall Council,http://opendatacommunities.org/id/metropolitan-district-council/walsall ,WC143-301,31.10.2022,ADULT SOCIAL CARE,ACHIEVE TOGETHER LIMITED,25/10/2022,"3,852.80",6541-Residential,THIRD PARTY PAYMENTS,PRIVATE CONTRACTOR,REVENUE
Walsall Council,http://opendatacommunities.org/id/metropolitan-district-council/walsall ,WC143-302,31.10.2022,ADULT SOCIAL CARE,ACHIEVE TOGETHER LIMITED,25/10/2022,"4,920.72",6541-Residential,THIRD PARTY PAYMENTS,PRIVATE CONTRACTOR,REVENUE
Walsall Council,http://opendatacommunities.org/id/metropolitan-district-council/walsall ,WC143-303,31.10.2022,ADULT SOCIAL CARE,ACHIEVE TOGETHER LIMITED,25/10/2022,"5,506.08",6541-Residential,THIRD PARTY PAYMENTS,PRIVATE CONTRACTOR,REVENUE
Walsall Council,http://opendatacommunities.org/id/metropolitan-district-council/walsall ,WC143-304,31.10.2022,ADULT SOCIAL CARE,ACHIEVE TOGETHER LIMITED,25/10/2022,"5,740.84",6541-Residential,THIRD PARTY PAYMENTS,PRIVATE CONTRACTOR,REVENUE
Walsall Council,http://opendatacommunities.org/id/metropolitan-district-council/walsall ,WC143-305,31.10.2022,CHILDRENS,ACIRE CARE LTD,05/10/2022,"8,757.81",6223-Accommodation and Related Costs-Assistance to S/S Clients,TRANSFER PAYMENTS,ADULT SOCIAL SERVICES CLIENT,REVENUE
Walsall Council,http://opendatacommunities.org/id/metropolitan-district-council/walsall ,WC143-306,31.10.2022,CHILDRENS,ACIRE CARE LTD,06/10/2022,"8,342.86",6223-Accommodation and Related Costs-Assistance to S/S Clients,TRANSFER PAYMENTS,ADULT SOCIAL SERVICES CLIENT,REVENUE
Walsall Council,http://opendatacommunities.org/id/metropolitan-district-council/walsall ,WC143-307,31.10.2022,CHILDRENS,ACORN CARE & EDUCATION LTD (SALES),07/10/2022,"18,383.56",1220-Professional Fees & Services,SUPPLIES & SERVICES,SERVICES,REVENUE
Walsall Council,http://opendatacommunities.org/id/metropolitan-district-council/walsall ,WC143-308,31.10.2022,CHILDRENS,ACORN CARE & EDUCATION LTD (SALES),17/10/2022,"6,389.13",1220-Professional Fees & Services,SUPPLIES & SERVICES,SERVICES,REVENUE
Walsall Council,http://opendatacommunities.org/id/metropolitan-district-council/walsall ,WC143-309,31.10.2022,CHILDRENS,ACORN FOSTERING SERVICES LTD,03/10/2022,"3,340.00",6223-Independent Foster Care-Oth Agency Provision,THIRD PARTY PAYMENTS,PRIVATE CONTRACTOR,REVENUE
Walsall Council,http://opendatacommunities.org/id/metropolitan-district-council/walsall ,WC143-310,31.10.2022,CHILDRENS,ACORN FOSTERING SERVICES LTD,28/10/2022,"3,340.00",6223-Independent Foster Care-Oth Agency Provision,THIRD PARTY PAYMENTS,PRIVATE CONTRACTOR,REVENUE
Walsall Council,http://opendatacommunities.org/id/metropolitan-district-council/walsall ,WC143-311,31.10.2022,"ECONOMY, ENVIRONMENT & COMMUNITIES",ACTION GRAPHICS & DISPLAY LTD,04/10/2022,408.20,6414-Outwork Print & Design,SUPPLIES & SERVICES,PRINTING STATIONERY & GENERAL OFFICE,REVENUE
Walsall Council,http://opendatacommunities.org/id/metropolitan-district-council/walsall ,WC143-312,31.10.2022,CHILDRENS,ACTIVE CARE SOLUTIONS LTD,03/10/2022,"3,445.08",6223-Independent Foster Care-Oth Agency Provision,THIRD PARTY PAYMENTS,PRIVATE CONTRACTOR,REVENUE
Walsall Council,http://opendatacommunities.org/id/metropolitan-district-council/walsall ,WC143-313,31.10.2022,CHILDRENS,ACTIVE CARE SOLUTIONS LTD,28/10/2022,"3,445.08",6223-Independent Foster Care-Oth Agency Provision,THIRD PARTY PAYMENTS,PRIVATE CONTRACTOR,REVENUE
Walsall Council,http://opendatacommunities.org/id/metropolitan-district-council/walsall ,WC143-314,31.10.2022,ADULT SOCIAL CARE,REDACTED,05/10/2022,715.40,6541-Direct Payment,THIRD PARTY PAYMENTS,PRIVATE CONTRACTOR,REVENUE
Walsall Council,http://opendatacommunities.org/id/metropolitan-district-council/walsall ,WC143-315,31.10.2022,CHILDRENS,REDACTED,20/10/2022,331.24,6223-Residents Orders,TRANSFER PAYMENTS,CHILDREN SOCIAL SERVICES CLIENT,REVENUE
Walsall Council,http://opendatacommunities.org/id/metropolitan-district-council/walsall ,WC143-316,31.10.2022,ADULT SOCIAL CARE,ADVANCE HEALTH CARE (UK) LTD,20/10/2022,"2,265.04",6541-Domiciliary Care,THIRD PARTY PAYMENTS,PRIVATE CONTRACTOR,REVENUE
Walsall Council,http://opendatacommunities.org/id/metropolitan-district-council/walsall ,WC143-317,31.10.2022,ADULT SOCIAL CARE,ADVANCE HEALTH CARE (UK) LTD,20/10/2022,"2,881.24",6541-Domiciliary Care,THIRD PARTY PAYMENTS,PRIVATE CONTRACTOR,REVENUE
Walsall Council,http://opendatacommunities.org/id/metropolitan-district-council/walsall ,WC143-318,31.10.2022,ADULT SOCIAL CARE,ADVANCE HEALTH CARE (UK) LTD,20/10/2022,"1,042.80",6541-Domiciliary Care,THIRD PARTY PAYMENTS,PRIVATE CONTRACTOR,REVENUE
Walsall Council,http://opendatacommunities.org/id/metropolitan-district-council/walsall ,WC143-319,31.10.2022,ADULT SOCIAL CARE,ADVANCE HEALTH CARE (UK) LTD,20/10/2022,921.76,6541-Domiciliary Care,THIRD PARTY PAYMENTS,PRIVATE CONTRACTOR,REVENUE
Walsall Council,http://opendatacommunities.org/id/metropolitan-district-council/walsall ,WC143-320,31.10.2022,ADULT SOCIAL CARE,ADVANCE HEALTH CARE (UK) LTD,20/10/2022,"1,027.00",6541-Domiciliary Care,THIRD PARTY PAYMENTS,PRIVATE CONTRACTOR,REVENUE
Walsall Council,http://opendatacommunities.org/id/metropolitan-district-council/walsall ,WC143-321,31.10.2022,ADULT SOCIAL CARE,ADVANCE HEALTH CARE (UK) LTD,20/10/2022,774.48,6541-Domiciliary Care,THIRD PARTY PAYMENTS,PRIVATE CONTRACTOR,REVENUE
Walsall Council,http://opendatacommunities.org/id/metropolitan-district-council/walsall ,WC143-322,31.10.2022,ADULT SOCIAL CARE,ADVANCE HEALTH CARE (UK) LTD,20/10/2022,"1,990.80",6541-Domiciliary Care,THIRD PARTY PAYMENTS,PRIVATE CONTRACTOR,REVENUE
Walsall Council,http://opendatacommunities.org/id/metropolitan-district-council/walsall ,WC143-323,31.10.2022,ADULT SOCIAL CARE,ADVANCE HEALTH CARE (UK) LTD,20/10/2022,737.52,6541-Domiciliary Care,THIRD PARTY PAYMENTS,PRIVATE CONTRACTOR,REVENUE
Walsall Council,http://opendatacommunities.org/id/metropolitan-district-council/walsall ,WC143-324,31.10.2022,ADULT SOCIAL CARE,ADVANCE HEALTH CARE (UK) LTD,20/10/2022,"2,425.81",6541-Domiciliary Care,THIRD PARTY PAYMENTS,PRIVATE CONTRACTOR,REVENUE
Walsall Council,http://opendatacommunities.org/id/metropolitan-district-council/walsall ,WC143-325,31.10.2022,ADULT SOCIAL CARE,ADVANCE HEALTH CARE (UK) LTD,20/10/2022,"1,058.60",6541-Domiciliary Care,THIRD PARTY PAYMENTS,PRIVATE CONTRACTOR,REVENUE
Walsall Council,http://opendatacommunities.org/id/metropolitan-district-council/walsall ,WC143-326,31.10.2022,ADULT SOCIAL CARE,ADVANCE HEALTH CARE (UK) LTD,20/10/2022,479.36,6541-Domiciliary Care,THIRD PARTY PAYMENTS,PRIVATE CONTRACTOR,REVENUE
Walsall Council,http://opendatacommunities.org/id/metropolitan-district-council/walsall ,WC143-327,31.10.2022,ADULT SOCIAL CARE,ADVANCE HEALTH CARE (UK) LTD,20/10/2022,"1,253.84",6541-Domiciliary Care,THIRD PARTY PAYMENTS,PRIVATE CONTRACTOR,REVENUE
Walsall Council,http://opendatacommunities.org/id/metropolitan-district-council/walsall ,WC143-328,31.10.2022,ADULT SOCIAL CARE,ADVANCE HEALTH CARE (UK) LTD,20/10/2022,690.12,6541-Domiciliary Care,THIRD PARTY PAYMENTS,PRIVATE CONTRACTOR,REVENUE
Walsall Council,http://opendatacommunities.org/id/metropolitan-district-council/walsall ,WC143-329,31.10.2022,ADULT SOCIAL CARE,ADVANCE HEALTH CARE (UK) LTD,11/10/2022,845.30,6541-Domiciliary Care,THIRD PARTY PAYMENTS,PRIVATE CONTRACTOR,REVENUE
Walsall Council,http://opendatacommunities.org/id/metropolitan-district-council/walsall ,WC143-330,31.10.2022,ADULT SOCIAL CARE,ADVANCE HEALTH CARE (UK) LTD,11/10/2022,387.24,6541-Domiciliary Care,THIRD PARTY PAYMENTS,PRIVATE CONTRACTOR,REVENUE
Walsall Council,http://opendatacommunities.org/id/metropolitan-district-council/walsall ,WC143-331,31.10.2022,ADULT SOCIAL CARE,ADVANCE HEALTH CARE (UK) LTD,11/10/2022,331.94,6541-Domiciliary Care,THIRD PARTY PAYMENTS,PRIVATE CONTRACTOR,REVENUE
Walsall Council,http://opendatacommunities.org/id/metropolitan-district-council/walsall ,WC143-332,31.10.2022,ADULT SOCIAL CARE,ADVANCE HEALTH CARE (UK) LTD,11/10/2022,576.70,6541-Domiciliary Care,THIRD PARTY PAYMENTS,PRIVATE CONTRACTOR,REVENUE
Walsall Council,http://opendatacommunities.org/id/metropolitan-district-council/walsall ,WC143-333,31.10.2022,ADULT SOCIAL CARE,ADVANCE HEALTH CARE (UK) LTD,11/10/2022,284.40,6541-Domiciliary Care,THIRD PARTY PAYMENTS,PRIVATE CONTRACTOR,REVENUE
Walsall Council,http://opendatacommunities.org/id/metropolitan-district-council/walsall ,WC143-334,31.10.2022,ADULT SOCIAL CARE,ADVANCE HEALTH CARE (UK) LTD,11/10/2022,368.76,6541-Domiciliary Care,THIRD PARTY PAYMENTS,PRIVATE CONTRACTOR,REVENUE
Walsall Council,http://opendatacommunities.org/id/metropolitan-district-council/walsall ,WC143-335,31.10.2022,ADULT SOCIAL CARE,ADVANCE HEALTH CARE (UK) LTD,11/10/2022,497.70,6541-Domiciliary Care,THIRD PARTY PAYMENTS,PRIVATE CONTRACTOR,REVENUE
Walsall Council,http://opendatacommunities.org/id/metropolitan-district-council/walsall ,WC143-336,31.10.2022,ADULT SOCIAL CARE,ADVANCE HEALTH CARE (UK) LTD,11/10/2022,497.70,6541-Domiciliary Care,THIRD PARTY PAYMENTS,PRIVATE CONTRACTOR,REVENUE
Walsall Council,http://opendatacommunities.org/id/metropolitan-district-council/walsall ,WC143-337,31.10.2022,ADULT SOCIAL CARE,ADVANCE HEALTH CARE (UK) LTD,11/10/2022,489.80,6541-Domiciliary Care,THIRD PARTY PAYMENTS,PRIVATE CONTRACTOR,REVENUE
Walsall Council,http://opendatacommunities.org/id/metropolitan-district-council/walsall ,WC143-338,31.10.2022,ADULT SOCIAL CARE,ADVANCE HEALTH CARE (UK) LTD,11/10/2022,387.10,6541-Domiciliary Care,THIRD PARTY PAYMENTS,PRIVATE CONTRACTOR,REVENUE
Walsall Council,http://opendatacommunities.org/id/metropolitan-district-council/walsall ,WC143-339,31.10.2022,ADULT SOCIAL CARE,ADVANCE HEALTH CARE (UK) LTD,11/10/2022,331.80,6541-Domiciliary Care,THIRD PARTY PAYMENTS,PRIVATE CONTRACTOR,REVENUE
Walsall Council,http://opendatacommunities.org/id/metropolitan-district-council/walsall ,WC143-340,31.10.2022,ADULT SOCIAL CARE,ADVANCE HEALTH CARE (UK) LTD,11/10/2022,497.70,6541-Domiciliary Care,THIRD PARTY PAYMENTS,PRIVATE CONTRACTOR,REVENUE
Walsall Council,http://opendatacommunities.org/id/metropolitan-district-council/walsall ,WC143-341,31.10.2022,ADULT SOCIAL CARE,ADVANCE HEALTH CARE (UK) LTD,11/10/2022,553.00,6541-Domiciliary Care,THIRD PARTY PAYMENTS,PRIVATE CONTRACTOR,REVENUE
Walsall Council,http://opendatacommunities.org/id/metropolitan-district-council/walsall ,WC143-342,31.10.2022,ADULT SOCIAL CARE,ADVANCE HEALTH CARE (UK) LTD,11/10/2022,387.10,6541-Domiciliary Care,THIRD PARTY PAYMENTS,PRIVATE CONTRACTOR,REVENUE
Walsall Council,http://opendatacommunities.org/id/metropolitan-district-council/walsall ,WC143-343,31.10.2022,ADULT SOCIAL CARE,ADVANCE HEALTH CARE (UK) LTD,11/10/2022,331.80,6541-Domiciliary Care,THIRD PARTY PAYMENTS,PRIVATE CONTRACTOR,REVENUE
Walsall Council,http://opendatacommunities.org/id/metropolitan-district-council/walsall ,WC143-344,31.10.2022,ADULT SOCIAL CARE,ADVANCE HEALTH CARE (UK) LTD,11/10/2022,331.94,6541-Domiciliary Care,THIRD PARTY PAYMENTS,PRIVATE CONTRACTOR,REVENUE
Walsall Council,http://opendatacommunities.org/id/metropolitan-district-council/walsall ,WC143-345,31.10.2022,ADULT SOCIAL CARE,ADVANCE HEALTH CARE (UK) LTD,11/10/2022,497.70,6541-Domiciliary Care,THIRD PARTY PAYMENTS,PRIVATE CONTRACTOR,REVENUE
Walsall Council,http://opendatacommunities.org/id/metropolitan-district-council/walsall ,WC143-346,31.10.2022,ADULT SOCIAL CARE,ADVANCE HEALTH CARE (UK) LTD,11/10/2022,553.00,6541-Domiciliary Care,THIRD PARTY PAYMENTS,PRIVATE CONTRACTOR,REVENUE
Walsall Council,http://opendatacommunities.org/id/metropolitan-district-council/walsall ,WC143-347,31.10.2022,ADULT SOCIAL CARE,ADVANCE HEALTH CARE (UK) LTD,11/10/2022,884.80,6541-Domiciliary Care,THIRD PARTY PAYMENTS,PRIVATE CONTRACTOR,REVENUE
Walsall Council,http://opendatacommunities.org/id/metropolitan-district-council/walsall ,WC143-348,31.10.2022,ADULT SOCIAL CARE,ADVANCE HEALTH CARE (UK) LTD,11/10/2022,442.40,6541-Domiciliary Care,THIRD PARTY PAYMENTS,PRIVATE CONTRACTOR,REVENUE
Walsall Council,http://opendatacommunities.org/id/metropolitan-district-council/walsall ,WC143-349,31.10.2022,ADULT SOCIAL CARE,ADVANCE HEALTH CARE (UK) LTD,11/10/2022,497.70,6541-Domiciliary Care,THIRD PARTY PAYMENTS,PRIVATE CONTRACTOR,REVENUE
Walsall Council,http://opendatacommunities.org/id/metropolitan-district-council/walsall ,WC143-350,31.10.2022,ADULT SOCIAL CARE,ADVANCE HEALTH CARE (UK) LTD,11/10/2022,497.70,6541-Domiciliary Care,THIRD PARTY PAYMENTS,PRIVATE CONTRACTOR,REVENUE
Walsall Council,http://opendatacommunities.org/id/metropolitan-district-council/walsall ,WC143-351,31.10.2022,ADULT SOCIAL CARE,ADVANCE HEALTH CARE (UK) LTD,11/10/2022,553.00,6541-Domiciliary Care,THIRD PARTY PAYMENTS,PRIVATE CONTRACTOR,REVENUE
Walsall Council,http://opendatacommunities.org/id/metropolitan-district-council/walsall ,WC143-352,31.10.2022,ADULT SOCIAL CARE,ADVANCE HEALTH CARE (UK) LTD,11/10/2022,497.70,6541-Domiciliary Care,THIRD PARTY PAYMENTS,PRIVATE CONTRACTOR,REVENUE
Walsall Council,http://opendatacommunities.org/id/metropolitan-district-council/walsall ,WC143-353,31.10.2022,ADULT SOCIAL CARE,ADVANCE HEALTH CARE (UK) LTD,11/10/2022,553.00,6541-Domiciliary Care,THIRD PARTY PAYMENTS,PRIVATE CONTRACTOR,REVENUE
Walsall Council,http://opendatacommunities.org/id/metropolitan-district-council/walsall ,WC143-354,31.10.2022,ADULT SOCIAL CARE,ADVANCE HEALTH CARE (UK) LTD,11/10/2022,497.70,6541-Domiciliary Care,THIRD PARTY PAYMENTS,PRIVATE CONTRACTOR,REVENUE
Walsall Council,http://opendatacommunities.org/id/metropolitan-district-council/walsall ,WC143-355,31.10.2022,ADULT SOCIAL CARE,ADVANCE HEALTH CARE (UK) LTD,11/10/2022,497.70,6541-Domiciliary Care,THIRD PARTY PAYMENTS,PRIVATE CONTRACTOR,REVENUE
Walsall Council,http://opendatacommunities.org/id/metropolitan-district-council/walsall ,WC143-356,31.10.2022,ADULT SOCIAL CARE,ADVANCE HEALTH CARE (UK) LTD,11/10/2022,331.80,6541-Domiciliary Care,THIRD PARTY PAYMENTS,PRIVATE CONTRACTOR,REVENUE
Walsall Council,http://opendatacommunities.org/id/metropolitan-district-council/walsall ,WC143-357,31.10.2022,ADULT SOCIAL CARE,ADVANCE HEALTH CARE (UK) LTD,11/10/2022,497.70,6541-Domiciliary Care,THIRD PARTY PAYMENTS,PRIVATE CONTRACTOR,REVENUE
Walsall Council,http://opendatacommunities.org/id/metropolitan-district-council/walsall ,WC143-358,31.10.2022,ADULT SOCIAL CARE,ADVANCE HEALTH CARE (UK) LTD,11/10/2022,497.70,6541-Domiciliary Care,THIRD PARTY PAYMENTS,PRIVATE CONTRACTOR,REVENUE
Walsall Council,http://opendatacommunities.org/id/metropolitan-district-council/walsall ,WC143-359,31.10.2022,ADULT SOCIAL CARE,ADVANCE HEALTH CARE (UK) LTD,11/10/2022,442.40,6541-Domiciliary Care,THIRD PARTY PAYMENTS,PRIVATE CONTRACTOR,REVENUE
Walsall Council,http://opendatacommunities.org/id/metropolitan-district-council/walsall ,WC143-360,31.10.2022,ADULT SOCIAL CARE,ADVANCE HEALTH CARE (UK) LTD,11/10/2022,-568.80,6541-Domiciliary Care,THIRD PARTY PAYMENTS,PRIVATE CONTRACTOR,REVENUE
Walsall Council,http://opendatacommunities.org/id/metropolitan-district-council/walsall ,WC143-361,31.10.2022,ADULT SOCIAL CARE,ADVANCE HEALTH CARE (UK) LTD,11/10/2022,331.94,6541-Domiciliary Care,THIRD PARTY PAYMENTS,PRIVATE CONTRACTOR,REVENUE
Walsall Council,http://opendatacommunities.org/id/metropolitan-district-council/walsall ,WC143-362,31.10.2022,ADULT SOCIAL CARE,ADVANCE HEALTH CARE (UK) LTD,11/10/2022,497.70,6541-Domiciliary Care,THIRD PARTY PAYMENTS,PRIVATE CONTRACTOR,REVENUE
Walsall Council,http://opendatacommunities.org/id/metropolitan-district-council/walsall ,WC143-363,31.10.2022,ADULT SOCIAL CARE,ADVANCE HEALTH CARE (UK) LTD,11/10/2022,845.30,6541-Domiciliary Care,THIRD PARTY PAYMENTS,PRIVATE CONTRACTOR,REVENUE
Walsall Council,http://opendatacommunities.org/id/metropolitan-district-council/walsall ,WC143-364,31.10.2022,ADULT SOCIAL CARE,ADVANCE HEALTH CARE (UK) LTD,11/10/2022,387.24,6541-Domiciliary Care,THIRD PARTY PAYMENTS,PRIVATE CONTRACTOR,REVENUE
Walsall Council,http://opendatacommunities.org/id/metropolitan-district-council/walsall ,WC143-365,31.10.2022,ADULT SOCIAL CARE,ADVANCE HEALTH CARE (UK) LTD,11/10/2022,497.70,6541-Domiciliary Care,THIRD PARTY PAYMENTS,PRIVATE CONTRACTOR,REVENUE
Walsall Council,http://opendatacommunities.org/id/metropolitan-district-council/walsall ,WC143-366,31.10.2022,ADULT SOCIAL CARE,ADVANCE HEALTH CARE (UK) LTD,11/10/2022,497.70,6541-Domiciliary Care,THIRD PARTY PAYMENTS,PRIVATE CONTRACTOR,REVENUE
Walsall Council,http://opendatacommunities.org/id/metropolitan-district-council/walsall ,WC143-367,31.10.2022,ADULT SOCIAL CARE,ADVANCE HEALTH CARE (UK) LTD,11/10/2022,553.00,6541-Domiciliary Care,THIRD PARTY PAYMENTS,PRIVATE CONTRACTOR,REVENUE
Walsall Council,http://opendatacommunities.org/id/metropolitan-district-council/walsall ,WC143-368,31.10.2022,ADULT SOCIAL CARE,ADVANCE HEALTH CARE (UK) LTD,11/10/2022,387.10,6541-Domiciliary Care,THIRD PARTY PAYMENTS,PRIVATE CONTRACTOR,REVENUE
Walsall Council,http://opendatacommunities.org/id/metropolitan-district-council/walsall ,WC143-369,31.10.2022,ADULT SOCIAL CARE,ADVANCE HEALTH CARE (UK) LTD,11/10/2022,331.80,6541-Domiciliary Care,THIRD PARTY PAYMENTS,PRIVATE CONTRACTOR,REVENUE
Walsall Council,http://opendatacommunities.org/id/metropolitan-district-council/walsall ,WC143-370,31.10.2022,ADULT SOCIAL CARE,ADVANCE HEALTH CARE (UK) LTD,11/10/2022,497.70,6541-Domiciliary Care,THIRD PARTY PAYMENTS,PRIVATE CONTRACTOR,REVENUE
Walsall Council,http://opendatacommunities.org/id/metropolitan-district-council/walsall ,WC143-371,31.10.2022,ADULT SOCIAL CARE,ADVANCE HEALTH CARE (UK) LTD,11/10/2022,442.40,6541-Domiciliary Care,THIRD PARTY PAYMENTS,PRIVATE CONTRACTOR,REVENUE
Walsall Council,http://opendatacommunities.org/id/metropolitan-district-council/walsall ,WC143-372,31.10.2022,ADULT SOCIAL CARE,ADVANCE HEALTH CARE (UK) LTD,11/10/2022,553.00,6541-Domiciliary Care,THIRD PARTY PAYMENTS,PRIVATE CONTRACTOR,REVENUE
Walsall Council,http://opendatacommunities.org/id/metropolitan-district-council/walsall ,WC143-373,31.10.2022,ADULT SOCIAL CARE,ADVANCE HEALTH CARE (UK) LTD,11/10/2022,387.10,6541-Domiciliary Care,THIRD PARTY PAYMENTS,PRIVATE CONTRACTOR,REVENUE
Walsall Council,http://opendatacommunities.org/id/metropolitan-district-council/walsall ,WC143-374,31.10.2022,ADULT SOCIAL CARE,ADVANCE HEALTH CARE (UK) LTD,11/10/2022,884.80,6541-Domiciliary Care,THIRD PARTY PAYMENTS,PRIVATE CONTRACTOR,REVENUE
Walsall Council,http://opendatacommunities.org/id/metropolitan-district-council/walsall ,WC143-375,31.10.2022,ADULT SOCIAL CARE,ADVANCE HEALTH CARE (UK) LTD,11/10/2022,497.70,6541-Domiciliary Care,THIRD PARTY PAYMENTS,PRIVATE CONTRACTOR,REVENUE
Walsall Council,http://opendatacommunities.org/id/metropolitan-district-council/walsall ,WC143-376,31.10.2022,ADULT SOCIAL CARE,ADVANCE HEALTH CARE (UK) LTD,11/10/2022,331.80,6541-Domiciliary Care,THIRD PARTY PAYMENTS,PRIVATE CONTRACTOR,REVENUE
Walsall Council,http://opendatacommunities.org/id/metropolitan-district-council/walsall ,WC143-377,31.10.2022,ADULT SOCIAL CARE,ADVANCE HEALTH CARE (UK) LTD,11/10/2022,553.00,6541-Domiciliary Care,THIRD PARTY PAYMENTS,PRIVATE CONTRACTOR,REVENUE
Walsall Council,http://opendatacommunities.org/id/metropolitan-district-council/walsall ,WC143-378,31.10.2022,ADULT SOCIAL CARE,ADVANCE HEALTH CARE (UK) LTD,11/10/2022,497.70,6541-Domiciliary Care,THIRD PARTY PAYMENTS,PRIVATE CONTRACTOR,REVENUE
Walsall Council,http://opendatacommunities.org/id/metropolitan-district-council/walsall ,WC143-379,31.10.2022,ADULT SOCIAL CARE,ADVANCE HEALTH CARE (UK) LTD,11/10/2022,497.70,6541-Domiciliary Care,THIRD PARTY PAYMENTS,PRIVATE CONTRACTOR,REVENUE
Walsall Council,http://opendatacommunities.org/id/metropolitan-district-council/walsall ,WC143-380,31.10.2022,ADULT SOCIAL CARE,ADVANCE HEALTH CARE (UK) LTD,11/10/2022,497.70,6541-Domiciliary Care,THIRD PARTY PAYMENTS,PRIVATE CONTRACTOR,REVENUE
Walsall Council,http://opendatacommunities.org/id/metropolitan-district-council/walsall ,WC143-381,31.10.2022,ADULT SOCIAL CARE,ADVANCE HEALTH CARE (UK) LTD,11/10/2022,497.70,6541-Domiciliary Care,THIRD PARTY PAYMENTS,PRIVATE CONTRACTOR,REVENUE
Walsall Council,http://opendatacommunities.org/id/metropolitan-district-council/walsall ,WC143-382,31.10.2022,ADULT SOCIAL CARE,ADVANCE HEALTH CARE (UK) LTD,11/10/2022,489.80,6541-Domiciliary Care,THIRD PARTY PAYMENTS,PRIVATE CONTRACTOR,REVENUE
Walsall Council,http://opendatacommunities.org/id/metropolitan-district-council/walsall ,WC143-383,31.10.2022,ADULT SOCIAL CARE,ADVANCE HEALTH CARE (UK) LTD,11/10/2022,497.70,6541-Domiciliary Care,THIRD PARTY PAYMENTS,PRIVATE CONTRACTOR,REVENUE
Walsall Council,http://opendatacommunities.org/id/metropolitan-district-council/walsall ,WC143-384,31.10.2022,ADULT SOCIAL CARE,ADVANCE HEALTH CARE (UK) LTD,11/10/2022,442.40,6541-Domiciliary Care,THIRD PARTY PAYMENTS,PRIVATE CONTRACTOR,REVENUE
Walsall Council,http://opendatacommunities.org/id/metropolitan-district-council/walsall ,WC143-385,31.10.2022,ADULT SOCIAL CARE,ADVANCE HEALTH CARE (UK) LTD,11/10/2022,576.70,6541-Domiciliary Care,THIRD PARTY PAYMENTS,PRIVATE CONTRACTOR,REVENUE
Walsall Council,http://opendatacommunities.org/id/metropolitan-district-council/walsall ,WC143-386,31.10.2022,ADULT SOCIAL CARE,ADVANCE HEALTH CARE (UK) LTD,11/10/2022,368.76,6541-Domiciliary Care,THIRD PARTY PAYMENTS,PRIVATE CONTRACTOR,REVENUE
Walsall Council,http://opendatacommunities.org/id/metropolitan-district-council/walsall ,WC143-387,31.10.2022,ADULT SOCIAL CARE,ADVANCE HEALTH CARE (UK) LTD,11/10/2022,331.80,6541-Domiciliary Care,THIRD PARTY PAYMENTS,PRIVATE CONTRACTOR,REVENUE
Walsall Council,http://opendatacommunities.org/id/metropolitan-district-council/walsall ,WC143-388,31.10.2022,ADULT SOCIAL CARE,ADVANCE HEALTH CARE (UK) LTD,11/10/2022,331.94,6541-Domiciliary Care,THIRD PARTY PAYMENTS,PRIVATE CONTRACTOR,REVENUE
Walsall Council,http://opendatacommunities.org/id/metropolitan-district-council/walsall ,WC143-389,31.10.2022,ADULT SOCIAL CARE,ADVANCE HEALTH CARE (UK) LTD,11/10/2022,497.70,6541-Domiciliary Care,THIRD PARTY PAYMENTS,PRIVATE CONTRACTOR,REVENUE
Walsall Council,http://opendatacommunities.org/id/metropolitan-district-council/walsall ,WC143-390,31.10.2022,ADULT SOCIAL CARE,ADVANCE HEALTH CARE (UK) LTD,11/10/2022,553.00,6541-Domiciliary Care,THIRD PARTY PAYMENTS,PRIVATE CONTRACTOR,REVENUE
Walsall Council,http://opendatacommunities.org/id/metropolitan-district-council/walsall ,WC143-391,31.10.2022,ADULT SOCIAL CARE,ADVANCE HEALTH CARE (UK) LTD,20/10/2022,252.80,6554-Professional Services-Priv Contractor & Other Agencies,THIRD PARTY PAYMENTS,PRIVATE CONTRACTOR,REVENUE
Walsall Council,http://opendatacommunities.org/id/metropolitan-district-council/walsall ,WC143-392,31.10.2022,ADULT SOCIAL CARE,ADVANCE HEALTH CARE (UK) LTD,20/10/2022,"1,990.80",6541-Domiciliary Care,THIRD PARTY PAYMENTS,PRIVATE CONTRACTOR,REVENUE
Walsall Council,http://opendatacommunities.org/id/metropolitan-district-council/walsall ,WC143-393,31.10.2022,ADULT SOCIAL CARE,ADVANCE HEALTH CARE (UK) LTD,20/10/2022,592.50,6554-Professional Services-Priv Contractor & Other Agencies,THIRD PARTY PAYMENTS,PRIVATE CONTRACTOR,REVENUE
Walsall Council,http://opendatacommunities.org/id/metropolitan-district-council/walsall ,WC143-394,31.10.2022,ADULT SOCIAL CARE,ADVANCE HEALTH CARE (UK) LTD,20/10/2022,884.80,6541-Domiciliary Care,THIRD PARTY PAYMENTS,PRIVATE CONTRACTOR,REVENUE
Walsall Council,http://opendatacommunities.org/id/metropolitan-district-council/walsall ,WC143-395,31.10.2022,ADULT SOCIAL CARE,ADVANCE HEALTH CARE (UK) LTD,20/10/2022,"1,990.80",6541-Domiciliary Care,THIRD PARTY PAYMENTS,PRIVATE CONTRACTOR,REVENUE
Walsall Council,http://opendatacommunities.org/id/metropolitan-district-council/walsall ,WC143-396,31.10.2022,ADULT SOCIAL CARE,ADVANCE HEALTH CARE (UK) LTD,20/10/2022,"1,548.40",6541-Domiciliary Care,THIRD PARTY PAYMENTS,PRIVATE CONTRACTOR,REVENUE
Walsall Council,http://opendatacommunities.org/id/metropolitan-district-council/walsall ,WC143-397,31.10.2022,ADULT SOCIAL CARE,ADVANCE HEALTH CARE (UK) LTD,25/10/2022,576.70,6541-Domiciliary Care,THIRD PARTY PAYMENTS,PRIVATE CONTRACTOR,REVENUE
Walsall Council,http://opendatacommunities.org/id/metropolitan-district-council/walsall ,WC143-398,31.10.2022,ADULT SOCIAL CARE,ADVANCE HEALTH CARE (UK) LTD,25/10/2022,368.76,6541-Domiciliary Care,THIRD PARTY PAYMENTS,PRIVATE CONTRACTOR,REVENUE
Walsall Council,http://opendatacommunities.org/id/metropolitan-district-council/walsall ,WC143-399,31.10.2022,ADULT SOCIAL CARE,ADVANCE HEALTH CARE (UK) LTD,25/10/2022,845.30,6541-Domiciliary Care,THIRD PARTY PAYMENTS,PRIVATE CONTRACTOR,REVENUE
Walsall Council,http://opendatacommunities.org/id/metropolitan-district-council/walsall ,WC143-400,31.10.2022,ADULT SOCIAL CARE,ADVANCE HEALTH CARE (UK) LTD,25/10/2022,387.24,6541-Domiciliary Care,THIRD PARTY PAYMENTS,PRIVATE CONTRACTOR,REVENUE
Walsall Council,http://opendatacommunities.org/id/metropolitan-district-council/walsall ,WC143-401,31.10.2022,ADULT SOCIAL CARE,ADVANCE HEALTH CARE (UK) LTD,25/10/2022,497.70,6541-Domiciliary Care,THIRD PARTY PAYMENTS,PRIVATE CONTRACTOR,REVENUE
Walsall Council,http://opendatacommunities.org/id/metropolitan-district-council/walsall ,WC143-402,31.10.2022,ADULT SOCIAL CARE,ADVANCE HEALTH CARE (UK) LTD,25/10/2022,497.70,6541-Domiciliary Care,THIRD PARTY PAYMENTS,PRIVATE CONTRACTOR,REVENUE
Walsall Council,http://opendatacommunities.org/id/metropolitan-district-council/walsall ,WC143-403,31.10.2022,ADULT SOCIAL CARE,ADVANCE HEALTH CARE (UK) LTD,25/10/2022,497.70,6541-Domiciliary Care,THIRD PARTY PAYMENTS,PRIVATE CONTRACTOR,REVENUE
Walsall Council,http://opendatacommunities.org/id/metropolitan-district-council/walsall ,WC143-404,31.10.2022,ADULT SOCIAL CARE,ADVANCE HEALTH CARE (UK) LTD,25/10/2022,489.80,6541-Domiciliary Care,THIRD PARTY PAYMENTS,PRIVATE CONTRACTOR,REVENUE
Walsall Council,http://opendatacommunities.org/id/metropolitan-district-council/walsall ,WC143-405,31.10.2022,ADULT SOCIAL CARE,ADVANCE HEALTH CARE (UK) LTD,25/10/2022,442.40,6541-Domiciliary Care,THIRD PARTY PAYMENTS,PRIVATE CONTRACTOR,REVENUE
Walsall Council,http://opendatacommunities.org/id/metropolitan-district-council/walsall ,WC143-406,31.10.2022,ADULT SOCIAL CARE,ADVANCE HEALTH CARE (UK) LTD,25/10/2022,331.80,6541-Domiciliary Care,THIRD PARTY PAYMENTS,PRIVATE CONTRACTOR,REVENUE
Walsall Council,http://opendatacommunities.org/id/metropolitan-district-council/walsall ,WC143-407,31.10.2022,ADULT SOCIAL CARE,ADVANCE HEALTH CARE (UK) LTD,25/10/2022,331.94,6541-Domiciliary Care,THIRD PARTY PAYMENTS,PRIVATE CONTRACTOR,REVENUE
Walsall Council,http://opendatacommunities.org/id/metropolitan-district-council/walsall ,WC143-408,31.10.2022,ADULT SOCIAL CARE,ADVANCE HEALTH CARE (UK) LTD,25/10/2022,497.70,6541-Domiciliary Care,THIRD PARTY PAYMENTS,PRIVATE CONTRACTOR,REVENUE
Walsall Council,http://opendatacommunities.org/id/metropolitan-district-council/walsall ,WC143-409,31.10.2022,ADULT SOCIAL CARE,ADVANCE HEALTH CARE (UK) LTD,25/10/2022,553.00,6541-Domiciliary Care,THIRD PARTY PAYMENTS,PRIVATE CONTRACTOR,REVENUE
Walsall Council,http://opendatacommunities.org/id/metropolitan-district-council/walsall ,WC143-410,31.10.2022,ADULT SOCIAL CARE,ADVANCE HEALTH CARE (UK) LTD,25/10/2022,387.10,6541-Domiciliary Care,THIRD PARTY PAYMENTS,PRIVATE CONTRACTOR,REVENUE
Walsall Council,http://opendatacommunities.org/id/metropolitan-district-council/walsall ,WC143-411,31.10.2022,ADULT SOCIAL CARE,ADVANCE HEALTH CARE (UK) LTD,25/10/2022,331.80,6541-Domiciliary Care,THIRD PARTY PAYMENTS,PRIVATE CONTRACTOR,REVENUE
Walsall Council,http://opendatacommunities.org/id/metropolitan-district-council/walsall ,WC143-412,31.10.2022,ADULT SOCIAL CARE,ADVANCE HEALTH CARE (UK) LTD,25/10/2022,497.70,6541-Domiciliary Care,THIRD PARTY PAYMENTS,PRIVATE CONTRACTOR,REVENUE
Walsall Council,http://opendatacommunities.org/id/metropolitan-district-council/walsall ,WC143-413,31.10.2022,ADULT SOCIAL CARE,ADVANCE HEALTH CARE (UK) LTD,25/10/2022,331.80,6541-Domiciliary Care,THIRD PARTY PAYMENTS,PRIVATE CONTRACTOR,REVENUE
Walsall Council,http://opendatacommunities.org/id/metropolitan-district-council/walsall ,WC143-414,31.10.2022,ADULT SOCIAL CARE,ADVANCE HEALTH CARE (UK) LTD,25/10/2022,497.70,6541-Domiciliary Care,THIRD PARTY PAYMENTS,PRIVATE CONTRACTOR,REVENUE
Walsall Council,http://opendatacommunities.org/id/metropolitan-district-council/walsall ,WC143-415,31.10.2022,ADULT SOCIAL CARE,ADVANCE HEALTH CARE (UK) LTD,25/10/2022,442.40,6541-Domiciliary Care,THIRD PARTY PAYMENTS,PRIVATE CONTRACTOR,REVENUE
Walsall Council,http://opendatacommunities.org/id/metropolitan-district-council/walsall ,WC143-416,31.10.2022,ADULT SOCIAL CARE,ADVANCE HEALTH CARE (UK) LTD,25/10/2022,331.94,6541-Domiciliary Care,THIRD PARTY PAYMENTS,PRIVATE CONTRACTOR,REVENUE
Walsall Council,http://opendatacommunities.org/id/metropolitan-district-council/walsall ,WC143-417,31.10.2022,ADULT SOCIAL CARE,ADVANCE HEALTH CARE (UK) LTD,25/10/2022,497.70,6541-Domiciliary Care,THIRD PARTY PAYMENTS,PRIVATE CONTRACTOR,REVENUE
Walsall Council,http://opendatacommunities.org/id/metropolitan-district-council/walsall ,WC143-418,31.10.2022,ADULT SOCIAL CARE,ADVANCE HEALTH CARE (UK) LTD,25/10/2022,497.70,6541-Domiciliary Care,THIRD PARTY PAYMENTS,PRIVATE CONTRACTOR,REVENUE
Walsall Council,http://opendatacommunities.org/id/metropolitan-district-council/walsall ,WC143-419,31.10.2022,ADULT SOCIAL CARE,ADVANCE HEALTH CARE (UK) LTD,25/10/2022,497.70,6541-Domiciliary Care,THIRD PARTY PAYMENTS,PRIVATE CONTRACTOR,REVENUE
Walsall Council,http://opendatacommunities.org/id/metropolitan-district-council/walsall ,WC143-420,31.10.2022,ADULT SOCIAL CARE,ADVANCE HEALTH CARE (UK) LTD,25/10/2022,553.00,6541-Domiciliary Care,THIRD PARTY PAYMENTS,PRIVATE CONTRACTOR,REVENUE
Walsall Council,http://opendatacommunities.org/id/metropolitan-district-council/walsall ,WC143-421,31.10.2022,ADULT SOCIAL CARE,ADVANCE HEALTH CARE (UK) LTD,25/10/2022,497.70,6541-Domiciliary Care,THIRD PARTY PAYMENTS,PRIVATE CONTRACTOR,REVENUE
Walsall Council,http://opendatacommunities.org/id/metropolitan-district-council/walsall ,WC143-422,31.10.2022,ADULT SOCIAL CARE,ADVANCE HEALTH CARE (UK) LTD,25/10/2022,553.00,6541-Domiciliary Care,THIRD PARTY PAYMENTS,PRIVATE CONTRACTOR,REVENUE
Walsall Council,http://opendatacommunities.org/id/metropolitan-district-council/walsall ,WC143-423,31.10.2022,ADULT SOCIAL CARE,ADVANCE HEALTH CARE (UK) LTD,25/10/2022,387.10,6541-Domiciliary Care,THIRD PARTY PAYMENTS,PRIVATE CONTRACTOR,REVENUE
Walsall Council,http://opendatacommunities.org/id/metropolitan-district-council/walsall ,WC143-424,31.10.2022,ADULT SOCIAL CARE,ADVANCE HEALTH CARE (UK) LTD,25/10/2022,497.70,6541-Domiciliary Care,THIRD PARTY PAYMENTS,PRIVATE CONTRACTOR,REVENUE
Walsall Council,http://opendatacommunities.org/id/metropolitan-district-council/walsall ,WC143-425,31.10.2022,ADULT SOCIAL CARE,ADVANCE HEALTH CARE (UK) LTD,25/10/2022,884.80,6541-Domiciliary Care,THIRD PARTY PAYMENTS,PRIVATE CONTRACTOR,REVENUE
Walsall Council,http://opendatacommunities.org/id/metropolitan-district-council/walsall ,WC143-426,31.10.2022,ADULT SOCIAL CARE,ADVANCE HEALTH CARE (UK) LTD,25/10/2022,553.00,6541-Domiciliary Care,THIRD PARTY PAYMENTS,PRIVATE CONTRACTOR,REVENUE
Walsall Council,http://opendatacommunities.org/id/metropolitan-district-council/walsall ,WC143-427,31.10.2022,ADULT SOCIAL CARE,ADVANCE HEALTH CARE (UK) LTD,25/10/2022,497.70,6541-Domiciliary Care,THIRD PARTY PAYMENTS,PRIVATE CONTRACTOR,REVENUE
Walsall Council,http://opendatacommunities.org/id/metropolitan-district-council/walsall ,WC143-428,31.10.2022,ADULT SOCIAL CARE,ADVANCE HEALTH CARE (UK) LTD,25/10/2022,497.70,6541-Domiciliary Care,THIRD PARTY PAYMENTS,PRIVATE CONTRACTOR,REVENUE
Walsall Council,http://opendatacommunities.org/id/metropolitan-district-council/walsall ,WC143-429,31.10.2022,ADULT SOCIAL CARE,ADVANCE HEALTH CARE (UK) LTD,25/10/2022,331.80,6541-Domiciliary Care,THIRD PARTY PAYMENTS,PRIVATE CONTRACTOR,REVENUE
Walsall Council,http://opendatacommunities.org/id/metropolitan-district-council/walsall ,WC143-430,31.10.2022,ADULT SOCIAL CARE,ADVANCE HEALTH CARE (UK) LTD,25/10/2022,497.70,6541-Domiciliary Care,THIRD PARTY PAYMENTS,PRIVATE CONTRACTOR,REVENUE
Walsall Council,http://opendatacommunities.org/id/metropolitan-district-council/walsall ,WC143-431,31.10.2022,ADULT SOCIAL CARE,ADVANCE HEALTH CARE (UK) LTD,25/10/2022,497.70,6541-Domiciliary Care,THIRD PARTY PAYMENTS,PRIVATE CONTRACTOR,REVENUE
Walsall Council,http://opendatacommunities.org/id/metropolitan-district-council/walsall ,WC143-432,31.10.2022,ADULT SOCIAL CARE,ADVANCE HEALTH CARE (UK) LTD,25/10/2022,497.70,6541-Domiciliary Care,THIRD PARTY PAYMENTS,PRIVATE CONTRACTOR,REVENUE
Walsall Council,http://opendatacommunities.org/id/metropolitan-district-council/walsall ,WC143-433,31.10.2022,ADULT SOCIAL CARE,ADVANCE HEALTH CARE (UK) LTD,25/10/2022,497.70,6541-Domiciliary Care,THIRD PARTY PAYMENTS,PRIVATE CONTRACTOR,REVENUE
Walsall Council,http://opendatacommunities.org/id/metropolitan-district-council/walsall ,WC143-434,31.10.2022,ADULT SOCIAL CARE,ADVANCE HEALTH CARE (UK) LTD,25/10/2022,553.00,6541-Domiciliary Care,THIRD PARTY PAYMENTS,PRIVATE CONTRACTOR,REVENUE
Walsall Council,http://opendatacommunities.org/id/metropolitan-district-council/walsall ,WC143-435,31.10.2022,ADULT SOCIAL CARE,ADVANCE HEALTH CARE (UK) LTD,25/10/2022,442.40,6541-Domiciliary Care,THIRD PARTY PAYMENTS,PRIVATE CONTRACTOR,REVENUE
Walsall Council,http://opendatacommunities.org/id/metropolitan-district-council/walsall ,WC143-436,31.10.2022,ADULT SOCIAL CARE,ADVANCE HEALTH CARE (UK) LTD,25/10/2022,497.70,6541-Domiciliary Care,THIRD PARTY PAYMENTS,PRIVATE CONTRACTOR,REVENUE
Walsall Council,http://opendatacommunities.org/id/metropolitan-district-council/walsall ,WC143-437,31.10.2022,ADULT SOCIAL CARE,ADVANCE HEALTH CARE (UK) LTD,25/10/2022,553.00,6541-Domiciliary Care,THIRD PARTY PAYMENTS,PRIVATE CONTRACTOR,REVENUE
Walsall Council,http://opendatacommunities.org/id/metropolitan-district-council/walsall ,WC143-438,31.10.2022,ADULT SOCIAL CARE,ADVANCE HEALTH CARE (UK) LTD,25/10/2022,497.70,6541-Domiciliary Care,THIRD PARTY PAYMENTS,PRIVATE CONTRACTOR,REVENUE
Walsall Council,http://opendatacommunities.org/id/metropolitan-district-council/walsall ,WC143-439,31.10.2022,ADULT SOCIAL CARE,ADVANCE HEALTH CARE (UK) LTD,25/10/2022,497.70,6541-Domiciliary Care,THIRD PARTY PAYMENTS,PRIVATE CONTRACTOR,REVENUE
Walsall Council,http://opendatacommunities.org/id/metropolitan-district-council/walsall ,WC143-440,31.10.2022,ADULT SOCIAL CARE,ADVANCE HEALTH CARE (UK) LTD,25/10/2022,489.80,6541-Domiciliary Care,THIRD PARTY PAYMENTS,PRIVATE CONTRACTOR,REVENUE
Walsall Council,http://opendatacommunities.org/id/metropolitan-district-council/walsall ,WC143-441,31.10.2022,ADULT SOCIAL CARE,ADVANCE HEALTH CARE (UK) LTD,25/10/2022,576.70,6541-Domiciliary Care,THIRD PARTY PAYMENTS,PRIVATE CONTRACTOR,REVENUE
Walsall Council,http://opendatacommunities.org/id/metropolitan-district-council/walsall ,WC143-442,31.10.2022,ADULT SOCIAL CARE,ADVANCE HEALTH CARE (UK) LTD,25/10/2022,368.76,6541-Domiciliary Care,THIRD PARTY PAYMENTS,PRIVATE CONTRACTOR,REVENUE
Walsall Council,http://opendatacommunities.org/id/metropolitan-district-council/walsall ,WC143-443,31.10.2022,ADULT SOCIAL CARE,ADVANCE HEALTH CARE (UK) LTD,25/10/2022,331.80,6541-Domiciliary Care,THIRD PARTY PAYMENTS,PRIVATE CONTRACTOR,REVENUE
Walsall Council,http://opendatacommunities.org/id/metropolitan-district-council/walsall ,WC143-444,31.10.2022,ADULT SOCIAL CARE,ADVANCE HEALTH CARE (UK) LTD,25/10/2022,331.94,6541-Domiciliary Care,THIRD PARTY PAYMENTS,PRIVATE CONTRACTOR,REVENUE
Walsall Council,http://opendatacommunities.org/id/metropolitan-district-council/walsall ,WC143-445,31.10.2022,ADULT SOCIAL CARE,ADVANCE HEALTH CARE (UK) LTD,25/10/2022,497.70,6541-Domiciliary Care,THIRD PARTY PAYMENTS,PRIVATE CONTRACTOR,REVENUE
Walsall Council,http://opendatacommunities.org/id/metropolitan-district-council/walsall ,WC143-446,31.10.2022,ADULT SOCIAL CARE,ADVANCE HEALTH CARE (UK) LTD,25/10/2022,553.00,6541-Domiciliary Care,THIRD PARTY PAYMENTS,PRIVATE CONTRACTOR,REVENUE
Walsall Council,http://opendatacommunities.org/id/metropolitan-district-council/walsall ,WC143-447,31.10.2022,ADULT SOCIAL CARE,ADVANCE HEALTH CARE (UK) LTD,25/10/2022,331.94,6541-Domiciliary Care,THIRD PARTY PAYMENTS,PRIVATE CONTRACTOR,REVENUE
Walsall Council,http://opendatacommunities.org/id/metropolitan-district-council/walsall ,WC143-448,31.10.2022,ADULT SOCIAL CARE,ADVANCE HEALTH CARE (UK) LTD,25/10/2022,497.70,6541-Domiciliary Care,THIRD PARTY PAYMENTS,PRIVATE CONTRACTOR,REVENUE
Walsall Council,http://opendatacommunities.org/id/metropolitan-district-council/walsall ,WC143-449,31.10.2022,ADULT SOCIAL CARE,ADVANCE HEALTH CARE (UK) LTD,25/10/2022,497.70,6541-Domiciliary Care,THIRD PARTY PAYMENTS,PRIVATE CONTRACTOR,REVENUE
Walsall Council,http://opendatacommunities.org/id/metropolitan-district-council/walsall ,WC143-450,31.10.2022,ADULT SOCIAL CARE,ADVANCE HEALTH CARE (UK) LTD,25/10/2022,442.40,6541-Domiciliary Care,THIRD PARTY PAYMENTS,PRIVATE CONTRACTOR,REVENUE
Walsall Council,http://opendatacommunities.org/id/metropolitan-district-council/walsall ,WC143-451,31.10.2022,ADULT SOCIAL CARE,ADVANCE HEALTH CARE (UK) LTD,25/10/2022,553.00,6541-Domiciliary Care,THIRD PARTY PAYMENTS,PRIVATE CONTRACTOR,REVENUE
Walsall Council,http://opendatacommunities.org/id/metropolitan-district-council/walsall ,WC143-452,31.10.2022,ADULT SOCIAL CARE,ADVANCE HEALTH CARE (UK) LTD,25/10/2022,884.80,6541-Domiciliary Care,THIRD PARTY PAYMENTS,PRIVATE CONTRACTOR,REVENUE
Walsall Council,http://opendatacommunities.org/id/metropolitan-district-council/walsall ,WC143-453,31.10.2022,ADULT SOCIAL CARE,ADVANCE HEALTH CARE (UK) LTD,25/10/2022,845.30,6541-Domiciliary Care,THIRD PARTY PAYMENTS,PRIVATE CONTRACTOR,REVENUE
Walsall Council,http://opendatacommunities.org/id/metropolitan-district-council/walsall ,WC143-454,31.10.2022,ADULT SOCIAL CARE,ADVANCE HEALTH CARE (UK) LTD,25/10/2022,387.24,6541-Domiciliary Care,THIRD PARTY PAYMENTS,PRIVATE CONTRACTOR,REVENUE
Walsall Council,http://opendatacommunities.org/id/metropolitan-district-council/walsall ,WC143-455,31.10.2022,ADULT SOCIAL CARE,ADVANCE HEALTH CARE (UK) LTD,25/10/2022,387.10,6541-Domiciliary Care,THIRD PARTY PAYMENTS,PRIVATE CONTRACTOR,REVENUE
Walsall Council,http://opendatacommunities.org/id/metropolitan-district-council/walsall ,WC143-456,31.10.2022,ADULT SOCIAL CARE,ADVANCE HEALTH CARE (UK) LTD,25/10/2022,331.80,6541-Domiciliary Care,THIRD PARTY PAYMENTS,PRIVATE CONTRACTOR,REVENUE
Walsall Council,http://opendatacommunities.org/id/metropolitan-district-council/walsall ,WC143-457,31.10.2022,CHILDRENS CAPITAL,ADVANCED CONTRACTS (MIDLANDS) LTD,19/10/2022,"3,020.00",7155-Site Works Contractors,CAPITAL,"NEW CONSTRUCTION,CONVERSION & RENOVATION",CAPITAL
Walsall Council,http://opendatacommunities.org/id/metropolitan-district-council/walsall ,WC143-458,31.10.2022,CHILDRENS,ADVENTURELAND DAY NURSERY,17/10/2022,"1,594.13",1184-Other-Grants to Other Orgs,SUPPLIES & SERVICES,GRANTS (EXP) & SUBSCRIPTIONS,REVENUE
Walsall Council,http://opendatacommunities.org/id/metropolitan-district-council/walsall ,WC143-459,31.10.2022,CHILDRENS,ADVENTURELAND DAY NURSERY,04/10/2022,640.00,1184-Transfer Payments-Other Schoolchildren/Student Related Items,TRANSFER PAYMENTS,SCHOOLCHILDREN/STUDENTS,REVENUE
Walsall Council,http://opendatacommunities.org/id/metropolitan-district-council/walsall ,WC143-460,31.10.2022,CHILDRENS,ADVENTURELAND DAY NURSERY,17/10/2022,"5,359.20",1184-Other-Grants to Other Orgs,SUPPLIES & SERVICES,GRANTS (EXP) & SUBSCRIPTIONS,REVENUE
Walsall Council,http://opendatacommunities.org/id/metropolitan-district-council/walsall ,WC143-461,31.10.2022,CHILDRENS,ADVENTURELAND DAY NURSERY,04/10/2022,"1,280.00",1184-Transfer Payments-Other Schoolchildren/Student Related Items,TRANSFER PAYMENTS,SCHOOLCHILDREN/STUDENTS,REVENUE
Walsall Council,http://opendatacommunities.org/id/metropolitan-district-council/walsall ,WC143-462,31.10.2022,ADULT SOCIAL CARE,ADVINIA CARE HOMES LTD - HAMMERWICH HALL CARE HOME,25/10/2022,"2,366.04",6541-Residential EMI,THIRD PARTY PAYMENTS,PRIVATE CONTRACTOR,REVENUE
Walsall Council,http://opendatacommunities.org/id/metropolitan-district-council/walsall ,WC143-463,31.10.2022,ADULT SOCIAL CARE,ADVINIA CARE HOMES LTD - HAMMERWICH HALL CARE HOME,25/10/2022,"2,095.40",6541-Residential,THIRD PARTY PAYMENTS,PRIVATE CONTRACTOR,REVENUE
Walsall Council,http://opendatacommunities.org/id/metropolitan-district-council/walsall ,WC143-464,31.10.2022,RESOURCES AND TRANSFORMATION,AFRICAN FRENCH SPEAKING COMMUNITY SUPPORT,31/10/2022,"9,571.80",6312-Grants to Other Orgs,SUPPLIES & SERVICES,GRANTS (EXP) & SUBSCRIPTIONS,REVENUE
Walsall Council,http://opendatacommunities.org/id/metropolitan-district-council/walsall ,WC143-465,31.10.2022,RESOURCES AND TRANSFORMATION CAPITAL,AGILISYS LTD,12/10/2022,"12,334.52",7300-Consultants Fees,CAPITAL,"NEW CONSTRUCTION,CONVERSION & RENOVATION",CAPITAL
Walsall Council,http://opendatacommunities.org/id/metropolitan-district-council/walsall ,WC143-466,31.10.2022,RESOURCES AND TRANSFORMATION CAPITAL,AGILISYS LTD,12/10/2022,"32,050.00",7300-Consultants Fees,CAPITAL,"NEW CONSTRUCTION,CONVERSION & RENOVATION",CAPITAL
Walsall Council,http://opendatacommunities.org/id/metropolitan-district-council/walsall ,WC143-467,31.10.2022,RESOURCES AND TRANSFORMATION CAPITAL,AGILISYS LTD,12/10/2022,"26,051.00",7300-Consultants Fees,CAPITAL,"NEW CONSTRUCTION,CONVERSION & RENOVATION",CAPITAL
Walsall Council,http://opendatacommunities.org/id/metropolitan-district-council/walsall ,WC143-468,31.10.2022,RESOURCES AND TRANSFORMATION CAPITAL,AGILISYS LTD,21/10/2022,"-87,485.86",7300-Consultants Fees,CAPITAL,"NEW CONSTRUCTION,CONVERSION & RENOVATION",CAPITAL
Walsall Council,http://opendatacommunities.org/id/metropolitan-district-council/walsall ,WC143-469,31.10.2022,RESOURCES AND TRANSFORMATION CAPITAL,AGILISYS LTD,21/10/2022,"87,485.86",7300-Consultants Fees,CAPITAL,"NEW CONSTRUCTION,CONVERSION & RENOVATION",CAPITAL
Walsall Council,http://opendatacommunities.org/id/metropolitan-district-council/walsall ,WC143-470,31.10.2022,"ECONOMY, ENVIRONMENT & COMMUNITIES",AGROVISTA UK LTD,26/10/2022,971.74,6410-Materials,SUPPLIES & SERVICES,EQUIPMENT FURNITURE & MATERIALS,REVENUE
Walsall Council,http://opendatacommunities.org/id/metropolitan-district-council/walsall ,WC143-471,31.10.2022,CHILDRENS,AHMAD & WILLIAMS SOLICITORS,20/10/2022,500.00,6223-Professional Fees & Services,SUPPLIES & SERVICES,SERVICES,REVENUE
Walsall Council,http://opendatacommunities.org/id/metropolitan-district-council/walsall ,WC143-472,31.10.2022,ADULT SOCIAL CARE,REDACTED,05/10/2022,"2,517.12",6541-Direct Payment,THIRD PARTY PAYMENTS,PRIVATE CONTRACTOR,REVENUE
Walsall Council,http://opendatacommunities.org/id/metropolitan-district-council/walsall ,WC143-473,31.10.2022,ADULT SOCIAL CARE,REDACTED,05/10/2022,380.80,6541-Direct Payment,THIRD PARTY PAYMENTS,PRIVATE CONTRACTOR,REVENUE
Walsall Council,http://opendatacommunities.org/id/metropolitan-district-council/walsall ,WC143-474,31.10.2022,CHILDRENS,ALASDAIR CANT & ASSOCIATES LIMITED,07/10/2022,"2,605.50",6220-Professional Fees & Services,SUPPLIES & SERVICES,SERVICES,REVENUE
Walsall Council,http://opendatacommunities.org/id/metropolitan-district-council/walsall ,WC143-475,31.10.2022,"ECONOMY, ENVIRONMENT & COMMUNITIES",ALBERT JAGGER LTD,06/10/2022,544.00,6410-Materials,SUPPLIES & SERVICES,EQUIPMENT FURNITURE & MATERIALS,REVENUE
Walsall Council,http://opendatacommunities.org/id/metropolitan-district-council/walsall ,WC143-476,31.10.2022,"ECONOMY, ENVIRONMENT & COMMUNITIES",ALBERT JAGGER LTD,31/10/2022,317.60,6410-Materials to Stores,SUPPLIES & SERVICES,EQUIPMENT FURNITURE & MATERIALS,REVENUE
Walsall Council,http://opendatacommunities.org/id/metropolitan-district-council/walsall ,WC143-477,31.10.2022,CHILDRENS,ALBRIGHTON CARE LTD,03/10/2022,"117,060.00",6223-External Residential Care-Oth Agency Provision,THIRD PARTY PAYMENTS,PRIVATE CONTRACTOR,REVENUE
Walsall Council,http://opendatacommunities.org/id/metropolitan-district-council/walsall ,WC143-478,31.10.2022,CHILDRENS,ALBRIGHTON CARE LTD,28/10/2022,"24,960.00",6223-External Residential Care-Oth Agency Provision,THIRD PARTY PAYMENTS,PRIVATE CONTRACTOR,REVENUE
Walsall Council,http://opendatacommunities.org/id/metropolitan-district-council/walsall ,WC143-479,31.10.2022,CHILDRENS,ALDRIDGE & BARONS LIMITED,10/10/2022,"1,699.80",6241-Hire of Vehicle with Driver,TRANSPORT,DIRECT TRANSPORT COSTS,REVENUE
Walsall Council,http://opendatacommunities.org/id/metropolitan-district-council/walsall ,WC143-480,31.10.2022,CHILDRENS,ALDRIDGE & BARONS LIMITED,10/10/2022,"1,521.00",6241-Hire of Vehicle with Driver,TRANSPORT,DIRECT TRANSPORT COSTS,REVENUE
Walsall Council,http://opendatacommunities.org/id/metropolitan-district-council/walsall ,WC143-481,31.10.2022,CHILDRENS,ALDRIDGE & BARONS LIMITED,10/10/2022,"1,167.60",6241-Hire of Vehicle with Driver,TRANSPORT,DIRECT TRANSPORT COSTS,REVENUE
Walsall Council,http://opendatacommunities.org/id/metropolitan-district-council/walsall ,WC143-482,31.10.2022,CHILDRENS,ALDRIDGE & BARONS LIMITED,10/10/2022,"1,876.94",6241-Hire of Vehicle with Driver,TRANSPORT,DIRECT TRANSPORT COSTS,REVENUE
Walsall Council,http://opendatacommunities.org/id/metropolitan-district-council/walsall ,WC143-483,31.10.2022,CHILDRENS,ALDRIDGE & BARONS LIMITED,10/10/2022,"2,160.00",6241-Hire of Vehicle with Driver,TRANSPORT,DIRECT TRANSPORT COSTS,REVENUE
Walsall Council,http://opendatacommunities.org/id/metropolitan-district-council/walsall ,WC143-484,31.10.2022,CHILDRENS,ALDRIDGE & BARONS LIMITED,10/10/2022,"1,339.20",6241-Hire of Vehicle with Driver,TRANSPORT,DIRECT TRANSPORT COSTS,REVENUE
Walsall Council,http://opendatacommunities.org/id/metropolitan-district-council/walsall ,WC143-485,31.10.2022,CHILDRENS,ALDRIDGE & BARONS LIMITED,10/10/2022,"1,656.00",6241-Hire of Vehicle with Driver,TRANSPORT,DIRECT TRANSPORT COSTS,REVENUE
Walsall Council,http://opendatacommunities.org/id/metropolitan-district-council/walsall ,WC143-486,31.10.2022,CHILDRENS,ALDRIDGE & BARONS LIMITED,10/10/2022,"1,375.00",6241-Hire of Vehicle with Driver,TRANSPORT,DIRECT TRANSPORT COSTS,REVENUE
Walsall Council,http://opendatacommunities.org/id/metropolitan-district-council/walsall ,WC143-487,31.10.2022,CHILDRENS,ALDRIDGE & BARONS LIMITED,10/10/2022,"1,268.80",6241-Hire of Vehicle with Driver,TRANSPORT,DIRECT TRANSPORT COSTS,REVENUE
Walsall Council,http://opendatacommunities.org/id/metropolitan-district-council/walsall ,WC143-488,31.10.2022,CHILDRENS,ALDRIDGE & BARONS LIMITED,10/10/2022,845.00,6241-Hire of Vehicle with Driver,TRANSPORT,DIRECT TRANSPORT COSTS,REVENUE
Walsall Council,http://opendatacommunities.org/id/metropolitan-district-council/walsall ,WC143-489,31.10.2022,CHILDRENS,ALDRIDGE & BARONS LIMITED,10/10/2022,"2,100.00",6241-Hire of Vehicle with Driver,TRANSPORT,DIRECT TRANSPORT COSTS,REVENUE
Walsall Council,http://opendatacommunities.org/id/metropolitan-district-council/walsall ,WC143-490,31.10.2022,CHILDRENS,ALDRIDGE & BARONS LIMITED,10/10/2022,"1,116.05",6241-Hire of Vehicle with Driver,TRANSPORT,DIRECT TRANSPORT COSTS,REVENUE
Walsall Council,http://opendatacommunities.org/id/metropolitan-district-council/walsall ,WC143-491,31.10.2022,CHILDRENS,ALDRIDGE & BARONS LIMITED,10/10/2022,973.50,6241-Hire of Vehicle with Driver,TRANSPORT,DIRECT TRANSPORT COSTS,REVENUE
Walsall Council,http://opendatacommunities.org/id/metropolitan-district-council/walsall ,WC143-492,31.10.2022,CHILDRENS,ALDRIDGE & BARONS LIMITED,10/10/2022,"1,366.80",6241-Hire of Vehicle with Driver,TRANSPORT,DIRECT TRANSPORT COSTS,REVENUE
Walsall Council,http://opendatacommunities.org/id/metropolitan-district-council/walsall ,WC143-493,31.10.2022,CHILDRENS,ALDRIDGE & BARONS LIMITED,10/10/2022,"1,389.60",6241-Hire of Vehicle with Driver,TRANSPORT,DIRECT TRANSPORT COSTS,REVENUE
Walsall Council,http://opendatacommunities.org/id/metropolitan-district-council/walsall ,WC143-494,31.10.2022,CHILDRENS,ALDRIDGE & BARONS LIMITED,10/10/2022,"1,320.00",6241-Hire of Vehicle with Driver,TRANSPORT,DIRECT TRANSPORT COSTS,REVENUE
Walsall Council,http://opendatacommunities.org/id/metropolitan-district-council/walsall ,WC143-495,31.10.2022,CHILDRENS,ALDRIDGE & BARONS LIMITED,10/10/2022,387.00,6241-Hire of Vehicle with Driver,TRANSPORT,DIRECT TRANSPORT COSTS,REVENUE
Walsall Council,http://opendatacommunities.org/id/metropolitan-district-council/walsall ,WC143-496,31.10.2022,CHILDRENS,ALDRIDGE & BARONS LIMITED,10/10/2022,360.00,6241-Hire of Vehicle with Driver,TRANSPORT,DIRECT TRANSPORT COSTS,REVENUE
Walsall Council,http://opendatacommunities.org/id/metropolitan-district-council/walsall ,WC143-497,31.10.2022,CHILDRENS,ALDRIDGE & BARONS LIMITED,10/10/2022,"1,327.70",6241-Hire of Vehicle with Driver,TRANSPORT,DIRECT TRANSPORT COSTS,REVENUE
Walsall Council,http://opendatacommunities.org/id/metropolitan-district-council/walsall ,WC143-498,31.10.2022,CHILDRENS,ALDRIDGE & BARONS LIMITED,10/10/2022,"2,177.28",6241-Hire of Vehicle with Driver,TRANSPORT,DIRECT TRANSPORT COSTS,REVENUE
Walsall Council,http://opendatacommunities.org/id/metropolitan-district-council/walsall ,WC143-499,31.10.2022,CHILDRENS,ALDRIDGE & BARONS LIMITED,10/10/2022,"1,146.96",6241-Hire of Vehicle with Driver,TRANSPORT,DIRECT TRANSPORT COSTS,REVENUE
Walsall Council,http://opendatacommunities.org/id/metropolitan-district-council/walsall ,WC143-500,31.10.2022,CHILDRENS,ALDRIDGE & BARONS LIMITED,10/10/2022,"1,244.10",6241-Hire of Vehicle with Driver,TRANSPORT,DIRECT TRANSPORT COSTS,REVENUE
Walsall Council,http://opendatacommunities.org/id/metropolitan-district-council/walsall ,WC143-501,31.10.2022,CHILDRENS,ALDRIDGE & BARONS LIMITED,10/10/2022,495.00,6241-Hire of Vehicle with Driver,TRANSPORT,DIRECT TRANSPORT COSTS,REVENUE
Walsall Council,http://opendatacommunities.org/id/metropolitan-district-council/walsall ,WC143-502,31.10.2022,CHILDRENS,ALDRIDGE & BARONS LIMITED,10/10/2022,"1,820.00",6241-Hire of Vehicle with Driver,TRANSPORT,DIRECT TRANSPORT COSTS,REVENUE
Walsall Council,http://opendatacommunities.org/id/metropolitan-district-council/walsall ,WC143-503,31.10.2022,CHILDRENS,ALDRIDGE & BARONS LIMITED,10/10/2022,"1,560.00",6241-Hire of Vehicle with Driver,TRANSPORT,DIRECT TRANSPORT COSTS,REVENUE
Walsall Council,http://opendatacommunities.org/id/metropolitan-district-council/walsall ,WC143-504,31.10.2022,CHILDRENS,ALDRIDGE & BARONS LIMITED,10/10/2022,"2,340.42",6241-Hire of Vehicle with Driver,TRANSPORT,DIRECT TRANSPORT COSTS,REVENUE
Walsall Council,http://opendatacommunities.org/id/metropolitan-district-council/walsall ,WC143-505,31.10.2022,ADULT SOCIAL CARE,REDACTED,05/10/2022,"1,516.80",6541-Direct Payment,THIRD PARTY PAYMENTS,PRIVATE CONTRACTOR,REVENUE
Walsall Council,http://opendatacommunities.org/id/metropolitan-district-council/walsall ,WC143-506,31.10.2022,ADULT SOCIAL CARE,ALEXANDRA HOUSE CARE SERVICES LTD T/A STONEBRIDGE NURSING HOME,25/10/2022,"7,434.72",6541-Residential,THIRD PARTY PAYMENTS,PRIVATE CONTRACTOR,REVENUE
Walsall Council,http://opendatacommunities.org/id/metropolitan-district-council/walsall ,WC143-507,31.10.2022,ADULT SOCIAL CARE,REDACTED,05/10/2022,971.52,6541-Direct Payment,THIRD PARTY PAYMENTS,PRIVATE CONTRACTOR,REVENUE
Walsall Council,http://opendatacommunities.org/id/metropolitan-district-council/walsall ,WC143-508,31.10.2022,CHILDRENS,REDACTED,20/10/2022,276.32,6223-Special Guardianship Orders,TRANSFER PAYMENTS,CHILDREN SOCIAL SERVICES CLIENT,REVENUE
Walsall Council,http://opendatacommunities.org/id/metropolitan-district-council/walsall ,WC143-509,31.10.2022,CHILDRENS,ALLIANCE CARE LTD,06/10/2022,"1,800.00",6220-Professional Fees & Services,SUPPLIES & SERVICES,SERVICES,REVENUE
Walsall Council,http://opendatacommunities.org/id/metropolitan-district-council/walsall ,WC143-510,31.10.2022,CHILDRENS,ALLIANCE CARE LTD,07/10/2022,288.00,6211-Agency Staff,DIRECT EMPLOYEES,AGENCY,REVENUE
Walsall Council,http://opendatacommunities.org/id/metropolitan-district-council/walsall ,WC143-511,31.10.2022,CHILDRENS,ALLIANCE CARE LTD,31/10/2022,"1,800.00",6220-Professional Fees & Services,SUPPLIES & SERVICES,SERVICES,REVENUE
Walsall Council,http://opendatacommunities.org/id/metropolitan-district-council/walsall ,WC143-512,31.10.2022,ECONOMY & ENVIRONMENT CAPITAL,ALLIANCE LEISURE SERVICES LTD,31/10/2022,"205,684.41",7200-Site Works Contractors,CAPITAL,"NEW CONSTRUCTION,CONVERSION & RENOVATION",CAPITAL
Walsall Council,http://opendatacommunities.org/id/metropolitan-district-council/walsall ,WC143-513,31.10.2022,RESOURCES AND TRANSFORMATION,ALLIED PUBLICITY SERVICES (MANCHESTER) LIMITED T/A APS GROUP,14/10/2022,"1,350.90",6312-External Printing Services,SUPPLIES & SERVICES,PRINTING STATIONERY & GENERAL OFFICE,REVENUE
Walsall Council,http://opendatacommunities.org/id/metropolitan-district-council/walsall ,WC143-514,31.10.2022,ADULT SOCIAL CARE,ALMA COURT,25/10/2022,"3,667.80",6541-Nursing EMI,THIRD PARTY PAYMENTS,PRIVATE CONTRACTOR,REVENUE
Walsall Council,http://opendatacommunities.org/id/metropolitan-district-council/walsall ,WC143-515,31.10.2022,ADULT SOCIAL CARE,ALMA COURT,25/10/2022,"6,718.40",6541-Residential,THIRD PARTY PAYMENTS,PRIVATE CONTRACTOR,REVENUE
Walsall Council,http://opendatacommunities.org/id/metropolitan-district-council/walsall ,WC143-516,31.10.2022,ADULT SOCIAL CARE,ALMA COURT,25/10/2022,"4,805.72",6541-Nursing EMI,THIRD PARTY PAYMENTS,PRIVATE CONTRACTOR,REVENUE
Walsall Council,http://opendatacommunities.org/id/metropolitan-district-council/walsall ,WC143-517,31.10.2022,ADULT SOCIAL CARE,ALMA COURT,25/10/2022,"4,263.00",6541-Residential,THIRD PARTY PAYMENTS,PRIVATE CONTRACTOR,REVENUE
Walsall Council,http://opendatacommunities.org/id/metropolitan-district-council/walsall ,WC143-518,31.10.2022,ADULT SOCIAL CARE,ALMA COURT,25/10/2022,"4,000.00",6541-Nursing EMI,THIRD PARTY PAYMENTS,PRIVATE CONTRACTOR,REVENUE
Walsall Council,http://opendatacommunities.org/id/metropolitan-district-council/walsall ,WC143-519,31.10.2022,ADULT SOCIAL CARE,ALMA COURT,20/10/2022,664.06,6541-Nursing,THIRD PARTY PAYMENTS,PRIVATE CONTRACTOR,REVENUE
Walsall Council,http://opendatacommunities.org/id/metropolitan-district-council/walsall ,WC143-520,31.10.2022,CHILDRENS,ALMOZENE NURSERY & CHILDRENS CENTRE,17/10/2022,"5,559.00",1184-Other-Grants to Other Orgs,SUPPLIES & SERVICES,GRANTS (EXP) & SUBSCRIPTIONS,REVENUE
Walsall Council,http://opendatacommunities.org/id/metropolitan-district-council/walsall ,WC143-521,31.10.2022,CHILDRENS,ALMOZENE NURSERY & CHILDRENS CENTRE,17/10/2022,"1,969.68",1184-Other-Grants to Other Orgs,SUPPLIES & SERVICES,GRANTS (EXP) & SUBSCRIPTIONS,REVENUE
Walsall Council,http://opendatacommunities.org/id/metropolitan-district-council/walsall ,WC143-522,31.10.2022,ADULT SOCIAL CARE,ALPHA HEALTH CARE LTD,25/10/2022,"2,763.80",6541-Nursing EMI,THIRD PARTY PAYMENTS,PRIVATE CONTRACTOR,REVENUE
Walsall Council,http://opendatacommunities.org/id/metropolitan-district-council/walsall ,WC143-523,31.10.2022,ADULT SOCIAL CARE,ALPHA HEALTH CARE LTD,25/10/2022,"2,998.00",6541-Nursing,THIRD PARTY PAYMENTS,PRIVATE CONTRACTOR,REVENUE
Walsall Council,http://opendatacommunities.org/id/metropolitan-district-council/walsall ,WC143-524,31.10.2022,ADULT SOCIAL CARE,ALPHA HEALTH CARE LTD,25/10/2022,"3,667.80",6541-Nursing EMI,THIRD PARTY PAYMENTS,PRIVATE CONTRACTOR,REVENUE
Walsall Council,http://opendatacommunities.org/id/metropolitan-district-council/walsall ,WC143-525,31.10.2022,ADULT SOCIAL CARE,ALPHA HEALTH CARE LTD,25/10/2022,"2,630.96",6541-Residential,THIRD PARTY PAYMENTS,PRIVATE CONTRACTOR,REVENUE
Walsall Council,http://opendatacommunities.org/id/metropolitan-district-council/walsall ,WC143-526,31.10.2022,ADULT SOCIAL CARE,ALPHA HEALTH CARE LTD,25/10/2022,"32,903.11",6541-Nursing EMI,THIRD PARTY PAYMENTS,PRIVATE CONTRACTOR,REVENUE
Walsall Council,http://opendatacommunities.org/id/metropolitan-district-council/walsall ,WC143-527,31.10.2022,ADULT SOCIAL CARE,ALPHA HEALTH CARE LTD,25/10/2022,"3,105.16",6541-Nursing EMI,THIRD PARTY PAYMENTS,PRIVATE CONTRACTOR,REVENUE
Walsall Council,http://opendatacommunities.org/id/metropolitan-district-council/walsall ,WC143-528,31.10.2022,ADULT SOCIAL CARE,ALPHA HEALTH CARE LTD,25/10/2022,"3,085.88",6541-Nursing,THIRD PARTY PAYMENTS,PRIVATE CONTRACTOR,REVENUE
Walsall Council,http://opendatacommunities.org/id/metropolitan-district-council/walsall ,WC143-529,31.10.2022,ADULT SOCIAL CARE,ALPHA HEALTH CARE LTD,25/10/2022,"2,856.24",6541-Nursing,THIRD PARTY PAYMENTS,PRIVATE CONTRACTOR,REVENUE
Walsall Council,http://opendatacommunities.org/id/metropolitan-district-council/walsall ,WC143-530,31.10.2022,ADULT SOCIAL CARE,ALPHA HEALTH CARE LTD,25/10/2022,"3,132.12",6541-Nursing EMI,THIRD PARTY PAYMENTS,PRIVATE CONTRACTOR,REVENUE
Walsall Council,http://opendatacommunities.org/id/metropolitan-district-council/walsall ,WC143-531,31.10.2022,ADULT SOCIAL CARE,ALPHA HEALTH CARE LTD,25/10/2022,"3,398.04",6541-Residential EMI,THIRD PARTY PAYMENTS,PRIVATE CONTRACTOR,REVENUE
Walsall Council,http://opendatacommunities.org/id/metropolitan-district-council/walsall ,WC143-532,31.10.2022,ADULT SOCIAL CARE,ALPHA HEALTH CARE LTD,25/10/2022,"3,090.44",6541-Nursing EMI,THIRD PARTY PAYMENTS,PRIVATE CONTRACTOR,REVENUE
Walsall Council,http://opendatacommunities.org/id/metropolitan-district-council/walsall ,WC143-533,31.10.2022,ADULT SOCIAL CARE,ALPHA HEALTH CARE LTD,25/10/2022,"3,374.96",6541-Residential EMI,THIRD PARTY PAYMENTS,PRIVATE CONTRACTOR,REVENUE
Walsall Council,http://opendatacommunities.org/id/metropolitan-district-council/walsall ,WC143-534,31.10.2022,ADULT SOCIAL CARE,ALPHA HEALTH CARE LTD,25/10/2022,"2,889.52",6541-Residential EMI,THIRD PARTY PAYMENTS,PRIVATE CONTRACTOR,REVENUE
Walsall Council,http://opendatacommunities.org/id/metropolitan-district-council/walsall ,WC143-535,31.10.2022,ADULT SOCIAL CARE,ALPHA HEALTH CARE LTD,25/10/2022,"6,343.36",6541-Residential,THIRD PARTY PAYMENTS,PRIVATE CONTRACTOR,REVENUE
Walsall Council,http://opendatacommunities.org/id/metropolitan-district-council/walsall ,WC143-536,31.10.2022,ADULT SOCIAL CARE,ALPHA HEALTH CARE LTD,25/10/2022,"6,785.71",6541-Professional Services-Priv Contractor & Other Agencies,THIRD PARTY PAYMENTS,PRIVATE CONTRACTOR,REVENUE
Walsall Council,http://opendatacommunities.org/id/metropolitan-district-council/walsall ,WC143-537,31.10.2022,ADULT SOCIAL CARE,ALPHA HEALTH CARE LTD,25/10/2022,"21,930.96",6541-Residential EMI,THIRD PARTY PAYMENTS,PRIVATE CONTRACTOR,REVENUE
Walsall Council,http://opendatacommunities.org/id/metropolitan-district-council/walsall ,WC143-538,31.10.2022,ADULT SOCIAL CARE,ALPHA HEALTH CARE LTD,25/10/2022,"3,132.12",6541-Nursing EMI,THIRD PARTY PAYMENTS,PRIVATE CONTRACTOR,REVENUE
Walsall Council,http://opendatacommunities.org/id/metropolitan-district-council/walsall ,WC143-539,31.10.2022,ADULT SOCIAL CARE,ALPHA HEALTH CARE LTD,25/10/2022,"7,105.00",6541-Residential,THIRD PARTY PAYMENTS,PRIVATE CONTRACTOR,REVENUE
Walsall Council,http://opendatacommunities.org/id/metropolitan-district-council/walsall ,WC143-540,31.10.2022,ADULT SOCIAL CARE,ALPHA HEALTH CARE LTD,25/10/2022,"3,374.96",6541-Residential EMI,THIRD PARTY PAYMENTS,PRIVATE CONTRACTOR,REVENUE
Walsall Council,http://opendatacommunities.org/id/metropolitan-district-council/walsall ,WC143-541,31.10.2022,ADULT SOCIAL CARE,ALPHA HEALTH CARE LTD,25/10/2022,"4,800.00",6541-Nursing EMI,THIRD PARTY PAYMENTS,PRIVATE CONTRACTOR,REVENUE
Walsall Council,http://opendatacommunities.org/id/metropolitan-district-council/walsall ,WC143-542,31.10.2022,ADULT SOCIAL CARE,ALPHA HEALTH CARE LTD,25/10/2022,"2,763.80",6541-Nursing EMI,THIRD PARTY PAYMENTS,PRIVATE CONTRACTOR,REVENUE
Walsall Council,http://opendatacommunities.org/id/metropolitan-district-council/walsall ,WC143-543,31.10.2022,ADULT SOCIAL CARE,ALPHA HEALTH CARE LTD,25/10/2022,"7,067.80",6541-Nursing EMI,THIRD PARTY PAYMENTS,PRIVATE CONTRACTOR,REVENUE
Walsall Council,http://opendatacommunities.org/id/metropolitan-district-council/walsall ,WC143-544,31.10.2022,ADULT SOCIAL CARE,ALPHA HEALTH CARE LTD,25/10/2022,"2,366.04",6541-Residential EMI,THIRD PARTY PAYMENTS,PRIVATE CONTRACTOR,REVENUE
Walsall Council,http://opendatacommunities.org/id/metropolitan-district-council/walsall ,WC143-545,31.10.2022,ADULT SOCIAL CARE,ALPHA HEALTH CARE LTD,25/10/2022,"2,766.04",6541-Residential EMI,THIRD PARTY PAYMENTS,PRIVATE CONTRACTOR,REVENUE
Walsall Council,http://opendatacommunities.org/id/metropolitan-district-council/walsall ,WC143-546,31.10.2022,ADULT SOCIAL CARE,ALPHA HEALTH CARE LTD,25/10/2022,"3,980.00",6541-Residential,THIRD PARTY PAYMENTS,PRIVATE CONTRACTOR,REVENUE
Walsall Council,http://opendatacommunities.org/id/metropolitan-district-council/walsall ,WC143-547,31.10.2022,ADULT SOCIAL CARE,ALPHA HEALTH CARE LTD,25/10/2022,814.29,6541-Professional Services-Priv Contractor & Other Agencies,THIRD PARTY PAYMENTS,PRIVATE CONTRACTOR,REVENUE
Walsall Council,http://opendatacommunities.org/id/metropolitan-district-council/walsall ,WC143-548,31.10.2022,ADULT SOCIAL CARE,ALPHA HEALTH CARE LTD,25/10/2022,"3,958.52",6541-Residential,THIRD PARTY PAYMENTS,PRIVATE CONTRACTOR,REVENUE
Walsall Council,http://opendatacommunities.org/id/metropolitan-district-council/walsall ,WC143-549,31.10.2022,ADULT SOCIAL CARE,ALPHA HEALTH CARE LTD,25/10/2022,"3,836.28",6541-Nursing,THIRD PARTY PAYMENTS,PRIVATE CONTRACTOR,REVENUE
Walsall Council,http://opendatacommunities.org/id/metropolitan-district-council/walsall ,WC143-550,31.10.2022,ADULT SOCIAL CARE,ALPHA HEALTH CARE LTD,20/10/2022,598.72,6541-Residential,THIRD PARTY PAYMENTS,PRIVATE CONTRACTOR,REVENUE
Walsall Council,http://opendatacommunities.org/id/metropolitan-district-council/walsall ,WC143-551,31.10.2022,ADULT SOCIAL CARE,ALPHA HEALTH CARE LTD,20/10/2022,598.72,6541-Residential,THIRD PARTY PAYMENTS,PRIVATE CONTRACTOR,REVENUE
Walsall Council,http://opendatacommunities.org/id/metropolitan-district-council/walsall ,WC143-552,31.10.2022,ADULT SOCIAL CARE,ALPHA HEALTH CARE LTD,20/10/2022,748.36,6541-Residential,THIRD PARTY PAYMENTS,PRIVATE CONTRACTOR,REVENUE
Walsall Council,http://opendatacommunities.org/id/metropolitan-district-council/walsall ,WC143-553,31.10.2022,"ECONOMY, ENVIRONMENT & COMMUNITIES",ALPHA PARKING LTD,14/10/2022,"1,730.00",6411-External Training,INDIRECT EMPLOYEES,EXTERNAL TRAINING,REVENUE
Walsall Council,http://opendatacommunities.org/id/metropolitan-district-council/walsall ,WC143-554,31.10.2022,CHILDRENS,ALPHABIOLABS,19/10/2022,709.50,6222-Professional Fees & Services,SUPPLIES & SERVICES,SERVICES,REVENUE
Walsall Council,http://opendatacommunities.org/id/metropolitan-district-council/walsall ,WC143-555,31.10.2022,CHILDRENS,ALPHABIOLABS,19/10/2022,309.30,6222-Professional Fees & Services,SUPPLIES & SERVICES,SERVICES,REVENUE
Walsall Council,http://opendatacommunities.org/id/metropolitan-district-council/walsall ,WC143-556,31.10.2022,RESOURCES AND TRANSFORMATION,ALTAIR ENGINEERING LTD,17/10/2022,"1,329.21",6623-Computer Equipment,SUPPLIES & SERVICES,COMMUNICATIONS & COMPUTING,REVENUE
Walsall Council,http://opendatacommunities.org/id/metropolitan-district-council/walsall ,WC143-557,31.10.2022,CHILDRENS,AMAH NURSERIES LIMITED T/A BANANA MOON WALSALL,17/10/2022,"5,436.38",1184-Other-Grants to Other Orgs,SUPPLIES & SERVICES,GRANTS (EXP) & SUBSCRIPTIONS,REVENUE
Walsall Council,http://opendatacommunities.org/id/metropolitan-district-council/walsall ,WC143-558,31.10.2022,CHILDRENS,AMAH NURSERIES LIMITED T/A BANANA MOON WALSALL,17/10/2022,"13,954.80",1184-Other-Grants to Other Orgs,SUPPLIES & SERVICES,GRANTS (EXP) & SUBSCRIPTIONS,REVENUE
Walsall Council,http://opendatacommunities.org/id/metropolitan-district-council/walsall ,WC143-559,31.10.2022,CHILDRENS,AMANS TRAVEL LTD,10/10/2022,"2,380.00",6241-Hire of Vehicle with Driver,TRANSPORT,DIRECT TRANSPORT COSTS,REVENUE
Walsall Council,http://opendatacommunities.org/id/metropolitan-district-council/walsall ,WC143-560,31.10.2022,CHILDRENS,AMANS TRAVEL LTD,10/10/2022,"1,620.00",6241-Hire of Vehicle with Driver,TRANSPORT,DIRECT TRANSPORT COSTS,REVENUE
Walsall Council,http://opendatacommunities.org/id/metropolitan-district-council/walsall ,WC143-561,31.10.2022,CHILDRENS,AMANS TRAVEL LTD,10/10/2022,"2,193.60",6241-Hire of Vehicle with Driver,TRANSPORT,DIRECT TRANSPORT COSTS,REVENUE
Walsall Council,http://opendatacommunities.org/id/metropolitan-district-council/walsall ,WC143-562,31.10.2022,CHILDRENS,AMANS TRAVEL LTD,10/10/2022,"2,280.00",6241-Hire of Vehicle with Driver,TRANSPORT,DIRECT TRANSPORT COSTS,REVENUE
Walsall Council,http://opendatacommunities.org/id/metropolitan-district-council/walsall ,WC143-563,31.10.2022,CHILDRENS,AMANS TRAVEL LTD,10/10/2022,"2,280.00",6241-Hire of Vehicle with Driver,TRANSPORT,DIRECT TRANSPORT COSTS,REVENUE
Walsall Council,http://opendatacommunities.org/id/metropolitan-district-council/walsall ,WC143-564,31.10.2022,ADULT SOCIAL CARE,REDACTED,05/10/2022,"3,836.45",6541-Direct Payment,THIRD PARTY PAYMENTS,PRIVATE CONTRACTOR,REVENUE
Walsall Council,http://opendatacommunities.org/id/metropolitan-district-council/walsall ,WC143-565,31.10.2022,ADULT SOCIAL CARE,REDACTED,05/10/2022,"1,650.88",6541-Direct Payment,THIRD PARTY PAYMENTS,PRIVATE CONTRACTOR,REVENUE
Walsall Council,http://opendatacommunities.org/id/metropolitan-district-council/walsall ,WC143-566,31.10.2022,"ECONOMY, ENVIRONMENT & COMMUNITIES",AMEY LG LIMITED,17/10/2022,654.68,6411-Professional Services-Priv Contractor & Other Agencies,THIRD PARTY PAYMENTS,PRIVATE CONTRACTOR,REVENUE
Walsall Council,http://opendatacommunities.org/id/metropolitan-district-council/walsall ,WC143-567,31.10.2022,"ECONOMY, ENVIRONMENT & COMMUNITIES",AMEY LG LIMITED,13/10/2022,"1,985.81",6411-Professional Services-Priv Contractor & Other Agencies,THIRD PARTY PAYMENTS,PRIVATE CONTRACTOR,REVENUE
Walsall Council,http://opendatacommunities.org/id/metropolitan-district-council/walsall ,WC143-568,31.10.2022,"ECONOMY, ENVIRONMENT & COMMUNITIES",AMEY LG LIMITED,20/10/2022,"7,678.18",6411-Materials,SUPPLIES & SERVICES,EQUIPMENT FURNITURE & MATERIALS,REVENUE
Walsall Council,http://opendatacommunities.org/id/metropolitan-district-council/walsall ,WC143-569,31.10.2022,"ECONOMY, ENVIRONMENT & COMMUNITIES",AMEY LG LIMITED,13/10/2022,744.68,6411-Professional Services-Priv Contractor & Other Agencies,THIRD PARTY PAYMENTS,PRIVATE CONTRACTOR,REVENUE
Walsall Council,http://opendatacommunities.org/id/metropolitan-district-council/walsall ,WC143-570,31.10.2022,ECONOMY & ENVIRONMENT CAPITAL,AMEY OW LTD,13/10/2022,"2,726.97",7200-Site Works Contractors,CAPITAL,"NEW CONSTRUCTION,CONVERSION & RENOVATION",CAPITAL
Walsall Council,http://opendatacommunities.org/id/metropolitan-district-council/walsall ,WC143-571,31.10.2022,ECONOMY & ENVIRONMENT CAPITAL,AMEY OW LTD,13/10/2022,"2,378.61",7200-Consultants Fees,CAPITAL,"NEW CONSTRUCTION,CONVERSION & RENOVATION",CAPITAL
Walsall Council,http://opendatacommunities.org/id/metropolitan-district-council/walsall ,WC143-572,31.10.2022,ECONOMY & ENVIRONMENT CAPITAL,AMEY OW LTD,13/10/2022,410.81,7200-Site Works Contractors,CAPITAL,"NEW CONSTRUCTION,CONVERSION & RENOVATION",CAPITAL
Walsall Council,http://opendatacommunities.org/id/metropolitan-district-council/walsall ,WC143-573,31.10.2022,CHILDRENS,AMG NURSING CARE SERVICES,21/10/2022,"1,322.36",6220-Professional Fees & Services,SUPPLIES & SERVICES,SERVICES,REVENUE
Walsall Council,http://opendatacommunities.org/id/metropolitan-district-council/walsall ,WC143-574,31.10.2022,CHILDRENS,AMG NURSING CARE SERVICES,18/10/2022,"1,150.72",6220-Professional Fees & Services,SUPPLIES & SERVICES,SERVICES,REVENUE
Walsall Council,http://opendatacommunities.org/id/metropolitan-district-council/walsall ,WC143-575,31.10.2022,CHILDRENS,AMG NURSING CARE SERVICES,18/10/2022,"1,799.07",6220-Professional Fees & Services,SUPPLIES & SERVICES,SERVICES,REVENUE
Walsall Council,http://opendatacommunities.org/id/metropolitan-district-council/walsall ,WC143-576,31.10.2022,CHILDRENS,AMG NURSING CARE SERVICES,19/10/2022,397.56,6220-Professional Fees & Services,SUPPLIES & SERVICES,SERVICES,REVENUE
Walsall Council,http://opendatacommunities.org/id/metropolitan-district-council/walsall ,WC143-577,31.10.2022,CHILDRENS,AMG NURSING CARE SERVICES,07/10/2022,461.00,6220-Professional Fees & Services,SUPPLIES & SERVICES,SERVICES,REVENUE
Walsall Council,http://opendatacommunities.org/id/metropolitan-district-council/walsall ,WC143-578,31.10.2022,CHILDRENS,AMG NURSING CARE SERVICES,07/10/2022,"1,602.35",6220-Professional Fees & Services,SUPPLIES & SERVICES,SERVICES,REVENUE
Walsall Council,http://opendatacommunities.org/id/metropolitan-district-council/walsall ,WC143-579,31.10.2022,CHILDRENS,AMG NURSING CARE SERVICES,13/10/2022,321.84,6220-Professional Fees & Services,SUPPLIES & SERVICES,SERVICES,REVENUE
Walsall Council,http://opendatacommunities.org/id/metropolitan-district-council/walsall ,WC143-580,31.10.2022,CHILDRENS,AMG NURSING CARE SERVICES,13/10/2022,"1,550.12",6220-Professional Fees & Services,SUPPLIES & SERVICES,SERVICES,REVENUE
Walsall Council,http://opendatacommunities.org/id/metropolitan-district-council/walsall ,WC143-581,31.10.2022,CHILDRENS,AMG NURSING CARE SERVICES,21/10/2022,406.60,6220-Professional Fees & Services,SUPPLIES & SERVICES,SERVICES,REVENUE
Walsall Council,http://opendatacommunities.org/id/metropolitan-district-council/walsall ,WC143-582,31.10.2022,CHILDRENS,AMG NURSING CARE SERVICES,21/10/2022,"1,275.00",6220-Professional Fees & Services,SUPPLIES & SERVICES,SERVICES,REVENUE
Walsall Council,http://opendatacommunities.org/id/metropolitan-district-council/walsall ,WC143-583,31.10.2022,CHILDRENS,AMG NURSING CARE SERVICES,21/10/2022,406.60,6220-Professional Fees & Services,SUPPLIES & SERVICES,SERVICES,REVENUE
Walsall Council,http://opendatacommunities.org/id/metropolitan-district-council/walsall ,WC143-584,31.10.2022,CHILDRENS,AMG NURSING CARE SERVICES,21/10/2022,746.85,6220-Professional Fees & Services,SUPPLIES & SERVICES,SERVICES,REVENUE
Walsall Council,http://opendatacommunities.org/id/metropolitan-district-council/walsall ,WC143-585,31.10.2022,CHILDRENS,AMG NURSING CARE SERVICES,31/10/2022,"1,550.12",6220-Professional Fees & Services,SUPPLIES & SERVICES,SERVICES,REVENUE
Walsall Council,http://opendatacommunities.org/id/metropolitan-district-council/walsall ,WC143-586,31.10.2022,"ECONOMY, ENVIRONMENT & COMMUNITIES",AMICK PRODUCTIONS LTD,03/10/2022,"5,573.85",6414-Professional Fees & Services,SUPPLIES & SERVICES,SERVICES,REVENUE
Walsall Council,http://opendatacommunities.org/id/metropolitan-district-council/walsall ,WC143-587,31.10.2022,CHILDRENS,REDACTED,20/10/2022,608.97,6223-Foster Carers Maintenance Allowance,TRANSFER PAYMENTS,CHILDREN SOCIAL SERVICES CLIENT,REVENUE
Walsall Council,http://opendatacommunities.org/id/metropolitan-district-council/walsall ,WC143-588,31.10.2022,CHILDRENS,REDACTED,20/10/2022,340.00,6223-Internal Foster Carers-Carer Fees,TRANSFER PAYMENTS,CHILDREN SOCIAL SERVICES CLIENT,REVENUE
Walsall Council,http://opendatacommunities.org/id/metropolitan-district-council/walsall ,WC143-589,31.10.2022,ADULT SOCIAL CARE,ANCHOR CARE HOMES LTD,25/10/2022,"2,366.04",6541-Residential EMI,THIRD PARTY PAYMENTS,PRIVATE CONTRACTOR,REVENUE
Walsall Council,http://opendatacommunities.org/id/metropolitan-district-council/walsall ,WC143-590,31.10.2022,ADULT SOCIAL CARE,ANCHOR CAREHOMES LTD - HARDEN HALL,25/10/2022,"2,366.04",6541-Residential EMI,THIRD PARTY PAYMENTS,PRIVATE CONTRACTOR,REVENUE
Walsall Council,http://opendatacommunities.org/id/metropolitan-district-council/walsall ,WC143-591,31.10.2022,ADULT SOCIAL CARE,ANCHOR CAREHOMES LTD - HARDEN HALL,25/10/2022,"2,726.04",6541-Residential EMI,THIRD PARTY PAYMENTS,PRIVATE CONTRACTOR,REVENUE
Walsall Council,http://opendatacommunities.org/id/metropolitan-district-council/walsall ,WC143-592,31.10.2022,ADULT SOCIAL CARE,ANCHOR CAREHOMES LTD - HARDEN HALL,25/10/2022,"2,726.04",6541-Residential EMI,THIRD PARTY PAYMENTS,PRIVATE CONTRACTOR,REVENUE
Walsall Council,http://opendatacommunities.org/id/metropolitan-district-council/walsall ,WC143-593,31.10.2022,ADULT SOCIAL CARE,ANCHOR CAREHOMES LTD - HARDEN HALL,25/10/2022,"-8,365.64",6541-Residential EMI,THIRD PARTY PAYMENTS,PRIVATE CONTRACTOR,REVENUE
Walsall Council,http://opendatacommunities.org/id/metropolitan-district-council/walsall ,WC143-594,31.10.2022,ADULT SOCIAL CARE,ANCHOR CAREHOMES LTD - HARDEN HALL,25/10/2022,"2,646.04",6541-Residential EMI,THIRD PARTY PAYMENTS,PRIVATE CONTRACTOR,REVENUE
Walsall Council,http://opendatacommunities.org/id/metropolitan-district-council/walsall ,WC143-595,31.10.2022,ADULT SOCIAL CARE,ANCHOR CAREHOMES LTD - HARDEN HALL,25/10/2022,"2,044.53",6541-Residential EMI,THIRD PARTY PAYMENTS,PRIVATE CONTRACTOR,REVENUE
Walsall Council,http://opendatacommunities.org/id/metropolitan-district-council/walsall ,WC143-596,31.10.2022,ADULT SOCIAL CARE,ANCHOR CAREHOMES LTD - HARDEN HALL,25/10/2022,"7,184.23",6541-Residential,THIRD PARTY PAYMENTS,PRIVATE CONTRACTOR,REVENUE
Walsall Council,http://opendatacommunities.org/id/metropolitan-district-council/walsall ,WC143-597,31.10.2022,ADULT SOCIAL CARE,ANCHOR CAREHOMES LTD - HARDEN HALL,25/10/2022,"2,366.04",6541-Residential EMI,THIRD PARTY PAYMENTS,PRIVATE CONTRACTOR,REVENUE
Walsall Council,http://opendatacommunities.org/id/metropolitan-district-council/walsall ,WC143-598,31.10.2022,ADULT SOCIAL CARE,ANCHOR CAREHOMES LTD - HARDEN HALL,25/10/2022,"2,726.04",6541-Residential EMI,THIRD PARTY PAYMENTS,PRIVATE CONTRACTOR,REVENUE
Walsall Council,http://opendatacommunities.org/id/metropolitan-district-council/walsall ,WC143-599,31.10.2022,ADULT SOCIAL CARE,ANCHOR CAREHOMES LTD - HARDEN HALL,25/10/2022,"2,726.04",6541-Residential EMI,THIRD PARTY PAYMENTS,PRIVATE CONTRACTOR,REVENUE
Walsall Council,http://opendatacommunities.org/id/metropolitan-district-council/walsall ,WC143-600,31.10.2022,ADULT SOCIAL CARE,ANCHOR CAREHOMES LTD - HARDEN HALL,25/10/2022,973.59,6541-Residential & Nursing Care Placements,THIRD PARTY PAYMENTS,PRIVATE CONTRACTOR,REVENUE
Walsall Council,http://opendatacommunities.org/id/metropolitan-district-council/walsall ,WC143-601,31.10.2022,ADULT SOCIAL CARE,ANCHOR CAREHOMES LTD - HARDEN HALL,25/10/2022,"1,752.46",6541-Residential EMI,THIRD PARTY PAYMENTS,PRIVATE CONTRACTOR,REVENUE
Walsall Council,http://opendatacommunities.org/id/metropolitan-district-council/walsall ,WC143-602,31.10.2022,ADULT SOCIAL CARE,ANCHOR CAREHOMES LTD - HARDEN HALL,25/10/2022,"2,366.04",6541-Residential EMI,THIRD PARTY PAYMENTS,PRIVATE CONTRACTOR,REVENUE
Walsall Council,http://opendatacommunities.org/id/metropolitan-district-council/walsall ,WC143-603,31.10.2022,ADULT SOCIAL CARE,ANCHOR CAREHOMES LTD - HARDEN HALL,25/10/2022,"2,566.04",6541-Residential EMI,THIRD PARTY PAYMENTS,PRIVATE CONTRACTOR,REVENUE
Walsall Council,http://opendatacommunities.org/id/metropolitan-district-council/walsall ,WC143-604,31.10.2022,ADULT SOCIAL CARE,ANCHOR CAREHOMES LTD - HARDEN HALL,25/10/2022,"2,726.04",6541-Residential EMI,THIRD PARTY PAYMENTS,PRIVATE CONTRACTOR,REVENUE
Walsall Council,http://opendatacommunities.org/id/metropolitan-district-council/walsall ,WC143-605,31.10.2022,ADULT SOCIAL CARE,ANCHOR CAREHOMES LTD - HARDEN HALL,25/10/2022,"2,366.04",6541-Residential EMI,THIRD PARTY PAYMENTS,PRIVATE CONTRACTOR,REVENUE
Walsall Council,http://opendatacommunities.org/id/metropolitan-district-council/walsall ,WC143-606,31.10.2022,ADULT SOCIAL CARE,ANCHOR CAREHOMES LTD - HARDEN HALL,25/10/2022,"2,366.04",6541-Residential EMI,THIRD PARTY PAYMENTS,PRIVATE CONTRACTOR,REVENUE
Walsall Council,http://opendatacommunities.org/id/metropolitan-district-council/walsall ,WC143-607,31.10.2022,ADULT SOCIAL CARE,ANCHOR CAREHOMES LTD - HARDEN HALL,25/10/2022,"2,197.04",6541-Residential EMI,THIRD PARTY PAYMENTS,PRIVATE CONTRACTOR,REVENUE
Walsall Council,http://opendatacommunities.org/id/metropolitan-district-council/walsall ,WC143-608,31.10.2022,ADULT SOCIAL CARE,ANCHOR CAREHOMES LTD - HARDEN HALL,25/10/2022,"2,095.40",6541-Residential,THIRD PARTY PAYMENTS,PRIVATE CONTRACTOR,REVENUE
Walsall Council,http://opendatacommunities.org/id/metropolitan-district-council/walsall ,WC143-609,31.10.2022,ADULT SOCIAL CARE,ANCHOR CAREHOMES LTD - HARDEN HALL,25/10/2022,"2,095.40",6541-Residential,THIRD PARTY PAYMENTS,PRIVATE CONTRACTOR,REVENUE
Walsall Council,http://opendatacommunities.org/id/metropolitan-district-council/walsall ,WC143-610,31.10.2022,ADULT SOCIAL CARE,ANCHOR CAREHOMES LTD - HARDEN HALL,25/10/2022,"2,366.04",6541-Residential EMI,THIRD PARTY PAYMENTS,PRIVATE CONTRACTOR,REVENUE
Walsall Council,http://opendatacommunities.org/id/metropolitan-district-council/walsall ,WC143-611,31.10.2022,ADULT SOCIAL CARE,ANCHOR CAREHOMES LTD - HARDEN HALL,25/10/2022,"2,366.04",6541-Residential EMI,THIRD PARTY PAYMENTS,PRIVATE CONTRACTOR,REVENUE
Walsall Council,http://opendatacommunities.org/id/metropolitan-district-council/walsall ,WC143-612,31.10.2022,ADULT SOCIAL CARE,ANCHOR CAREHOMES LTD - HARDEN HALL,25/10/2022,"2,366.04",6541-Residential EMI,THIRD PARTY PAYMENTS,PRIVATE CONTRACTOR,REVENUE
Walsall Council,http://opendatacommunities.org/id/metropolitan-district-council/walsall ,WC143-613,31.10.2022,ADULT SOCIAL CARE,ANCHOR CAREHOMES LTD - HARDEN HALL,25/10/2022,"2,366.04",6541-Residential EMI,THIRD PARTY PAYMENTS,PRIVATE CONTRACTOR,REVENUE
Walsall Council,http://opendatacommunities.org/id/metropolitan-district-council/walsall ,WC143-614,31.10.2022,ADULT SOCIAL CARE,ANCHOR CAREHOMES LTD - HARDEN HALL,25/10/2022,"2,366.04",6541-Residential EMI,THIRD PARTY PAYMENTS,PRIVATE CONTRACTOR,REVENUE
Walsall Council,http://opendatacommunities.org/id/metropolitan-district-council/walsall ,WC143-615,31.10.2022,ADULT SOCIAL CARE,ANCHOR CAREHOMES LTD - HARDEN HALL,25/10/2022,"2,417.00",6541-Residential EMI,THIRD PARTY PAYMENTS,PRIVATE CONTRACTOR,REVENUE
Walsall Council,http://opendatacommunities.org/id/metropolitan-district-council/walsall ,WC143-616,31.10.2022,ADULT SOCIAL CARE,ANCHOR CAREHOMES LTD - HARDEN HALL,25/10/2022,"2,566.04",6541-Residential EMI,THIRD PARTY PAYMENTS,PRIVATE CONTRACTOR,REVENUE
Walsall Council,http://opendatacommunities.org/id/metropolitan-district-council/walsall ,WC143-617,31.10.2022,ADULT SOCIAL CARE,ANCHOR CAREHOMES LTD - HARDEN HALL,25/10/2022,"2,095.40",6541-Residential,THIRD PARTY PAYMENTS,PRIVATE CONTRACTOR,REVENUE
Walsall Council,http://opendatacommunities.org/id/metropolitan-district-council/walsall ,WC143-618,31.10.2022,CHILDRENS,REDACTED,20/10/2022,335.84,6223-Special Guardianship Orders,TRANSFER PAYMENTS,CHILDREN SOCIAL SERVICES CLIENT,REVENUE
Walsall Council,http://opendatacommunities.org/id/metropolitan-district-council/walsall ,WC143-619,31.10.2022,ADULT SOCIAL CARE,REDACTED,05/10/2022,"2,749.20",6541-Direct Payment,THIRD PARTY PAYMENTS,PRIVATE CONTRACTOR,REVENUE
Walsall Council,http://opendatacommunities.org/id/metropolitan-district-council/walsall ,WC143-620,31.10.2022,CHILDRENS CAPITAL,ANDREWS ELECTRICAL LTD,13/10/2022,"12,850.00",7155-Purchase of Furniture & Equipment,CAPITAL,"VEHICLES,PLANT,EQUIPMENT & MACHINERY",CAPITAL
Walsall Council,http://opendatacommunities.org/id/metropolitan-district-council/walsall ,WC143-621,31.10.2022,CHILDRENS CAPITAL,ANDREWS ELECTRICAL LTD,13/10/2022,"3,800.00",7155-Purchase of Furniture & Equipment,CAPITAL,"VEHICLES,PLANT,EQUIPMENT & MACHINERY",CAPITAL
Walsall Council,http://opendatacommunities.org/id/metropolitan-district-council/walsall ,WC143-622,31.10.2022,RESOURCES AND TRANSFORMATION,ANDREWS ELECTRICAL LTD,21/10/2022,"3,890.00",6310-Planned Maintenance,PREMISES,REPAIRS & MAINTENANCE,REVENUE
Walsall Council,http://opendatacommunities.org/id/metropolitan-district-council/walsall ,WC143-623,31.10.2022,RESOURCES AND TRANSFORMATION,ANDREWS ELECTRICAL LTD,21/10/2022,"3,850.00",6310-Planned Maintenance,PREMISES,REPAIRS & MAINTENANCE,REVENUE
Walsall Council,http://opendatacommunities.org/id/metropolitan-district-council/walsall ,WC143-624,31.10.2022,CHILDRENS CAPITAL,ANDREWS ELECTRICAL LTD,21/10/2022,"2,350.00",7155-Site Works Contractors,CAPITAL,"NEW CONSTRUCTION,CONVERSION & RENOVATION",CAPITAL
Walsall Council,http://opendatacommunities.org/id/metropolitan-district-council/walsall ,WC143-625,31.10.2022,CHILDRENS,REDACTED,20/10/2022,390.32,6223-Special Guardianship Orders,TRANSFER PAYMENTS,CHILDREN SOCIAL SERVICES CLIENT,REVENUE
Walsall Council,http://opendatacommunities.org/id/metropolitan-district-council/walsall ,WC143-626,31.10.2022,CHILDRENS,REDACTED,20/10/2022,529.75,6223-Special Guardianship Orders,TRANSFER PAYMENTS,CHILDREN SOCIAL SERVICES CLIENT,REVENUE
Walsall Council,http://opendatacommunities.org/id/metropolitan-district-council/walsall ,WC143-627,31.10.2022,CHILDRENS,REDACTED,20/10/2022,332.28,6223-Special Guardianship Orders,TRANSFER PAYMENTS,CHILDREN SOCIAL SERVICES CLIENT,REVENUE
Walsall Council,http://opendatacommunities.org/id/metropolitan-district-council/walsall ,WC143-628,31.10.2022,CHILDRENS,ANGELS AND BUTTERFLIES CHILDMINDING,17/10/2022,286.13,1184-Other-Grants to Other Orgs,SUPPLIES & SERVICES,GRANTS (EXP) & SUBSCRIPTIONS,REVENUE
Walsall Council,http://opendatacommunities.org/id/metropolitan-district-council/walsall ,WC143-629,31.10.2022,CHILDRENS,ANGELS AND BUTTERFLIES CHILDMINDING,17/10/2022,"1,461.60",1184-Other-Grants to Other Orgs,SUPPLIES & SERVICES,GRANTS (EXP) & SUBSCRIPTIONS,REVENUE
Walsall Council,http://opendatacommunities.org/id/metropolitan-district-council/walsall ,WC143-630,31.10.2022,ADULT SOCIAL CARE,REDACTED,06/10/2022,-378.70,6541-Shared Lives,THIRD PARTY PAYMENTS,PRIVATE CONTRACTOR,REVENUE
Walsall Council,http://opendatacommunities.org/id/metropolitan-district-council/walsall ,WC143-631,31.10.2022,ADULT SOCIAL CARE,REDACTED,06/10/2022,-713.55,6541-Shared Lives,THIRD PARTY PAYMENTS,PRIVATE CONTRACTOR,REVENUE
Walsall Council,http://opendatacommunities.org/id/metropolitan-district-council/walsall ,WC143-632,31.10.2022,ADULT SOCIAL CARE,REDACTED,06/10/2022,"1,286.25",6541-Shared Lives,THIRD PARTY PAYMENTS,PRIVATE CONTRACTOR,REVENUE
Walsall Council,http://opendatacommunities.org/id/metropolitan-district-council/walsall ,WC143-633,31.10.2022,CHILDRENS,REDACTED,20/10/2022,340.00,6223-Internal Foster Carers-Carer Fees,TRANSFER PAYMENTS,CHILDREN SOCIAL SERVICES CLIENT,REVENUE
Walsall Council,http://opendatacommunities.org/id/metropolitan-district-council/walsall ,WC143-634,31.10.2022,CHILDRENS,REDACTED,20/10/2022,718.93,6223-Foster Carers Maintenance Allowance,TRANSFER PAYMENTS,CHILDREN SOCIAL SERVICES CLIENT,REVENUE
Walsall Council,http://opendatacommunities.org/id/metropolitan-district-council/walsall ,WC143-635,31.10.2022,ADULT SOCIAL CARE,REDACTED,05/10/2022,280.00,6541-Direct Payment,THIRD PARTY PAYMENTS,PRIVATE CONTRACTOR,REVENUE
Walsall Council,http://opendatacommunities.org/id/metropolitan-district-council/walsall ,WC143-636,31.10.2022,CHILDRENS,REDACTED,20/10/2022,458.97,6223-Special Guardianship Orders,TRANSFER PAYMENTS,CHILDREN SOCIAL SERVICES CLIENT,REVENUE
Walsall Council,http://opendatacommunities.org/id/metropolitan-district-council/walsall ,WC143-637,31.10.2022,ADULT SOCIAL CARE,ANSON COURT RESIDENTIAL HOME,25/10/2022,"2,366.04",6541-Residential EMI,THIRD PARTY PAYMENTS,PRIVATE CONTRACTOR,REVENUE
Walsall Council,http://opendatacommunities.org/id/metropolitan-district-council/walsall ,WC143-638,31.10.2022,ADULT SOCIAL CARE,ANSON COURT RESIDENTIAL HOME,25/10/2022,"-1,327.14",6541-Residential,THIRD PARTY PAYMENTS,PRIVATE CONTRACTOR,REVENUE
Walsall Council,http://opendatacommunities.org/id/metropolitan-district-council/walsall ,WC143-639,31.10.2022,ADULT SOCIAL CARE,ANSON COURT RESIDENTIAL HOME,25/10/2022,"2,366.04",6541-Residential EMI,THIRD PARTY PAYMENTS,PRIVATE CONTRACTOR,REVENUE
Walsall Council,http://opendatacommunities.org/id/metropolitan-district-council/walsall ,WC143-640,31.10.2022,ADULT SOCIAL CARE,ANSON COURT RESIDENTIAL HOME,25/10/2022,"2,366.04",6541-Residential EMI,THIRD PARTY PAYMENTS,PRIVATE CONTRACTOR,REVENUE
Walsall Council,http://opendatacommunities.org/id/metropolitan-district-council/walsall ,WC143-641,31.10.2022,ADULT SOCIAL CARE,ANSON COURT RESIDENTIAL HOME,25/10/2022,"10,327.33",6541-Short Stay Residential,THIRD PARTY PAYMENTS,PRIVATE CONTRACTOR,REVENUE
Walsall Council,http://opendatacommunities.org/id/metropolitan-district-council/walsall ,WC143-642,31.10.2022,ADULT SOCIAL CARE,ANSON COURT RESIDENTIAL HOME,25/10/2022,"2,366.04",6541-Residential EMI,THIRD PARTY PAYMENTS,PRIVATE CONTRACTOR,REVENUE
Walsall Council,http://opendatacommunities.org/id/metropolitan-district-council/walsall ,WC143-643,31.10.2022,ADULT SOCIAL CARE,ANSON COURT RESIDENTIAL HOME,25/10/2022,"2,366.04",6541-Residential EMI,THIRD PARTY PAYMENTS,PRIVATE CONTRACTOR,REVENUE
Walsall Council,http://opendatacommunities.org/id/metropolitan-district-council/walsall ,WC143-644,31.10.2022,ADULT SOCIAL CARE,ANSON COURT RESIDENTIAL HOME,25/10/2022,"2,366.04",6541-Residential EMI,THIRD PARTY PAYMENTS,PRIVATE CONTRACTOR,REVENUE
Walsall Council,http://opendatacommunities.org/id/metropolitan-district-council/walsall ,WC143-645,31.10.2022,ADULT SOCIAL CARE,ANSON COURT RESIDENTIAL HOME,25/10/2022,"2,366.04",6541-Residential EMI,THIRD PARTY PAYMENTS,PRIVATE CONTRACTOR,REVENUE
Walsall Council,http://opendatacommunities.org/id/metropolitan-district-council/walsall ,WC143-646,31.10.2022,ADULT SOCIAL CARE,ANSON COURT RESIDENTIAL HOME,25/10/2022,"2,366.04",6541-Residential EMI,THIRD PARTY PAYMENTS,PRIVATE CONTRACTOR,REVENUE
Walsall Council,http://opendatacommunities.org/id/metropolitan-district-council/walsall ,WC143-647,31.10.2022,ADULT SOCIAL CARE,ANSON COURT RESIDENTIAL HOME,25/10/2022,"2,366.04",6541-Residential EMI,THIRD PARTY PAYMENTS,PRIVATE CONTRACTOR,REVENUE
Walsall Council,http://opendatacommunities.org/id/metropolitan-district-council/walsall ,WC143-648,31.10.2022,ADULT SOCIAL CARE,ANSON COURT RESIDENTIAL HOME,25/10/2022,"2,366.04",6541-Residential EMI,THIRD PARTY PAYMENTS,PRIVATE CONTRACTOR,REVENUE
Walsall Council,http://opendatacommunities.org/id/metropolitan-district-council/walsall ,WC143-649,31.10.2022,ADULT SOCIAL CARE,ANSON COURT RESIDENTIAL HOME,25/10/2022,"2,366.04",6541-Residential EMI,THIRD PARTY PAYMENTS,PRIVATE CONTRACTOR,REVENUE
Walsall Council,http://opendatacommunities.org/id/metropolitan-district-council/walsall ,WC143-650,31.10.2022,ADULT SOCIAL CARE,ANSON COURT RESIDENTIAL HOME,25/10/2022,"2,366.04",6541-Residential EMI,THIRD PARTY PAYMENTS,PRIVATE CONTRACTOR,REVENUE
Walsall Council,http://opendatacommunities.org/id/metropolitan-district-council/walsall ,WC143-651,31.10.2022,ADULT SOCIAL CARE,ANSON COURT RESIDENTIAL HOME,25/10/2022,"2,215.40",6541-Residential,THIRD PARTY PAYMENTS,PRIVATE CONTRACTOR,REVENUE
Walsall Council,http://opendatacommunities.org/id/metropolitan-district-council/walsall ,WC143-652,31.10.2022,ADULT SOCIAL CARE,ANSON COURT RESIDENTIAL HOME,25/10/2022,"2,095.40",6541-Residential,THIRD PARTY PAYMENTS,PRIVATE CONTRACTOR,REVENUE
Walsall Council,http://opendatacommunities.org/id/metropolitan-district-council/walsall ,WC143-653,31.10.2022,ADULT SOCIAL CARE,ANTALIS LIMITED,31/10/2022,397.48,6623-Materials,SUPPLIES & SERVICES,EQUIPMENT FURNITURE & MATERIALS,REVENUE
Walsall Council,http://opendatacommunities.org/id/metropolitan-district-council/walsall ,WC143-654,31.10.2022,"ECONOMY, ENVIRONMENT & COMMUNITIES",REDACTED,20/10/2022,262.50,6414-Materials to Stores,SUPPLIES & SERVICES,EQUIPMENT FURNITURE & MATERIALS,REVENUE
Walsall Council,http://opendatacommunities.org/id/metropolitan-district-council/walsall ,WC143-655,31.10.2022,CHILDRENS,REDACTED,20/10/2022,361.72,6223-Special Guardianship Orders,TRANSFER PAYMENTS,CHILDREN SOCIAL SERVICES CLIENT,REVENUE
Walsall Council,http://opendatacommunities.org/id/metropolitan-district-council/walsall ,WC143-656,31.10.2022,"ECONOMY, ENVIRONMENT & COMMUNITIES",APCOA PARKING SERVICES (UK) LTD,11/10/2022,"55,472.92",6411-Professional Services-Priv Contractor & Other Agencies,THIRD PARTY PAYMENTS,PRIVATE CONTRACTOR,REVENUE
Walsall Council,http://opendatacommunities.org/id/metropolitan-district-council/walsall ,WC143-657,31.10.2022,RESOURCES AND TRANSFORMATION,APCOA PARKING SERVICES (UK) LTD,12/10/2022,-804.36,6634-Oxygen Finance Rebates ,SUPPLIES & SERVICES,SERVICES,REVENUE
Walsall Council,http://opendatacommunities.org/id/metropolitan-district-council/walsall ,WC143-658,31.10.2022,CHILDRENS,APP CARZ,10/10/2022,"1,632.00",6241-Hire of Vehicle with Driver,TRANSPORT,DIRECT TRANSPORT COSTS,REVENUE
Walsall Council,http://opendatacommunities.org/id/metropolitan-district-council/walsall ,WC143-659,31.10.2022,CHILDRENS,APP CARZ,10/10/2022,"1,020.00",6241-Hire of Vehicle with Driver,TRANSPORT,DIRECT TRANSPORT COSTS,REVENUE
Walsall Council,http://opendatacommunities.org/id/metropolitan-district-council/walsall ,WC143-660,31.10.2022,CHILDRENS,APP CARZ,10/10/2022,790.00,6241-Hire of Vehicle with Driver,TRANSPORT,DIRECT TRANSPORT COSTS,REVENUE
Walsall Council,http://opendatacommunities.org/id/metropolitan-district-council/walsall ,WC143-661,31.10.2022,CHILDRENS,APP CARZ,10/10/2022,"1,260.00",6241-Hire of Vehicle with Driver,TRANSPORT,DIRECT TRANSPORT COSTS,REVENUE
Walsall Council,http://opendatacommunities.org/id/metropolitan-district-council/walsall ,WC143-662,31.10.2022,CHILDRENS,APP CARZ,10/10/2022,910.00,6241-Hire of Vehicle with Driver,TRANSPORT,DIRECT TRANSPORT COSTS,REVENUE
Walsall Council,http://opendatacommunities.org/id/metropolitan-district-council/walsall ,WC143-663,31.10.2022,CHILDRENS,APP CARZ,10/10/2022,"1,260.00",6241-Hire of Vehicle with Driver,TRANSPORT,DIRECT TRANSPORT COSTS,REVENUE
Walsall Council,http://opendatacommunities.org/id/metropolitan-district-council/walsall ,WC143-664,31.10.2022,CHILDRENS,APP CARZ,10/10/2022,484.00,6241-Hire of Vehicle with Driver,TRANSPORT,DIRECT TRANSPORT COSTS,REVENUE
Walsall Council,http://opendatacommunities.org/id/metropolitan-district-council/walsall ,WC143-665,31.10.2022,CHILDRENS,APP CARZ,10/10/2022,324.00,6241-Hire of Vehicle with Driver,TRANSPORT,DIRECT TRANSPORT COSTS,REVENUE
Walsall Council,http://opendatacommunities.org/id/metropolitan-district-council/walsall ,WC143-666,31.10.2022,CHILDRENS,APPLE TRANSCRIPTION LIMITED,21/10/2022,271.44,6220-School Only Payments - Catering,THIRD PARTY PAYMENTS,INDEPENDENT UNIT WITHIN COUNCIL,REVENUE
Walsall Council,http://opendatacommunities.org/id/metropolitan-district-council/walsall ,WC143-667,31.10.2022,ADULT SOCIAL CARE,ARBORETUM NURSING HOME.,25/10/2022,"2,456.24",6541-Nursing,THIRD PARTY PAYMENTS,PRIVATE CONTRACTOR,REVENUE
Walsall Council,http://opendatacommunities.org/id/metropolitan-district-council/walsall ,WC143-668,31.10.2022,ADULT SOCIAL CARE,ARBORETUM NURSING HOME.,25/10/2022,"2,500.00",6541-Nursing,THIRD PARTY PAYMENTS,PRIVATE CONTRACTOR,REVENUE
Walsall Council,http://opendatacommunities.org/id/metropolitan-district-council/walsall ,WC143-669,31.10.2022,ADULT SOCIAL CARE,ARBORETUM NURSING HOME.,25/10/2022,364.29,6541-Professional Services-Priv Contractor & Other Agencies,THIRD PARTY PAYMENTS,PRIVATE CONTRACTOR,REVENUE
Walsall Council,http://opendatacommunities.org/id/metropolitan-district-council/walsall ,WC143-670,31.10.2022,ADULT SOCIAL CARE,ARBORETUM NURSING HOME.,25/10/2022,"3,035.71",6541-Residential & Nursing Care Placements,THIRD PARTY PAYMENTS,PRIVATE CONTRACTOR,REVENUE
Walsall Council,http://opendatacommunities.org/id/metropolitan-district-council/walsall ,WC143-671,31.10.2022,ADULT SOCIAL CARE,ARBORETUM NURSING HOME.,25/10/2022,"2,064.29",6541-Residential & Nursing Care Placements,THIRD PARTY PAYMENTS,PRIVATE CONTRACTOR,REVENUE
Walsall Council,http://opendatacommunities.org/id/metropolitan-district-council/walsall ,WC143-672,31.10.2022,ADULT SOCIAL CARE,ARBORETUM NURSING HOME.,25/10/2022,"2,456.24",6541-Nursing,THIRD PARTY PAYMENTS,PRIVATE CONTRACTOR,REVENUE
Walsall Council,http://opendatacommunities.org/id/metropolitan-district-council/walsall ,WC143-673,31.10.2022,ADULT SOCIAL CARE,ARBORETUM NURSING HOME.,25/10/2022,-675.00,6541-Nursing,THIRD PARTY PAYMENTS,PRIVATE CONTRACTOR,REVENUE
Walsall Council,http://opendatacommunities.org/id/metropolitan-district-council/walsall ,WC143-674,31.10.2022,ADULT SOCIAL CARE,ARBORETUM NURSING HOME.,25/10/2022,"2,064.29",6541-Residential & Nursing Care Placements,THIRD PARTY PAYMENTS,PRIVATE CONTRACTOR,REVENUE
Walsall Council,http://opendatacommunities.org/id/metropolitan-district-council/walsall ,WC143-675,31.10.2022,ADULT SOCIAL CARE,ARBORETUM NURSING HOME.,25/10/2022,"2,456.24",6541-Nursing,THIRD PARTY PAYMENTS,PRIVATE CONTRACTOR,REVENUE
Walsall Council,http://opendatacommunities.org/id/metropolitan-district-council/walsall ,WC143-676,31.10.2022,ADULT SOCIAL CARE,ARBORETUM NURSING HOME.,25/10/2022,"2,636.24",6541-Nursing,THIRD PARTY PAYMENTS,PRIVATE CONTRACTOR,REVENUE
Walsall Council,http://opendatacommunities.org/id/metropolitan-district-council/walsall ,WC143-677,31.10.2022,ADULT SOCIAL CARE,ARBORETUM NURSING HOME.,25/10/2022,"2,656.24",6541-Nursing,THIRD PARTY PAYMENTS,PRIVATE CONTRACTOR,REVENUE
Walsall Council,http://opendatacommunities.org/id/metropolitan-district-council/walsall ,WC143-678,31.10.2022,ADULT SOCIAL CARE,ARBORETUM NURSING HOME.,25/10/2022,"2,456.24",6541-Nursing,THIRD PARTY PAYMENTS,PRIVATE CONTRACTOR,REVENUE
Walsall Council,http://opendatacommunities.org/id/metropolitan-district-council/walsall ,WC143-679,31.10.2022,ADULT SOCIAL CARE,ARBORETUM NURSING HOME.,25/10/2022,"2,064.29",6554-Professional Services-Priv Contractor & Other Agencies,THIRD PARTY PAYMENTS,PRIVATE CONTRACTOR,REVENUE
Walsall Council,http://opendatacommunities.org/id/metropolitan-district-council/walsall ,WC143-680,31.10.2022,ADULT SOCIAL CARE,ARBORETUM NURSING HOME.,25/10/2022,"2,656.24",6541-Nursing,THIRD PARTY PAYMENTS,PRIVATE CONTRACTOR,REVENUE
Walsall Council,http://opendatacommunities.org/id/metropolitan-district-council/walsall ,WC143-681,31.10.2022,ADULT SOCIAL CARE,ARBORETUM NURSING HOME.,25/10/2022,"2,914.29",6541-Residential & Nursing Care Placements,THIRD PARTY PAYMENTS,PRIVATE CONTRACTOR,REVENUE
Walsall Council,http://opendatacommunities.org/id/metropolitan-district-council/walsall ,WC143-682,31.10.2022,ADULT SOCIAL CARE,ARBORETUM NURSING HOME.,25/10/2022,728.57,6554-Professional Services-Priv Contractor & Other Agencies,THIRD PARTY PAYMENTS,PRIVATE CONTRACTOR,REVENUE
Walsall Council,http://opendatacommunities.org/id/metropolitan-district-council/walsall ,WC143-683,31.10.2022,ADULT SOCIAL CARE,ARBORETUM NURSING HOME.,25/10/2022,"2,456.24",6541-Nursing,THIRD PARTY PAYMENTS,PRIVATE CONTRACTOR,REVENUE
Walsall Council,http://opendatacommunities.org/id/metropolitan-district-council/walsall ,WC143-684,31.10.2022,ADULT SOCIAL CARE,ARBORETUM NURSING HOME.,25/10/2022,"2,456.24",6541-Nursing,THIRD PARTY PAYMENTS,PRIVATE CONTRACTOR,REVENUE
Walsall Council,http://opendatacommunities.org/id/metropolitan-district-council/walsall ,WC143-685,31.10.2022,ADULT SOCIAL CARE,ARBORETUM NURSING HOME.,25/10/2022,"2,456.24",6541-Nursing,THIRD PARTY PAYMENTS,PRIVATE CONTRACTOR,REVENUE
Walsall Council,http://opendatacommunities.org/id/metropolitan-district-council/walsall ,WC143-686,31.10.2022,ADULT SOCIAL CARE,ARBORETUM NURSING HOME.,25/10/2022,"2,456.24",6541-Nursing,THIRD PARTY PAYMENTS,PRIVATE CONTRACTOR,REVENUE
Walsall Council,http://opendatacommunities.org/id/metropolitan-district-council/walsall ,WC143-687,31.10.2022,ADULT SOCIAL CARE,ARBORETUM NURSING HOME.,25/10/2022,"2,636.24",6541-Nursing,THIRD PARTY PAYMENTS,PRIVATE CONTRACTOR,REVENUE
Walsall Council,http://opendatacommunities.org/id/metropolitan-district-council/walsall ,WC143-688,31.10.2022,ADULT SOCIAL CARE,ARBORETUM NURSING HOME.,25/10/2022,"2,636.24",6541-Nursing,THIRD PARTY PAYMENTS,PRIVATE CONTRACTOR,REVENUE
Walsall Council,http://opendatacommunities.org/id/metropolitan-district-council/walsall ,WC143-689,31.10.2022,ADULT SOCIAL CARE,ARBORETUM NURSING HOME.,25/10/2022,"2,683.24",6541-Nursing,THIRD PARTY PAYMENTS,PRIVATE CONTRACTOR,REVENUE
Walsall Council,http://opendatacommunities.org/id/metropolitan-district-council/walsall ,WC143-690,31.10.2022,ADULT SOCIAL CARE,ARBORETUM NURSING HOME.,25/10/2022,"3,035.71",6541-Residential & Nursing Care Placements,THIRD PARTY PAYMENTS,PRIVATE CONTRACTOR,REVENUE
Walsall Council,http://opendatacommunities.org/id/metropolitan-district-council/walsall ,WC143-691,31.10.2022,ADULT SOCIAL CARE,ARBORETUM NURSING HOME.,25/10/2022,642.86,6553-Professional Services-Priv Contractor & Other Agencies,THIRD PARTY PAYMENTS,PRIVATE CONTRACTOR,REVENUE
Walsall Council,http://opendatacommunities.org/id/metropolitan-district-council/walsall ,WC143-692,31.10.2022,ADULT SOCIAL CARE,ARBORETUM NURSING HOME.,25/10/2022,"2,636.24",6541-Nursing,THIRD PARTY PAYMENTS,PRIVATE CONTRACTOR,REVENUE
Walsall Council,http://opendatacommunities.org/id/metropolitan-district-council/walsall ,WC143-693,31.10.2022,ADULT SOCIAL CARE,ARBORETUM NURSING HOME.,25/10/2022,"3,400.00",6541-Residential & Nursing Care Placements,THIRD PARTY PAYMENTS,PRIVATE CONTRACTOR,REVENUE
Walsall Council,http://opendatacommunities.org/id/metropolitan-district-council/walsall ,WC143-694,31.10.2022,ADULT SOCIAL CARE,ARBORETUM NURSING HOME.,25/10/2022,607.14,6554-Professional Services-Priv Contractor & Other Agencies,THIRD PARTY PAYMENTS,PRIVATE CONTRACTOR,REVENUE
Walsall Council,http://opendatacommunities.org/id/metropolitan-district-council/walsall ,WC143-695,31.10.2022,ADULT SOCIAL CARE,ARBORETUM NURSING HOME.,25/10/2022,"4,462.72",6541-Nursing,THIRD PARTY PAYMENTS,PRIVATE CONTRACTOR,REVENUE
Walsall Council,http://opendatacommunities.org/id/metropolitan-district-council/walsall ,WC143-696,31.10.2022,ECONOMY & ENVIRONMENT CAPITAL,ARCADIS,19/10/2022,"13,142.80",7200-Project Fees,CAPITAL,"NEW CONSTRUCTION,CONVERSION & RENOVATION",CAPITAL
Walsall Council,http://opendatacommunities.org/id/metropolitan-district-council/walsall ,WC143-697,31.10.2022,ECONOMY & ENVIRONMENT CAPITAL,ARCADIS,12/10/2022,"12,287.50",7200-Surveyors Fees,CAPITAL,"NEW CONSTRUCTION,CONVERSION & RENOVATION",CAPITAL
Walsall Council,http://opendatacommunities.org/id/metropolitan-district-council/walsall ,WC143-698,31.10.2022,"ECONOMY, ENVIRONMENT & COMMUNITIES",ARCADIS,26/10/2022,"12,550.00",6313-Professional Fees & Services,SUPPLIES & SERVICES,SERVICES,REVENUE
Walsall Council,http://opendatacommunities.org/id/metropolitan-district-council/walsall ,WC143-699,31.10.2022,"ECONOMY, ENVIRONMENT & COMMUNITIES",ARCADIS,26/10/2022,"7,042.00",6313-Professional Fees & Services,SUPPLIES & SERVICES,SERVICES,REVENUE
Walsall Council,http://opendatacommunities.org/id/metropolitan-district-council/walsall ,WC143-700,31.10.2022,"ECONOMY, ENVIRONMENT & COMMUNITIES",ARCHIVES WEST MIDLANDS,24/10/2022,500.00,6414-Subscriptions,SUPPLIES & SERVICES,GRANTS (EXP) & SUBSCRIPTIONS,REVENUE
Walsall Council,http://opendatacommunities.org/id/metropolitan-district-council/walsall ,WC143-701,31.10.2022,ADULT SOCIAL CARE,ASH GRANGE CARE HOME,25/10/2022,"2,763.80",6541-Nursing EMI,THIRD PARTY PAYMENTS,PRIVATE CONTRACTOR,REVENUE
Walsall Council,http://opendatacommunities.org/id/metropolitan-district-council/walsall ,WC143-702,31.10.2022,ADULT SOCIAL CARE,ASH GRANGE CARE HOME,25/10/2022,"2,656.24",6541-Nursing,THIRD PARTY PAYMENTS,PRIVATE CONTRACTOR,REVENUE
Walsall Council,http://opendatacommunities.org/id/metropolitan-district-council/walsall ,WC143-703,31.10.2022,ADULT SOCIAL CARE,ASH GRANGE CARE HOME,25/10/2022,"1,228.01",6554-Professional Services-Priv Contractor & Other Agencies,THIRD PARTY PAYMENTS,PRIVATE CONTRACTOR,REVENUE
Walsall Council,http://opendatacommunities.org/id/metropolitan-district-council/walsall ,WC143-704,31.10.2022,ADULT SOCIAL CARE,ASH GRANGE CARE HOME,25/10/2022,"2,456.24",6541-Nursing,THIRD PARTY PAYMENTS,PRIVATE CONTRACTOR,REVENUE
Walsall Council,http://opendatacommunities.org/id/metropolitan-district-council/walsall ,WC143-705,31.10.2022,ADULT SOCIAL CARE,ASH GRANGE CARE HOME,25/10/2022,"2,646.08",6541-Residential,THIRD PARTY PAYMENTS,PRIVATE CONTRACTOR,REVENUE
Walsall Council,http://opendatacommunities.org/id/metropolitan-district-council/walsall ,WC143-706,31.10.2022,ADULT SOCIAL CARE,ASH GRANGE CARE HOME,25/10/2022,"2,756.24",6541-Nursing,THIRD PARTY PAYMENTS,PRIVATE CONTRACTOR,REVENUE
Walsall Council,http://opendatacommunities.org/id/metropolitan-district-council/walsall ,WC143-707,31.10.2022,ADULT SOCIAL CARE,ASH GRANGE CARE HOME,25/10/2022,694.56,6541-Short Stay Residential,THIRD PARTY PAYMENTS,PRIVATE CONTRACTOR,REVENUE
Walsall Council,http://opendatacommunities.org/id/metropolitan-district-council/walsall ,WC143-708,31.10.2022,ADULT SOCIAL CARE,ASH GRANGE CARE HOME,25/10/2022,"2,095.40",6541-Residential,THIRD PARTY PAYMENTS,PRIVATE CONTRACTOR,REVENUE
Walsall Council,http://opendatacommunities.org/id/metropolitan-district-council/walsall ,WC143-709,31.10.2022,ADULT SOCIAL CARE,ASH GRANGE CARE HOME,25/10/2022,"2,456.24",6541-Nursing,THIRD PARTY PAYMENTS,PRIVATE CONTRACTOR,REVENUE
Walsall Council,http://opendatacommunities.org/id/metropolitan-district-council/walsall ,WC143-710,31.10.2022,ADULT SOCIAL CARE,ASH GRANGE CARE HOME,25/10/2022,"2,656.24",6541-Nursing,THIRD PARTY PAYMENTS,PRIVATE CONTRACTOR,REVENUE
Walsall Council,http://opendatacommunities.org/id/metropolitan-district-council/walsall ,WC143-711,31.10.2022,ADULT SOCIAL CARE,ASH GRANGE CARE HOME,25/10/2022,"2,763.80",6541-Nursing EMI,THIRD PARTY PAYMENTS,PRIVATE CONTRACTOR,REVENUE
Walsall Council,http://opendatacommunities.org/id/metropolitan-district-council/walsall ,WC143-712,31.10.2022,ADULT SOCIAL CARE,ASH GRANGE CARE HOME,25/10/2022,"2,835.20",6541-Nursing,THIRD PARTY PAYMENTS,PRIVATE CONTRACTOR,REVENUE
Walsall Council,http://opendatacommunities.org/id/metropolitan-district-council/walsall ,WC143-713,31.10.2022,ADULT SOCIAL CARE,ASH GRANGE CARE HOME,25/10/2022,"2,656.24",6541-Nursing,THIRD PARTY PAYMENTS,PRIVATE CONTRACTOR,REVENUE
Walsall Council,http://opendatacommunities.org/id/metropolitan-district-council/walsall ,WC143-714,31.10.2022,ADULT SOCIAL CARE,ASH GRANGE CARE HOME,25/10/2022,"2,563.24",6541-Nursing,THIRD PARTY PAYMENTS,PRIVATE CONTRACTOR,REVENUE
Walsall Council,http://opendatacommunities.org/id/metropolitan-district-council/walsall ,WC143-715,31.10.2022,ADULT SOCIAL CARE,ASH GRANGE CARE HOME,25/10/2022,"2,456.24",6541-Nursing,THIRD PARTY PAYMENTS,PRIVATE CONTRACTOR,REVENUE
Walsall Council,http://opendatacommunities.org/id/metropolitan-district-council/walsall ,WC143-716,31.10.2022,ADULT SOCIAL CARE,ASH GRANGE CARE HOME,25/10/2022,"2,456.24",6541-Nursing,THIRD PARTY PAYMENTS,PRIVATE CONTRACTOR,REVENUE
Walsall Council,http://opendatacommunities.org/id/metropolitan-district-council/walsall ,WC143-717,31.10.2022,ADULT SOCIAL CARE,ASH GRANGE CARE HOME,25/10/2022,"2,095.40",6541-Residential,THIRD PARTY PAYMENTS,PRIVATE CONTRACTOR,REVENUE
Walsall Council,http://opendatacommunities.org/id/metropolitan-district-council/walsall ,WC143-718,31.10.2022,ADULT SOCIAL CARE,ASH GRANGE CARE HOME,25/10/2022,"2,763.80",6541-Nursing EMI,THIRD PARTY PAYMENTS,PRIVATE CONTRACTOR,REVENUE
Walsall Council,http://opendatacommunities.org/id/metropolitan-district-council/walsall ,WC143-719,31.10.2022,ADULT SOCIAL CARE,ASH GRANGE CARE HOME,25/10/2022,"2,792.86",6541-Residential & Nursing Care Placements,THIRD PARTY PAYMENTS,PRIVATE CONTRACTOR,REVENUE
Walsall Council,http://opendatacommunities.org/id/metropolitan-district-council/walsall ,WC143-720,31.10.2022,ADULT SOCIAL CARE,ASH GRANGE CARE HOME,25/10/2022,"2,428.57",6541-Professional Services-Priv Contractor & Other Agencies,THIRD PARTY PAYMENTS,PRIVATE CONTRACTOR,REVENUE
Walsall Council,http://opendatacommunities.org/id/metropolitan-district-council/walsall ,WC143-721,31.10.2022,ADULT SOCIAL CARE,ASH GRANGE CARE HOME,25/10/2022,"2,430.96",6541-Residential,THIRD PARTY PAYMENTS,PRIVATE CONTRACTOR,REVENUE
Walsall Council,http://opendatacommunities.org/id/metropolitan-district-council/walsall ,WC143-722,31.10.2022,ADULT SOCIAL CARE,ASH GRANGE CARE HOME,25/10/2022,"2,230.96",6541-Residential,THIRD PARTY PAYMENTS,PRIVATE CONTRACTOR,REVENUE
Walsall Council,http://opendatacommunities.org/id/metropolitan-district-council/walsall ,WC143-723,31.10.2022,ADULT SOCIAL CARE,ASH GRANGE CARE HOME,25/10/2022,"3,157.14",6541-Residential & Nursing Care Placements,THIRD PARTY PAYMENTS,PRIVATE CONTRACTOR,REVENUE
Walsall Council,http://opendatacommunities.org/id/metropolitan-district-council/walsall ,WC143-724,31.10.2022,ADULT SOCIAL CARE,ASH GRANGE CARE HOME,25/10/2022,607.14,6554-Professional Services-Priv Contractor & Other Agencies,THIRD PARTY PAYMENTS,PRIVATE CONTRACTOR,REVENUE
Walsall Council,http://opendatacommunities.org/id/metropolitan-district-council/walsall ,WC143-725,31.10.2022,ADULT SOCIAL CARE,REDACTED,05/10/2022,"1,429.72",6541-Direct Payment,THIRD PARTY PAYMENTS,PRIVATE CONTRACTOR,REVENUE
Walsall Council,http://opendatacommunities.org/id/metropolitan-district-council/walsall ,WC143-726,31.10.2022,ADULT SOCIAL CARE,ASIST,25/10/2022,251.12,6542-Professional Services-Priv Contractor & Other Agencies,THIRD PARTY PAYMENTS,PRIVATE CONTRACTOR,REVENUE
Walsall Council,http://opendatacommunities.org/id/metropolitan-district-council/walsall ,WC143-727,31.10.2022,CHILDRENS CAPITAL,ASKELITE LTD,13/10/2022,875.00,7155-Purchase of Furniture & Equipment,CAPITAL,"VEHICLES,PLANT,EQUIPMENT & MACHINERY",CAPITAL
Walsall Council,http://opendatacommunities.org/id/metropolitan-district-council/walsall ,WC143-728,31.10.2022,"ECONOMY, ENVIRONMENT & COMMUNITIES",ASKEWS AND HOLTS LIBRARY SERVICES LTD,07/10/2022,"1,101.42",6414-Library Books,SUPPLIES & SERVICES,EQUIPMENT FURNITURE & MATERIALS,REVENUE
Walsall Council,http://opendatacommunities.org/id/metropolitan-district-council/walsall ,WC143-729,31.10.2022,"ECONOMY, ENVIRONMENT & COMMUNITIES",ASKEWS AND HOLTS LIBRARY SERVICES LTD,21/10/2022,975.44,6414-Library Books,SUPPLIES & SERVICES,EQUIPMENT FURNITURE & MATERIALS,REVENUE
Walsall Council,http://opendatacommunities.org/id/metropolitan-district-council/walsall ,WC143-730,31.10.2022,"ECONOMY, ENVIRONMENT & COMMUNITIES",ASKEWS AND HOLTS LIBRARY SERVICES LTD,28/10/2022,"-1,948.08",6414-Library Books,SUPPLIES & SERVICES,EQUIPMENT FURNITURE & MATERIALS,REVENUE
Walsall Council,http://opendatacommunities.org/id/metropolitan-district-council/walsall ,WC143-731,31.10.2022,"ECONOMY, ENVIRONMENT & COMMUNITIES",ASKEWS AND HOLTS LIBRARY SERVICES LTD,28/10/2022,"1,948.08",6414-Library Books,SUPPLIES & SERVICES,EQUIPMENT FURNITURE & MATERIALS,REVENUE
Walsall Council,http://opendatacommunities.org/id/metropolitan-district-council/walsall ,WC143-732,31.10.2022,"ECONOMY, ENVIRONMENT & COMMUNITIES",ASKEWS AND HOLTS LIBRARY SERVICES LTD,28/10/2022,"2,024.67",6414-Library Books,SUPPLIES & SERVICES,EQUIPMENT FURNITURE & MATERIALS,REVENUE
Walsall Council,http://opendatacommunities.org/id/metropolitan-district-council/walsall ,WC143-733,31.10.2022,"ECONOMY, ENVIRONMENT & COMMUNITIES",ASKEWS AND HOLTS LIBRARY SERVICES LTD,31/10/2022,"1,688.11",6414-Library Books,SUPPLIES & SERVICES,EQUIPMENT FURNITURE & MATERIALS,REVENUE
Walsall Council,http://opendatacommunities.org/id/metropolitan-district-council/walsall ,WC143-734,31.10.2022,ADULT SOCIAL CARE,REDACTED,05/10/2022,761.76,6541-Direct Payment,THIRD PARTY PAYMENTS,PRIVATE CONTRACTOR,REVENUE
Walsall Council,http://opendatacommunities.org/id/metropolitan-district-council/walsall ,WC143-735,31.10.2022,CHILDRENS,ASPIRE 2 BE LTD,03/10/2022,"21,960.00",6223-External Residential Care-Oth Agency Provision,THIRD PARTY PAYMENTS,PRIVATE CONTRACTOR,REVENUE
Walsall Council,http://opendatacommunities.org/id/metropolitan-district-council/walsall ,WC143-736,31.10.2022,CHILDRENS,ASPIRE 2 BE LTD,28/10/2022,"21,960.00",6223-External Residential Care-Oth Agency Provision,THIRD PARTY PAYMENTS,PRIVATE CONTRACTOR,REVENUE
Walsall Council,http://opendatacommunities.org/id/metropolitan-district-council/walsall ,WC143-737,31.10.2022,RESOURCES AND TRANSFORMATION,ASSOCIATION OF ELECTORAL ADMINISTRATORS,27/10/2022,400.50,6610-External Training,INDIRECT EMPLOYEES,EXTERNAL TRAINING,REVENUE
Walsall Council,http://opendatacommunities.org/id/metropolitan-district-council/walsall ,WC143-738,31.10.2022,RESOURCES AND TRANSFORMATION,ASSOCIATION OF ELECTORAL ADMINISTRATORS,31/10/2022,"1,282.50",6610-External Training,INDIRECT EMPLOYEES,EXTERNAL TRAINING,REVENUE
Walsall Council,http://opendatacommunities.org/id/metropolitan-district-council/walsall ,WC143-739,31.10.2022,CHILDRENS,ASSURED TRANSPORT LTD,26/10/2022,520.00,6223-Professional Fees & Services,SUPPLIES & SERVICES,SERVICES,REVENUE
Walsall Council,http://opendatacommunities.org/id/metropolitan-district-council/walsall ,WC143-740,31.10.2022,CHILDRENS,REDACTED,20/10/2022,367.89,6223-Residents Orders,TRANSFER PAYMENTS,CHILDREN SOCIAL SERVICES CLIENT,REVENUE
Walsall Council,http://opendatacommunities.org/id/metropolitan-district-council/walsall ,WC143-741,31.10.2022,CHILDRENS,REDACTED,20/10/2022,304.13,6223-Residents Orders,TRANSFER PAYMENTS,CHILDREN SOCIAL SERVICES CLIENT,REVENUE
Walsall Council,http://opendatacommunities.org/id/metropolitan-district-council/walsall ,WC143-742,31.10.2022,ECONOMY & ENVIRONMENT CAPITAL,ATKINS LIMITED,04/10/2022,"3,055.50",7200-Consultants Fees,CAPITAL,"NEW CONSTRUCTION,CONVERSION & RENOVATION",CAPITAL
Walsall Council,http://opendatacommunities.org/id/metropolitan-district-council/walsall ,WC143-743,31.10.2022,RESOURCES AND TRANSFORMATION CAPITAL,ATKINS LIMITED,28/10/2022,"3,536.00",7300-Consultants Fees,CAPITAL,"NEW CONSTRUCTION,CONVERSION & RENOVATION",CAPITAL
Walsall Council,http://opendatacommunities.org/id/metropolitan-district-council/walsall ,WC143-744,31.10.2022,CHILDRENS,ATTACHED CARE LTD,03/10/2022,"36,704.00",6223-External Residential Care-Oth Agency Provision,THIRD PARTY PAYMENTS,PRIVATE CONTRACTOR,REVENUE
Walsall Council,http://opendatacommunities.org/id/metropolitan-district-council/walsall ,WC143-745,31.10.2022,CHILDRENS,ATTACHED CARE LTD,28/10/2022,"42,286.50",6223-External Residential Care-Oth Agency Provision,THIRD PARTY PAYMENTS,PRIVATE CONTRACTOR,REVENUE
Walsall Council,http://opendatacommunities.org/id/metropolitan-district-council/walsall ,WC143-746,31.10.2022,ADULT SOCIAL CARE,REDACTED,05/10/2022,"1,214.40",6541-Direct Payment,THIRD PARTY PAYMENTS,PRIVATE CONTRACTOR,REVENUE
Walsall Council,http://opendatacommunities.org/id/metropolitan-district-council/walsall ,WC143-747,31.10.2022,ADULT SOCIAL CARE,AURORA GRAPHICS & DISPLAYS LTD,31/10/2022,292.96,6623-Outwork Print & Design,SUPPLIES & SERVICES,PRINTING STATIONERY & GENERAL OFFICE,REVENUE
Walsall Council,http://opendatacommunities.org/id/metropolitan-district-council/walsall ,WC143-748,31.10.2022,CHILDRENS,AURORA HANLEY SCHOOL/AURORA ASD LTD,31/10/2022,"20,666.67",1220-Top Up Funding -Grants to Schools,SUPPLIES & SERVICES,GRANTS (EXP) & SUBSCRIPTIONS,REVENUE
Walsall Council,http://opendatacommunities.org/id/metropolitan-district-council/walsall ,WC143-749,31.10.2022,ADULT SOCIAL CARE,AUTISM WEST MIDLANDS,25/10/2022,"20,347.00",6541-Residential,THIRD PARTY PAYMENTS,PRIVATE CONTRACTOR,REVENUE
Walsall Council,http://opendatacommunities.org/id/metropolitan-district-council/walsall ,WC143-750,31.10.2022,ADULT SOCIAL CARE,AUTISM WEST MIDLANDS,25/10/2022,"7,529.32",6541-Residential,THIRD PARTY PAYMENTS,PRIVATE CONTRACTOR,REVENUE
Walsall Council,http://opendatacommunities.org/id/metropolitan-district-council/walsall ,WC143-751,31.10.2022,ADULT SOCIAL CARE,AUTISM WEST MIDLANDS,25/10/2022,"5,818.64",6541-Residential,THIRD PARTY PAYMENTS,PRIVATE CONTRACTOR,REVENUE
Walsall Council,http://opendatacommunities.org/id/metropolitan-district-council/walsall ,WC143-752,31.10.2022,"ECONOMY, ENVIRONMENT & COMMUNITIES",AUTO EXTRACT SYSTEMS LTD,26/10/2022,570.00,6410-Professional Services-Priv Contractor & Other Agencies,THIRD PARTY PAYMENTS,PRIVATE CONTRACTOR,REVENUE
Walsall Council,http://opendatacommunities.org/id/metropolitan-district-council/walsall ,WC143-753,31.10.2022,ADULT SOCIAL CARE,AVERY HOMES NELSON LIMITED,25/10/2022,"2,095.40",6541-Residential,THIRD PARTY PAYMENTS,PRIVATE CONTRACTOR,REVENUE
Walsall Council,http://opendatacommunities.org/id/metropolitan-district-council/walsall ,WC143-754,31.10.2022,ADULT SOCIAL CARE,AVERY HOMES NELSON LIMITED,25/10/2022,"1,945.73",6541-Residential,THIRD PARTY PAYMENTS,PRIVATE CONTRACTOR,REVENUE
Walsall Council,http://opendatacommunities.org/id/metropolitan-district-council/walsall ,WC143-755,31.10.2022,ADULT SOCIAL CARE,AVERY HOMES NELSON LIMITED,25/10/2022,"3,430.96",6541-Residential,THIRD PARTY PAYMENTS,PRIVATE CONTRACTOR,REVENUE
Walsall Council,http://opendatacommunities.org/id/metropolitan-district-council/walsall ,WC143-756,31.10.2022,ADULT SOCIAL CARE,AVERY HOMES NELSON LIMITED,25/10/2022,"3,600.00",6541-Short Stay Residential,THIRD PARTY PAYMENTS,PRIVATE CONTRACTOR,REVENUE
Walsall Council,http://opendatacommunities.org/id/metropolitan-district-council/walsall ,WC143-757,31.10.2022,ADULT SOCIAL CARE,AVERY HOMES NELSON LIMITED,25/10/2022,"2,095.40",6541-Residential,THIRD PARTY PAYMENTS,PRIVATE CONTRACTOR,REVENUE
Walsall Council,http://opendatacommunities.org/id/metropolitan-district-council/walsall ,WC143-758,31.10.2022,CHILDRENS CAPITAL,AVI MAX BUILDING LTD,19/10/2022,"11,495.84",7100-Private Grants,CAPITAL,CAPITAL GRANTS,CAPITAL
Walsall Council,http://opendatacommunities.org/id/metropolitan-district-council/walsall ,WC143-759,31.10.2022,ADULT SOCIAL CARE,REDACTED,05/10/2022,"3,444.48",6541-Direct Payment,THIRD PARTY PAYMENTS,PRIVATE CONTRACTOR,REVENUE
Walsall Council,http://opendatacommunities.org/id/metropolitan-district-council/walsall ,WC143-760,31.10.2022,"ECONOMY, ENVIRONMENT & COMMUNITIES",B TIPPER PAINTER & DECORATOR,14/10/2022,"1,120.00",6410-Purchase of Furniture & Equipment,SUPPLIES & SERVICES,EQUIPMENT FURNITURE & MATERIALS,REVENUE
Walsall Council,http://opendatacommunities.org/id/metropolitan-district-council/walsall ,WC143-761,31.10.2022,"ECONOMY, ENVIRONMENT & COMMUNITIES",B TIPPER PAINTER & DECORATOR,14/10/2022,"1,680.00",6410-Purchase of Furniture & Equipment,SUPPLIES & SERVICES,EQUIPMENT FURNITURE & MATERIALS,REVENUE
Walsall Council,http://opendatacommunities.org/id/metropolitan-district-council/walsall ,WC143-762,31.10.2022,RESOURCES AND TRANSFORMATION,BAART HARRIES NEWALL,17/10/2022,360.00,6610-Repair & Maintenance of Furniture & Equipment,SUPPLIES & SERVICES,EQUIPMENT FURNITURE & MATERIALS,REVENUE
Walsall Council,http://opendatacommunities.org/id/metropolitan-district-council/walsall ,WC143-763,31.10.2022,CHILDRENS,BACHES SOLICITORS,03/10/2022,"1,510.43",6220-School Only Payments - Catering,THIRD PARTY PAYMENTS,INDEPENDENT UNIT WITHIN COUNCIL,REVENUE
Walsall Council,http://opendatacommunities.org/id/metropolitan-district-council/walsall ,WC143-764,31.10.2022,CHILDRENS,BACK CARE SOLUTIONS LTD,07/10/2022,260.00,6314-Purchase of Furniture & Equipment,SUPPLIES & SERVICES,EQUIPMENT FURNITURE & MATERIALS,REVENUE
Walsall Council,http://opendatacommunities.org/id/metropolitan-district-council/walsall ,WC143-765,31.10.2022,CHILDRENS CAPITAL,BAILY GARNER LLP,14/10/2022,570.00,7150-Site Works Contractors,CAPITAL,"NEW CONSTRUCTION,CONVERSION & RENOVATION",CAPITAL
Walsall Council,http://opendatacommunities.org/id/metropolitan-district-council/walsall ,WC143-766,31.10.2022,"ECONOMY, ENVIRONMENT & COMMUNITIES",BAKER HALL PARTNERSHIP,31/10/2022,"1,263.50",6413-Professional Fees & Services,SUPPLIES & SERVICES,SERVICES,REVENUE
Walsall Council,http://opendatacommunities.org/id/metropolitan-district-council/walsall ,WC143-767,31.10.2022,"ECONOMY, ENVIRONMENT & COMMUNITIES",BAKER HALL PARTNERSHIP,31/10/2022,"1,691.00",6413-Professional Fees & Services,SUPPLIES & SERVICES,SERVICES,REVENUE
Walsall Council,http://opendatacommunities.org/id/metropolitan-district-council/walsall ,WC143-768,31.10.2022,ADULT SOCIAL CARE,REDACTED,05/10/2022,"3,859.24",6541-Direct Payment,THIRD PARTY PAYMENTS,PRIVATE CONTRACTOR,REVENUE
Walsall Council,http://opendatacommunities.org/id/metropolitan-district-council/walsall ,WC143-769,31.10.2022,CHILDRENS,BANYA FAMILY PLACEMENT AGENCY LTD,03/10/2022,"5,966.18",6223-Independent Foster Care-Oth Agency Provision,THIRD PARTY PAYMENTS,PRIVATE CONTRACTOR,REVENUE
Walsall Council,http://opendatacommunities.org/id/metropolitan-district-council/walsall ,WC143-770,31.10.2022,CHILDRENS,REDACTED,20/10/2022,340.00,6223-Other Expenses,SUPPLIES & SERVICES,EXPENSES,REVENUE
Walsall Council,http://opendatacommunities.org/id/metropolitan-district-council/walsall ,WC143-771,31.10.2022,"ECONOMY, ENVIRONMENT & COMMUNITIES",BARHALE LIMITED,31/10/2022,553.50,6313-Grants to Other Orgs,SUPPLIES & SERVICES,GRANTS (EXP) & SUBSCRIPTIONS,REVENUE
Walsall Council,http://opendatacommunities.org/id/metropolitan-district-council/walsall ,WC143-772,31.10.2022,ADULT SOCIAL CARE,BARTHOLAMEW LODGE NURSING HOME LTD,25/10/2022,"3,043.80",6541-Nursing EMI,THIRD PARTY PAYMENTS,PRIVATE CONTRACTOR,REVENUE
Walsall Council,http://opendatacommunities.org/id/metropolitan-district-council/walsall ,WC143-773,31.10.2022,"ECONOMY, ENVIRONMENT & COMMUNITIES",BAT FABRICATIONS LTD,25/10/2022,"-2,482.16",6410-Operational Maintenance,PREMISES,REPAIRS & MAINTENANCE,REVENUE
Walsall Council,http://opendatacommunities.org/id/metropolitan-district-council/walsall ,WC143-774,31.10.2022,"ECONOMY, ENVIRONMENT & COMMUNITIES",BAT FABRICATIONS LTD,25/10/2022,-400.00,6410-Operational Maintenance,PREMISES,REPAIRS & MAINTENANCE,REVENUE
Walsall Council,http://opendatacommunities.org/id/metropolitan-district-council/walsall ,WC143-775,31.10.2022,"ECONOMY, ENVIRONMENT & COMMUNITIES",BAT FABRICATIONS LTD,25/10/2022,400.00,6410-Operational Maintenance,PREMISES,REPAIRS & MAINTENANCE,REVENUE
Walsall Council,http://opendatacommunities.org/id/metropolitan-district-council/walsall ,WC143-776,31.10.2022,"ECONOMY, ENVIRONMENT & COMMUNITIES",BAT FABRICATIONS LTD,25/10/2022,"2,482.16",6410-Operational Maintenance,PREMISES,REPAIRS & MAINTENANCE,REVENUE
Walsall Council,http://opendatacommunities.org/id/metropolitan-district-council/walsall ,WC143-777,31.10.2022,CHILDRENS CAPITAL,BAT FABRICATIONS LTD,20/10/2022,"1,700.00",7155-Site Works Contractors,CAPITAL,"NEW CONSTRUCTION,CONVERSION & RENOVATION",CAPITAL
Walsall Council,http://opendatacommunities.org/id/metropolitan-district-council/walsall ,WC143-778,31.10.2022,RESOURCES AND TRANSFORMATION CAPITAL,BAT FABRICATIONS LTD,21/10/2022,330.00,7300-Site Works Contractors,CAPITAL,"NEW CONSTRUCTION,CONVERSION & RENOVATION",CAPITAL
Walsall Council,http://opendatacommunities.org/id/metropolitan-district-council/walsall ,WC143-779,31.10.2022,RESOURCES AND TRANSFORMATION,BAT FABRICATIONS LTD,21/10/2022,250.00,6310-Planned Maintenance,PREMISES,REPAIRS & MAINTENANCE,REVENUE
Walsall Council,http://opendatacommunities.org/id/metropolitan-district-council/walsall ,WC143-780,31.10.2022,CHILDRENS CAPITAL,BAT FABRICATIONS LTD,21/10/2022,300.00,7150-Site Works Contractors,CAPITAL,"NEW CONSTRUCTION,CONVERSION & RENOVATION",CAPITAL
Walsall Council,http://opendatacommunities.org/id/metropolitan-district-council/walsall ,WC143-781,31.10.2022,CHILDRENS CAPITAL,BAT FABRICATIONS LTD,21/10/2022,750.00,7150-Site Works Contractors,CAPITAL,"NEW CONSTRUCTION,CONVERSION & RENOVATION",CAPITAL
Walsall Council,http://opendatacommunities.org/id/metropolitan-district-council/walsall ,WC143-782,31.10.2022,"ECONOMY, ENVIRONMENT & COMMUNITIES",BATLEYS,25/10/2022,"2,553.15",6414-Catering & Refreshments,SUPPLIES & SERVICES,CATERING,REVENUE
Walsall Council,http://opendatacommunities.org/id/metropolitan-district-council/walsall ,WC143-783,31.10.2022,ECONOMY & ENVIRONMENT CAPITAL,BDO LLP,14/10/2022,"13,901.81",7200-Consultants Fees,CAPITAL,"NEW CONSTRUCTION,CONVERSION & RENOVATION",CAPITAL
Walsall Council,http://opendatacommunities.org/id/metropolitan-district-council/walsall ,WC143-784,31.10.2022,RESOURCES AND TRANSFORMATION,BEADEN POWERLEC LIMITED,31/10/2022,686.00,6310-Planned Maintenance,PREMISES,REPAIRS & MAINTENANCE,REVENUE
Walsall Council,http://opendatacommunities.org/id/metropolitan-district-council/walsall ,WC143-785,31.10.2022,CHILDRENS,BECKYS CHILDMINDING SERVICE,17/10/2022,"2,248.13",1184-Other-Grants to Other Orgs,SUPPLIES & SERVICES,GRANTS (EXP) & SUBSCRIPTIONS,REVENUE
Walsall Council,http://opendatacommunities.org/id/metropolitan-district-council/walsall ,WC143-786,31.10.2022,ADULT SOCIAL CARE,BELVIDERE COURT,25/10/2022,"2,939.32",6541-Residential,THIRD PARTY PAYMENTS,PRIVATE CONTRACTOR,REVENUE
Walsall Council,http://opendatacommunities.org/id/metropolitan-district-council/walsall ,WC143-787,31.10.2022,ADULT SOCIAL CARE,BELVIDERE COURT,25/10/2022,"2,456.24",6541-Nursing,THIRD PARTY PAYMENTS,PRIVATE CONTRACTOR,REVENUE
Walsall Council,http://opendatacommunities.org/id/metropolitan-district-council/walsall ,WC143-788,31.10.2022,"ECONOMY, ENVIRONMENT & COMMUNITIES",BEMROSE BOOTH PARAGON LTD T/A PARAGON ID,10/10/2022,"1,172.60",6411-Stationery & General Office Supplies,SUPPLIES & SERVICES,PRINTING STATIONERY & GENERAL OFFICE,REVENUE
Walsall Council,http://opendatacommunities.org/id/metropolitan-district-council/walsall ,WC143-789,31.10.2022,ADULT SOCIAL CARE,BENEDON HEALTHCARE LTD,20/10/2022,"1,416.08",6541-Community Supported Living/Supported Accommodation,THIRD PARTY PAYMENTS,PRIVATE CONTRACTOR,REVENUE
Walsall Council,http://opendatacommunities.org/id/metropolitan-district-council/walsall ,WC143-790,31.10.2022,ADULT SOCIAL CARE,BENEDON HEALTHCARE LTD,20/10/2022,"5,988.56",6541-Community Supported Living/Supported Accommodation,THIRD PARTY PAYMENTS,PRIVATE CONTRACTOR,REVENUE
Walsall Council,http://opendatacommunities.org/id/metropolitan-district-council/walsall ,WC143-791,31.10.2022,ADULT SOCIAL CARE,REDACTED,05/10/2022,"3,187.52",6541-Direct Payment,THIRD PARTY PAYMENTS,PRIVATE CONTRACTOR,REVENUE
Walsall Council,http://opendatacommunities.org/id/metropolitan-district-council/walsall ,WC143-792,31.10.2022,CHILDRENS,BENJAMIN UK LTD,03/10/2022,"19,100.00",6223-External Residential Care-Oth Agency Provision,THIRD PARTY PAYMENTS,PRIVATE CONTRACTOR,REVENUE
Walsall Council,http://opendatacommunities.org/id/metropolitan-district-council/walsall ,WC143-793,31.10.2022,CHILDRENS,BENJAMIN UK LTD,28/10/2022,"21,650.00",6223-External Residential Care-Oth Agency Provision,THIRD PARTY PAYMENTS,PRIVATE CONTRACTOR,REVENUE
Walsall Council,http://opendatacommunities.org/id/metropolitan-district-council/walsall ,WC143-794,31.10.2022,CHILDRENS,BENTLEY CHILD CARE,13/10/2022,492.00,6222-Support Under Section 23 of The Childrens Act,THIRD PARTY PAYMENTS,PRIVATE CONTRACTOR,REVENUE
Walsall Council,http://opendatacommunities.org/id/metropolitan-district-council/walsall ,WC143-795,31.10.2022,CHILDRENS,BENTLEY CHILD CARE,13/10/2022,369.00,6222-Support Under Section 23 of The Childrens Act,THIRD PARTY PAYMENTS,PRIVATE CONTRACTOR,REVENUE
Walsall Council,http://opendatacommunities.org/id/metropolitan-district-council/walsall ,WC143-796,31.10.2022,CHILDRENS,BENTLEY CHILD CARE,13/10/2022,405.00,6222-Support Under Section 23 of The Childrens Act,THIRD PARTY PAYMENTS,PRIVATE CONTRACTOR,REVENUE
Walsall Council,http://opendatacommunities.org/id/metropolitan-district-council/walsall ,WC143-797,31.10.2022,CHILDRENS,BENTLEY CHILD CARE,13/10/2022,492.00,6222-Support Under Section 23 of The Childrens Act,THIRD PARTY PAYMENTS,PRIVATE CONTRACTOR,REVENUE
Walsall Council,http://opendatacommunities.org/id/metropolitan-district-council/walsall ,WC143-798,31.10.2022,CHILDRENS,REDACTED,20/10/2022,464.00,6223-Transfer Payments - Social Services Clients,TRANSFER PAYMENTS,ADULT SOCIAL SERVICES CLIENT,REVENUE
Walsall Council,http://opendatacommunities.org/id/metropolitan-district-council/walsall ,WC143-799,31.10.2022,CHILDRENS,REDACTED,05/10/2022,464.00,6223-Transfer Payments - Social Services Clients,TRANSFER PAYMENTS,ADULT SOCIAL SERVICES CLIENT,REVENUE
Walsall Council,http://opendatacommunities.org/id/metropolitan-district-council/walsall ,WC143-800,31.10.2022,CHILDRENS,REDACTED,17/10/2022,487.20,1184-Other-Grants to Other Orgs,SUPPLIES & SERVICES,GRANTS (EXP) & SUBSCRIPTIONS,REVENUE
Walsall Council,http://opendatacommunities.org/id/metropolitan-district-council/walsall ,WC143-801,31.10.2022,ADULT SOCIAL CARE,REDACTED,05/10/2022,"1,959.20",6541-Direct Payment,THIRD PARTY PAYMENTS,PRIVATE CONTRACTOR,REVENUE
Walsall Council,http://opendatacommunities.org/id/metropolitan-district-council/walsall ,WC143-802,31.10.2022,CHILDRENS,BESPOKE TRAINING AND EDUCATION LTD,03/10/2022,"7,285.80",1187-Materials,SUPPLIES & SERVICES,EQUIPMENT FURNITURE & MATERIALS,REVENUE
Walsall Council,http://opendatacommunities.org/id/metropolitan-district-council/walsall ,WC143-803,31.10.2022,CHILDRENS,BESPOKE TRAINING AND EDUCATION LTD,24/10/2022,"10,761.78",1187-Materials,SUPPLIES & SERVICES,EQUIPMENT FURNITURE & MATERIALS,REVENUE
Walsall Council,http://opendatacommunities.org/id/metropolitan-district-council/walsall ,WC143-804,31.10.2022,ADULT SOCIAL CARE,BESS CARE LIMITED,20/10/2022,458.20,6541-Domiciliary Care,THIRD PARTY PAYMENTS,PRIVATE CONTRACTOR,REVENUE
Walsall Council,http://opendatacommunities.org/id/metropolitan-district-council/walsall ,WC143-805,31.10.2022,ADULT SOCIAL CARE,BESS CARE LIMITED,20/10/2022,434.50,6541-Domiciliary Care,THIRD PARTY PAYMENTS,PRIVATE CONTRACTOR,REVENUE
Walsall Council,http://opendatacommunities.org/id/metropolitan-district-council/walsall ,WC143-806,31.10.2022,ADULT SOCIAL CARE,BESS CARE LIMITED,20/10/2022,454.25,6541-Domiciliary Care,THIRD PARTY PAYMENTS,PRIVATE CONTRACTOR,REVENUE
Walsall Council,http://opendatacommunities.org/id/metropolitan-district-council/walsall ,WC143-807,31.10.2022,ADULT SOCIAL CARE,BESS CARE LIMITED,20/10/2022,359.45,6541-Domiciliary Care,THIRD PARTY PAYMENTS,PRIVATE CONTRACTOR,REVENUE
Walsall Council,http://opendatacommunities.org/id/metropolitan-district-council/walsall ,WC143-808,31.10.2022,ADULT SOCIAL CARE,BESS CARE LIMITED,20/10/2022,268.60,6541-Domiciliary Care,THIRD PARTY PAYMENTS,PRIVATE CONTRACTOR,REVENUE
